Departmental Family,Entity,Date,Expense Type,Expense Area,Supplier,Transaction Number,Amount
Department for Work and Pensions,Corporate,30/09/2015,PRIME FACILITY PRICE,FG CD OPS & CMG ESTATES PRIME COSTS,TELEREAL TRILLIUM,2033866042,"35,418,252"
Department for Work and Pensions,Corporate,10/09/2015,MEDICAL SERVICES FIXED COSTS,FG HS HDAS TCIF CONTRACT,CENTRE FOR HEALTH & DISABILITY ASSESSMENTS LTD,2033841972,"11,684,454"
Department for Work and Pensions,Corporate,22/09/2015,PENSIONS REGULATOR GIA,CHG ERSP DEL P,THE PENSIONS REGULATOR,1007387,"9,621,308"
Department for Work and Pensions,Corporate,17/09/2015,MEDICAL SERVICES - PERFORMANCE PAYMENTS,FG HS PIP LOT 1,ATOS IT SERVICES UK LTD,2033851198,"8,148,910"
Department for Work and Pensions,Corporate,02/09/2015,CFERS PAID TO HM TREASURY,BALANCE SHEET,CONSOLIDATED FUND,2005675,"7,044,400"
Department for Work and Pensions,Corporate,28/09/2015,GENERAL OFFICE EXPENSES VAT NON-RECOVERABLE,OPS BEN DD DRT GROUP SUPPORT,HMCTS HM COURTS & TRIBUNALS SERVICE,2005715,"6,848,320"
Department for Work and Pensions,Corporate,30/09/2015,PRIME BUSINESS RATES,FG CD ESTATES RESIDUAL COSTS,TELEREAL TRILLIUM,2033866043,"6,501,236"
Department for Work and Pensions,Corporate,22/09/2015,NEST Loan - in year additions,CHG ERSP DEL P,NEST CORPORATION,2005707,"6,100,000"
Department for Work and Pensions,Corporate,16/09/2015,PIP FACE TO FACE ASSESSMENTS,FG HS PIP LOT 3,ATOS IT SERVICES UK LTD,2033849163,"5,376,100"
Department for Work and Pensions,Corporate,15/09/2015,HOSTING SERVICES,CIO ITLR HOSTING DEL P,HP ENTERPRISE SERVICES UK LTD,2033848465,"5,241,460"
Department for Work and Pensions,Corporate,16/09/2015,PIP FACE TO FACE ASSESSMENTS,FG HS PIP LOT 1,ATOS IT SERVICES UK LTD,2033849163,"5,194,639"
Department for Work and Pensions,Corporate,15/09/2015,AMS SERVICES,CIO ITLR AMS,HP ENTERPRISE SERVICES UK LTD,2033848465,"4,486,487"
Department for Work and Pensions,Corporate,22/09/2015,POST OFFICE CARD ACCOUNT,FG FIN CONT COBAP POCA,POST OFFICE LTD,1007386,"4,466,477"
Department for Work and Pensions,Corporate,11/09/2015,HOSTING SERVICES,CIO ITLR HOSTING DEL P,HP ENTERPRISE SERVICES UK LTD,2033842660,"4,041,536"
Department for Work and Pensions,Corporate,04/09/2015,NETWORK SERVICES,CIO ITLR NETWORK,BT GLOBAL SERVICES,2033835298,"3,513,260"
Department for Work and Pensions,Employment Programmes,28/09/2015,CPS LP RECOVERIES,BALANCE SHEET,DWP MANUAL PAYMENTS,2005717,"3,313,970"
Department for Work and Pensions,Corporate,11/09/2015,CONTRACTED OUT OFFICE SERVICES,FG CD CENTRAL CONTRACTS,COFELY WORKPLACE LTD,2033843369,"3,129,071"
Department for Work and Pensions,Corporate,08/09/2015,HOSTING SERVICES,CIO ITLR HOSTING DEL P,HP ENTERPRISE SERVICES UK LTD,2033837123,"2,872,664"
Department for Work and Pensions,Corporate,08/09/2015,DESKTOP SERVICES,CIO ITLR DESKTOP,HP ENTERPRISE SERVICES UK LTD,2033837123,"2,684,640"
Department for Work and Pensions,Corporate,30/09/2015,AR PRIME RECOVERIES,BALANCE SHEET,TELEREAL TRILLIUM,2033866042,"2,587,131"
Department for Work and Pensions,Corporate,08/09/2015,NETWORK SERVICES,CIO ITLR NETWORK,BT GLOBAL SERVICES,2033837127,"2,553,303"
Department for Work and Pensions,Corporate,07/09/2015,CONTRACTED OUT OFFICE SERVICES,CMG OPS EXTERNAL CONTRACTS/SLAS SERCO,SERCO PUBLIC SERVICES LTD,2033836611,"2,505,018"
Department for Work and Pensions,European Social Fund,07/09/2015,MA ESF(D) PROGRAMME EXPENDITURE EC PREFUNDED DWP,WWEG EUROPEAN SOCIAL FUND PROGRAMME 2007-2013,WEST MIDLANDS DWP,5000001906,"2,438,233"
Department for Work and Pensions,Corporate,17/09/2015,BELFAST BENEFIT CENTRE (RUN COSTS),CMG OPS EXTERNAL CONTRACTS/SLAS EASTERN PAYMENTS NI,DSD GROUP ACCOUNT,1007374,"2,431,339"
Department for Work and Pensions,Employment Programmes,21/09/2015,REMPLOY RESOURCE GRANT,WWEG EP WORK CHOICE REMPLOY CONTRACT,REMPLOY LTD,2033855480,"2,329,745"
Department for Work and Pensions,Corporate,14/09/2015,HOSTING SERVICES,CIO ITLR HOSTING DEL P,HP ENTERPRISE SERVICES UK LTD,2033846244,"2,011,204"
Department for Work and Pensions,Corporate,25/09/2015,PIP FACE TO FACE ASSESSMENTS,FG HS PIP LOT 2,CAPITA BUSINESS SERVICES LTD,2033865371,"1,697,837"
Department for Work and Pensions,Corporate,21/09/2015,NON PRIME UTILITIES,FG CD DWP GAS & ELECTRICITY PAYMENTS / RECHARGES,EDF ENERGY 1 LTD SCC UTILITIES ONLY,2033854869,"1,640,506"
Department for Work and Pensions,Corporate,15/09/2015,BELFAST BENEFIT CENTRE (RUN COSTS),OPS BEN BD LN BELFAST,DEPARTMENT FOR SOCIAL DEVELOPMENT,1007373,"1,596,572"
Department for Work and Pensions,Corporate,30/09/2015,CONTRACTED OUT HR SERVICES,HR SHARED SERVICES,SHARED SERVICES CONNECTED LTD,1007401,"1,580,326"
Department for Work and Pensions,Corporate,15/09/2015,AMS SERVICES,CIO ITLR AMS - IBM,IBM UNITED KINGDOM LTD,2033847860,"1,552,597"
Department for Work and Pensions,Corporate,15/09/2015,TREDDS IS IT CONSULTANCY (HOSTING) NON ADVICE,CHG UC PATHFINDER DELIVERY MANAGEMENT,HP ENTERPRISE SERVICES UK LTD,2033848465,"1,359,171"
Department for Work and Pensions,Corporate,14/09/2015,SIAM FIXED PRICE CONTRACTS,CIO ITLR SIAM,HP ENTERPRISE SERVICES UK LTD,2033846244,"1,344,469"
Department for Work and Pensions,Corporate,30/09/2015,PRIME FACILITY PRICE,FG CD CAXTON,TELEREAL TRILLIUM,2033866042,"1,308,326"
Department for Work and Pensions,Corporate,10/09/2015,NETWORK SERVICES,CIO ITLR NETWORK,BT GLOBAL SERVICES,2033841027,"1,245,717"
Department for Work and Pensions,Corporate,24/09/2015,AMS SERVICES,CIO ITLR AMS - ACCENTURE,ACCENTURE UK LTD,2033863713,"1,118,387"
Department for Work and Pensions,Corporate,11/09/2015,COURIER COSTS,FG CD CENTRAL CONTRACTS,TNT UK LTD,2033844116,"1,108,708"
Department for Work and Pensions,Corporate,15/09/2015,POSTAGE,FG CD ACC POSTAGE,UK MAIL,2033848702,"955,986"
Department for Work and Pensions,Corporate,16/09/2015,CONTRACTED OUT PRINTING & STATIONERY SOLUTIONS,FG CD MANAGEMENT FEE,XEROX UK LTD 3W,2033850223,"925,191"
Department for Work and Pensions,Corporate,16/09/2015,PIP PAPER BASED ASSESSMENTS,FG HS PIP LOT 1,ATOS IT SERVICES UK LTD,2033849163,"835,986"
Department for Work and Pensions,Employment Programmes,04/09/2015,SUSTAINMENT FEE,REMPLOY WORK CHOICE PAYMENTS,REMPLOY LTD,2033833716,"810,063"
Department for Work and Pensions,Corporate,15/09/2015,CONNECTIVITY,CIO ITLR PSN CONNECTIVITY,BT GLOBAL SERVICES,2033848705,"785,737"
Department for Work and Pensions,Corporate,15/09/2015,NON-TREDDS IS IT APPS DEV MANDAY,CHG UC PATHFINDER DELIVERY MANAGEMENT,IBM UNITED KINGDOM LTD,2033847860,"776,487"
Department for Work and Pensions,Corporate,08/09/2015,CONNECTIVITY,CIO ITLR PSN CONNECTIVITY,BT GLOBAL SERVICES,2033837127,"759,299"
Department for Work and Pensions,Corporate,08/09/2015,VALUATION OFFICE,FG OPS FIN HDD VOA,VALUATION OFFICE AGENCY,2005685,"757,500"
Department for Work and Pensions,Corporate,22/09/2015,NON-TREDDS IS IT APPS DEV MANDAY,CHG UC PATHFINDER DELIVERY MANAGEMENT,ACCENTURE UK LTD,2033857086,"754,917"
Department for Work and Pensions,Corporate,15/09/2015,DESKTOP SERVICES,CIO ITLR DESKTOP,HP ENTERPRISE SERVICES UK LTD,2033848465,"707,035"
Department for Work and Pensions,Employment Programmes,23/09/2015,YOUTH PROGRAMMES,WWEG EP NATIONAL,THINK FORWARD SOCIAL IMPACT 1 LTD,2033860236,"685,985"
Department for Work and Pensions,Corporate,16/09/2015,PIP PAPER BASED ASSESSMENTS,FG HS PIP LOT 3,ATOS IT SERVICES UK LTD,2033849163,"656,058"
Department for Work and Pensions,Corporate,15/09/2015,POSTAGE,FG CD ACC POSTAGE,ROYAL MAIL GROUP PLC,2033848706,"595,906"
Department for Work and Pensions,Corporate,11/09/2015,AMS SERVICES,CIO ITLR AMS - TATA CONSULTING,TATA CONSULTANCY SERVICES LTD,2033843499,"565,101"
Department for Work and Pensions,Corporate,23/09/2015,PUBLICITY ADVERTISING MEDIA,CHG ERSP COMMS,CARAT,2033858465,"549,996"
Department for Work and Pensions,Corporate,07/09/2015,MEDICAL SERVICES FIXED COSTS,FG HS HEALTH & WORK SERVICES CONTRACT,HEALTH MANAGEMENT LTD,2033835918,"541,667"
Department for Work and Pensions,Corporate,11/09/2015,CONTRACTED OUT OFFICE SERVICES,FG CD CENTRAL CONTRACTS AGILITY,COFELY WORKPLACE LTD,2033843369,"539,592"
Department for Work and Pensions,Corporate,17/09/2015,RENEWALS OF SOFTWARE SUPPORT AND MAINTENANCE,CIO ITLR SOFTWARE P,SPECIALIST COMPUTER CENTRES PLC,2033851976,"531,022"
Department for Work and Pensions,Corporate,30/09/2015,AR PRIME RECOVERIES,BALANCE SHEET,TELEREAL TRILLIUM,2033866043,"528,005"
Department for Work and Pensions,Housing Benefits,14/09/2015,HOUSING BENEFIT ADMINISTRATION,HB ENGLAND,BIRMINGHAM CITY COUNCIL,2033844752,"526,694"
Department for Work and Pensions,Corporate,11/09/2015,NON-TREDDS IS IT SERVICES (HOSTING),FG HS HDAS NON CONTRACT,ATOS ORIGIN IT SERVICES UK LTD,2033843130,"525,546"
Department for Work and Pensions,Corporate,30/09/2015,PRIME FACILITY PRICE,FG CD LEEDS QUARRY HOUSE,TELEREAL TRILLIUM,2033866042,"511,644"
Department for Work and Pensions,Corporate,15/09/2015,TREDDS APPS DEV MANDAYS,CHG UC PATHFINDER DELIVERY MANAGEMENT,HP ENTERPRISE SERVICES UK LTD,2033848465,"501,009"
Department for Work and Pensions,Corporate,15/09/2015,DESKTOP SERVICES,CIO ITLR SUSTAINABLE PRINT SERVICE,XEROX UK LTD 3W,2033848364,"492,574"
Department for Work and Pensions,Corporate,03/09/2015,"CREDIT UNION SHSVCS, ADMIN & PRODUCTS",CHG CREDIT UNION EXPANSION AND DEVELOPMENT DELP,THE ASSOCIATION OF BRITISH CREDIT UNIONS LTD,2033831952,"484,171"
Department for Work and Pensions,Corporate,11/09/2015,CONTRACTED OUT ORIGINAL RESEARCH,CIO IT STATISTICAL SERVICES,OFFICE OF NATIONAL STATISTICS,2033843243,"457,320"
Department for Work and Pensions,Corporate,24/09/2015,SIMPLE PAYMENT SERVICE,FG FIN CONT COBAP CHEQUES,CITIBANK GLOBAL CORPORATE BANKING,2033861039,"446,682"
Department for Work and Pensions,Corporate,30/09/2015,PRIME UTILITIES,FG CD OPS & CMG ESTATES PRIME COSTS,TELEREAL TRILLIUM,2033866044,"441,813"
Department for Work and Pensions,Corporate,21/09/2015,CONTRACTED OUT DOCUMENT SCANNING,FG CD CENTRAL CONTRACTS AGILITY,XEROX UK LTD 3W,2033856127,"440,664"
Department for Work and Pensions,Corporate,14/09/2015,TREDDS APPS DEV MANDAYS,CHG PIP IT PHASE 5,HP ENTERPRISE SERVICES UK LTD,2033846244,"431,365"
Department for Work and Pensions,Child Maintenance and Enforcement Commission,25/09/2015,NON-TREDDS IS IT SERVICES (AMS),FS PHASE 2 - TCS COSTS,TATA CONSULTANCY SERVICES LTD,1000244027,"425,000"
Department for Work and Pensions,Housing Benefits,14/09/2015,HOUSING BENEFIT ADMINISTRATION,HB SCOTLAND,CITY OF GLASGOW,2033844475,"409,974"
Department for Work and Pensions,Child Maintenance and Enforcement Commission,25/09/2015,NON-TREDDS IS IT SERVICES (AMS),CMG PORTFOLIO - RELEASE 25 TCS,TATA CONSULTANCY SERVICES LTD,1000244027,"408,400"
Department for Work and Pensions,Corporate,30/09/2015,NETWORK SERVICES,OPS OPE C&I BUSINESS GENERATED CHANGE - IT,BT GLOBAL SERVICES,2033867086,"386,098"
Department for Work and Pensions,Corporate,21/09/2015,CONTRACTED OUT ORIGINAL RESEARCH,STR LM AND COND DIRECTOR AND SUPPORT,OFFICE FOR NATIONAL STATISTICS,2033856538,"381,772"
Department for Work and Pensions,European Social Fund,22/09/2015,MA ESF(D) PROGRAMME EXPENDITURE EC PREFUNDED THIRD PARTIES,WWEG EUROPEAN SOCIAL FUND PROGRAMME 2007-2013,UNIVERSITY OF EXETER,5000001910,"374,572"
Department for Work and Pensions,Corporate,15/09/2015,TREDDS APPS DEV MANDAYS,CHG VME WFPS-R,HP ENTERPRISE SERVICES UK LTD,2033848465,"371,235"
Department for Work and Pensions,Corporate,09/09/2015,MANAGED SERVICE UNIVERSAL JOBMATCH,CHG BTG - UNIVERSAL JOBMATCH,MONSTER GOVERNMENT SOLUTIONS,2033839555,"370,832"
Department for Work and Pensions,Child Maintenance and Enforcement Commission,16/09/2015,CONTRACTED OUT OFFICE SERVICES,OPTIONS,G4S CUSTOMER SUPPORT SERVICES,1000243504,"359,730"
Department for Work and Pensions,Corporate,14/09/2015,TREDDS IS IT CONSULTANCY (HOSTING) NON ADVICE,CHG VIRTUAL MACHINE ENVIRONMENT REPLACEMENT,HP ENTERPRISE SERVICES UK LTD,2033846244,"353,286"
Department for Work and Pensions,Housing Benefits,14/09/2015,HOUSING BENEFIT ADMINISTRATION,HB ENGLAND,MANCHESTER CITY COUNCIL,2033844821,"341,688"
Department for Work and Pensions,Housing Benefits,14/09/2015,HOUSING BENEFIT ADMINISTRATION,HB ENGLAND,LIVERPOOL CITY COUNCIL,2033844819,"337,531"
Department for Work and Pensions,Corporate,30/09/2015,PRIME FACILITY PRICE,FG CD PEEL PARK,TELEREAL TRILLIUM,2033866042,"337,062"
Department for Work and Pensions,Corporate,24/09/2015,NON-TREDDS IS IT APPS DEV MANDAY,CHG UC PATHFINDER DELIVERY MANAGEMENT,ACCENTURE UK LTD,2033863713,"335,742"
Department for Work and Pensions,Corporate,30/09/2015,PRIME FACILITY PRICE,FG CD MANCHESTER HEYWOOD STORES,TELEREAL TRILLIUM,2033866042,"324,688"
Department for Work and Pensions,European Social Fund,22/09/2015,MA ESF(D) PROGRAMME EXPENDITURE EC PREFUNDED L A's,WWEG EUROPEAN SOCIAL FUND PROGRAMME 2007-2013,LUTON BOROUGH COUNCIL,5000001909,"323,641"
Department for Work and Pensions,Corporate,23/09/2015,NON-TREDDS IS IT SERVICES (AMS),CIO GG SERVICE DELIVERY,ATOS ORIGIN IT SERVICES UK LTD,2033858753,"323,107"
Department for Work and Pensions,Corporate,14/09/2015,TREDDS APPS DEV MANDAYS,CHG PIP IT PHASE 4,HP ENTERPRISE SERVICES UK LTD,2033846244,"321,144"
Department for Work and Pensions,Corporate,15/09/2015,PRIME VARIABLE CHARGE,FG CD OPS & CMG ESTATES PRIME COSTS,TELEREAL TRILLIUM,2033847981,"317,676"
Department for Work and Pensions,Corporate,22/09/2015,NON-TREDDS IS IT APPS DEV MANDAY,CHG STATE PENSION REFORM SINGLE TIER,ACCENTURE UK LTD,2033857086,"315,983"
Department for Work and Pensions,Housing Benefits,14/09/2015,HOUSING BENEFIT ADMINISTRATION,HB ENGLAND,LEEDS CITY COUNCIL,2033844574,"312,569"
Department for Work and Pensions,Corporate,16/09/2015,SOFTWARE LICENCES GREATER THAN ONE YEAR TERM,F&C FIN CONT BI,SOFTCAT LTD,2033848985,"306,064"
Department for Work and Pensions,Corporate,22/09/2015,PACS INTER-VOTE CREDITOR,BALANCE SHEET,DWP MANUAL PAYMENTS,2005712,"294,594"
Department for Work and Pensions,Corporate,25/09/2015,NON-TREDDS APPS DEV FIXED PRICE CONTRACTS,"CIO TECH PLATFORM FIN, COMM & HR CORE",IBM UNITED KINGDOM LTD,2033864258,"291,933"
Department for Work and Pensions,Corporate,16/09/2015,IT SERVICE CREDITS - VAT RECOVERABLE,CIO ITLR GENERIC OTHER,HP ENTERPRISE SERVICES UK LTD,2033849757,"289,417"
Department for Work and Pensions,Employment Programmes,14/09/2015,RESIDENTIAL TRAINING COSTS,WWEG EP DELIVERY WELFARE TO WORK PRODUCT SUPPORT,ST LOYES COLLEGE FOUNDATION,2033846729,"286,198"
Department for Work and Pensions,Corporate,14/09/2015,TREDDS APPS DEV MANDAYS,CHG VME CACS-R,HP ENTERPRISE SERVICES UK LTD,2033846244,"284,299"
Department for Work and Pensions,Child Maintenance and Enforcement Commission,15/09/2015,TREDDS APPS DEV MANDAYS,CMG PORTFOLIO - RELEASE 25 HPES,HP ENTERPRISE SERVICES UK LTD,1000243404,"269,592"
Department for Work and Pensions,Corporate,08/09/2015,BANK COMMISSION & CHARGES,FG FIN CONT COBAP BANKING,HSBC BANK PLC,2033836805,"264,810"
Department for Work and Pensions,Corporate,09/09/2015,NON-TREDDS IS IT SERVICES (AMS),CIO GG SERVICE DELIVERY,ATOS ORIGIN IT SERVICES UK LTD,2033839110,"262,447"
Department for Work and Pensions,Corporate,09/09/2015,NON-TREDDS IS IT APPS DEV MANDAY,OPS PEN PS TUO ISIT,ATOS ORIGIN IT SERVICES UK LTD,2033839110,"261,030"
Department for Work and Pensions,Corporate,22/09/2015,CONTRACTORS & STAFF SUBSTITUTIONS,CHG UC DESIGN & BUILD PROGRAMME MANAGER,CAPITA BUSINESS SERVICES LTD,2033857825,"254,994"
Department for Work and Pensions,Housing Benefits,14/09/2015,HOUSING BENEFIT ADMINISTRATION,HB ENGLAND,LONDON BOROUGH OF TOWER HAMLETS,2033844679,"254,827"
Department for Work and Pensions,Employment Programmes,02/09/2015,YOUTH PROGRAMMES,WWEG EP NATIONAL,PREVISTA LTD,2033830590,"254,578"
Department for Work and Pensions,Corporate,14/09/2015,TREDDS APPS DEV MANDAYS,CHG PIP IT ASSESSMENT TOOL,HP ENTERPRISE SERVICES UK LTD,2033846244,"254,051"
Department for Work and Pensions,Corporate,30/09/2015,CONNECTIVITY,CIO ITLR PSN CONNECTIVITY,BT GLOBAL SERVICES,2033867086,"252,247"
Department for Work and Pensions,Corporate,08/09/2015,CONTRACTORS & STAFF SUBSTITUTIONS,CHG UC DESIGN & BUILD PROGRAMME MANAGER,CAPITA BUSINESS SERVICES LTD,2033836869,"249,360"
Department for Work and Pensions,Corporate,15/09/2015,TREDDS IS IT CONSULTANCY (HOSTING) NON ADVICE,CHG VME MIDDLEWARE-R,HP ENTERPRISE SERVICES UK LTD,2033848465,"244,218"
Department for Work and Pensions,Housing Benefits,14/09/2015,HOUSING BENEFIT ADMINISTRATION,HB ENGLAND,LONDON BOROUGH OF LEWISHAM,2033844543,"242,422"
Department for Work and Pensions,Housing Benefits,14/09/2015,HOUSING BENEFIT ADMINISTRATION,HB ENGLAND,DURHAM COUNCIL,2033844693,"241,653"
Department for Work and Pensions,Corporate,15/09/2015,TREDDS APPS DEV MANDAYS,CHG STATE PENSION REFORM SINGLE TIER,HP ENTERPRISE SERVICES UK LTD,2033848465,"238,083"
Department for Work and Pensions,Housing Benefits,14/09/2015,HOUSING BENEFIT ADMINISTRATION,HB ENGLAND,LONDON BOROUGH OF SOUTHWARK,2033844756,"237,699"
Department for Work and Pensions,Housing Benefits,14/09/2015,HOUSING BENEFIT ADMINISTRATION,HB ENGLAND,HACKNEY LBC,2033844751,"235,881"
Department for Work and Pensions,Housing Benefits,14/09/2015,HOUSING BENEFIT ADMINISTRATION,HB ENGLAND,BRADFORD METROPOLITAN BOROUGH COUNCIL,2033844629,"235,204"
Department for Work and Pensions,Housing Benefits,14/09/2015,HOUSING BENEFIT ADMINISTRATION,HB ENGLAND,LONDON BOROUGH OF LAMBETH,2033844655,"234,979"
Department for Work and Pensions,Housing Benefits,14/09/2015,HOUSING BENEFIT ADMINISTRATION,HB ENGLAND,SHEFFIELD CITY COUNCIL,2033844646,"230,451"
Department for Work and Pensions,Corporate,11/09/2015,NON-TREDDS IS IT APPS DEV MANDAY,CHG CUSTOMER INFORMATION SYSTEM REMEDIATION,IBM UNITED KINGDOM LTD,2033842749,"219,163"
Department for Work and Pensions,Corporate,01/09/2015,CONTRACTORS & STAFF SUBSTITUTIONS,CHG UC DESIGN & BUILD PROGRAMME MANAGER,CAPITA BUSINESS SERVICES LTD,2033829835,"217,415"
Department for Work and Pensions,Housing Benefits,14/09/2015,HOUSING BENEFIT ADMINISTRATION,HB ENGLAND,BRISTOL CITY COUNCIL,2033844672,"215,328"
Department for Work and Pensions,Corporate,25/09/2015,PIP PAPER BASED ASSESSMENTS,FG HS PIP LOT 2,CAPITA BUSINESS SERVICES LTD,2033865371,"213,283"
Department for Work and Pensions,Corporate,15/09/2015,NON-TREDDS IS IT APPS DEV MANDAY,CHG PIP IT ASSESSMENT TOOL,IBM UNITED KINGDOM LTD,2033847860,"211,040"
Department for Work and Pensions,Corporate,14/09/2015,CONTRACTORS & STAFF SUBSTITUTIONS,CHG UC DESIGN & BUILD PROGRAMME MANAGER,CAPITA BUSINESS SERVICES LTD,2033845752,"209,857"
Department for Work and Pensions,European Social Fund,16/09/2015,MA ESF(D) PROGRAMME EXPENDITURE EC PREFUNDED L A's,WWEG EUROPEAN SOCIAL FUND PROGRAMME 2007-2013,BIRMINGHAM CITY COUNCIL,5000001907,"209,282"
Department for Work and Pensions,Corporate,09/09/2015,NON-TREDDS IS IT SERVICES (HOSTING),CIO GG SERVICE DELIVERY,ATOS ORIGIN IT SERVICES UK LTD,2033839110,"203,175"
Department for Work and Pensions,Housing Benefits,14/09/2015,HOUSING BENEFIT ADMINISTRATION,HB ENGLAND,LONDON BOROUGH OF NEWHAM,2033844798,"198,553"
Department for Work and Pensions,Employment Programmes,25/09/2015,SUSTAINMENT FEE,REMPLOY WORK CHOICE PAYMENTS,REMPLOY LTD,2033864009,"197,898"
Department for Work and Pensions,Corporate,14/09/2015,CONTRACTED OUT HR SERVICES,HR MYCSP,MY CSP LTD,2033845053,"197,614"
Department for Work and Pensions,Housing Benefits,14/09/2015,HOUSING BENEFIT ADMINISTRATION,HB ENGLAND,LONDON BOROUGH OF HARINGEY,2033844797,"195,709"
Department for Work and Pensions,Corporate,16/09/2015,NON PRIME UTILITIES,FG CD DWP GAS & ELECTRICITY PAYMENTS / RECHARGES,CORONA ENERGY RETAIL 4 LTD SCC UTILITIES ONLY,2033850288,"193,230"
Department for Work and Pensions,Housing Benefits,14/09/2015,HOUSING BENEFIT ADMINISTRATION,HB ENGLAND,LONDON BOROUGH OF ISLINGTON,2033844767,"192,394"
Department for Work and Pensions,Housing Benefits,14/09/2015,HOUSING BENEFIT ADMINISTRATION,HB ENGLAND,CORNWALL COUNCIL,2033844692,"192,389"
Department for Work and Pensions,Housing Benefits,14/09/2015,HOUSING BENEFIT ADMINISTRATION,HB ENGLAND,LONDON BOROUGH OF BRENT,2033844796,"192,206"
Department for Work and Pensions,Corporate,03/09/2015,PUBLICITY PRODUCTION COST,CHG ERSP COMMS,ENGINE PARTNERS UK LLP,2033831871,"187,710"
Department for Work and Pensions,Housing Benefits,14/09/2015,HOUSING BENEFIT ADMINISTRATION,HB ENGLAND,NOTTINGHAM CITY COUNCIL,2033844815,"187,341"
Department for Work and Pensions,Corporate,11/09/2015,TREDDS APPS DEV FIXED PRICE CONTRACTS,CHG PIP IT PHASE 4,HP ENTERPRISE SERVICES UK LTD,2033842660,"186,267"
Department for Work and Pensions,Housing Benefits,14/09/2015,HOUSING BENEFIT ADMINISTRATION,HB SCOTLAND,EDINBURGH DISTRICT COUNCIL,2033844474,"185,849"
Department for Work and Pensions,Corporate,01/09/2015,NON-TREDDS IS IT APPS DEV MANDAY,CHG SCANNING & DIGITAL STORAGE,ACCENTURE UK LTD,2033829139,"182,688"
Department for Work and Pensions,Corporate,07/09/2015,MEDICAL SERVICES FIXED COSTS,FG HS HDAS CONTRACT,CENTRE FOR HEALTH & DISABILITY ASSESSMENTS LTD,2033836624,"178,588"
Department for Work and Pensions,Housing Benefits,14/09/2015,HOUSING BENEFIT ADMINISTRATION,HB ENGLAND,LONDON BOROUGH OF GREENWICH,2033844775,"178,115"
Department for Work and Pensions,Housing Benefits,14/09/2015,HOUSING BENEFIT ADMINISTRATION,HB ENGLAND,CROYDON PEO%,2033844698,"177,988"
Department for Work and Pensions,Employment Programmes,25/09/2015,OUTCOME FEE,REMPLOY WORK CHOICE PAYMENTS,REMPLOY LTD,2033864009,"176,165"
Department for Work and Pensions,Corporate,10/09/2015,NON-TREDDS IS IT SERVICES (HOSTING),FG HS HDAS NON CONTRACT,ATOS ORIGIN IT SERVICES UK LTD,2033841882,"175,882"
Department for Work and Pensions,Corporate,16/09/2015,TREDDS APPS DEV MANDAYS,CHG VME WFPS-R,HP ENTERPRISE SERVICES UK LTD,2033849757,"173,955"
Department for Work and Pensions,Housing Benefits,14/09/2015,HOUSING BENEFIT ADMINISTRATION,HB ENGLAND,LONDON BOROUGH OF WANDSWORTH,2033844524,"169,388"
Department for Work and Pensions,Housing Benefits,14/09/2015,HOUSING BENEFIT ADMINISTRATION,HB ENGLAND,LEICESTER CITY COUNCIL,2033844596,"169,274"
Department for Work and Pensions,Housing Benefits,14/09/2015,HOUSING BENEFIT ADMINISTRATION,HB ENGLAND,LONDON BOROUGH OF ENFIELD,2033844760,"168,947"
Department for Work and Pensions,Housing Benefits,14/09/2015,HOUSING BENEFIT ADMINISTRATION,HB ENGLAND,SANDWELL BOROUGH COUNCIL,2033844486,"168,379"
Department for Work and Pensions,Housing Benefits,14/09/2015,HOUSING BENEFIT ADMINISTRATION,HB ENGLAND,KINGSTON UPON HULL CITY COUNCIL,2033844713,"168,215"
Department for Work and Pensions,Housing Benefits,14/09/2015,HOUSING BENEFIT ADMINISTRATION,HB ENGLAND,LONDON BOROUGH OF EALING,2033844776,"167,835"
Department for Work and Pensions,Housing Benefits,14/09/2015,HOUSING BENEFIT ADMINISTRATION,HB ENGLAND,LONDON BOROUGH OF BARNET,2033844759,"167,407"
Department for Work and Pensions,Housing Benefits,14/09/2015,HOUSING BENEFIT ADMINISTRATION,HB ENGLAND,LONDON BOROUGH OF CAMDEN,2033844623,"167,241"
Department for Work and Pensions,Housing Benefits,14/09/2015,HOUSING BENEFIT ADMINISTRATION,HB ENGLAND,KIRKLEES METROPOLITAN BOROUGH COUNCIL,2033844631,"163,495"
Department for Work and Pensions,Housing Benefits,14/09/2015,HOUSING BENEFIT ADMINISTRATION,HB ENGLAND,WIRRAL BOROUGH COUNCIL,2033844458,"155,896"
Department for Work and Pensions,Housing Benefits,14/09/2015,HOUSING BENEFIT ADMINISTRATION,HB SCOTLAND,NORTH LANARKSHIRE COUNCIL,2033844599,"155,638"
Department for Work and Pensions,Corporate,01/09/2015,CONSULTANTS VAT RECOVERABLE,CHG UC PROGRAMME DIRECTOR,DELOITTE LLP,2033829144,"154,388"
Department for Work and Pensions,Corporate,11/09/2015,PROFESSIONAL SERVICES NON VAT RECOVERABLE,OPS OPE CMG RELATIONSHIP SUPPORT,RELATE,2033843805,"152,020"
Department for Work and Pensions,Corporate,14/09/2015,ADEP AM SERVICES - VAT NON-RECOVERABLE,CHG NSP - SECURE DIGITAL CHANGE OF ADDRESS,KAINOS SOFTWARE LTD,2033845843,"151,657"
Department for Work and Pensions,Housing Benefits,14/09/2015,HOUSING BENEFIT ADMINISTRATION,HB ENGLAND,CITY OF WESTMINSTER,2033844496,"149,212"
Department for Work and Pensions,Housing Benefits,14/09/2015,HOUSING BENEFIT ADMINISTRATION,HB ENGLAND,SALFORD CITY COUNCIL,2033844718,"148,802"
Department for Work and Pensions,Corporate,11/09/2015,CONTRACTED OUT OFFICE SERVICES,FG OPS FIN DM CONTRACTS,COFELY WORKPLACE LTD,2033843369,"145,613"
Department for Work and Pensions,Housing Benefits,14/09/2015,HOUSING BENEFIT ADMINISTRATION,HB ENGLAND,WAKEFIELD  DISTRICT COUNCIL,2033844628,"144,657"
Department for Work and Pensions,Corporate,22/09/2015,NON-TREDDS IS IT APPS DEV MANDAY,CIO TECH PLATFORM IMP MOSAIC,ACCENTURE UK LTD,2033857086,"144,341"
Department for Work and Pensions,Housing Benefits,14/09/2015,HOUSING BENEFIT ADMINISTRATION,HB SCOTLAND,FIFE COUNCIL,2033844730,"142,576"
Department for Work and Pensions,Housing Benefits,14/09/2015,HOUSING BENEFIT ADMINISTRATION,HB ENGLAND,NEWCASTLE CITY COUNCIL,2033844523,"142,325"
Department for Work and Pensions,Housing Benefits,14/09/2015,HOUSING BENEFIT ADMINISTRATION,HB ENGLAND,SUNDERLAND CITY COUNCIL,2033844485,"141,849"
Department for Work and Pensions,Housing Benefits,14/09/2015,HOUSING BENEFIT ADMINISTRATION,HB ENGLAND,WOLVERHAMPTON CITY COUNCIL,2033844699,"141,561"
Department for Work and Pensions,Housing Benefits,14/09/2015,HOUSING BENEFIT ADMINISTRATION,HB WALES,CARDIFF CITY COUNCIL,2033844498,"141,114"
Department for Work and Pensions,Corporate,18/09/2015,RECRUITMENT & ASSESSMENT SERVICES AGENCY,CIO TECHNOLOGY COO GRADUATES,HM REVENUE & CUSTOMS,2005702,"139,957"
Department for Work and Pensions,Corporate,30/09/2015,TREDDS APPS DEV MANDAYS,CHG PIP IT PHASE 4,HP ENTERPRISE SERVICES UK LTD,2033867019,"139,795"
Department for Work and Pensions,Housing Benefits,14/09/2015,HOUSING BENEFIT ADMINISTRATION,HB ENGLAND,WALSALL BOROUGH COUNCIL,2033844487,"139,270"
Department for Work and Pensions,Housing Benefits,14/09/2015,HOUSING BENEFIT ADMINISTRATION,HB ENGLAND,DONCASTER METROPOLITAN BOROUGH COUNCIL,2033844652,"138,172"
Department for Work and Pensions,Housing Benefits,14/09/2015,HOUSING BENEFIT ADMINISTRATION,HB ENGLAND,COVENTRY CITY COUNCIL,2033844724,"136,307"
Department for Work and Pensions,Corporate,21/09/2015,HOSTING SERVICES,CIO ITLR HOSTING DEL P,HP ENTERPRISE SERVICES UK LTD,2033854946,"136,212"
Department for Work and Pensions,Employment Programmes,08/09/2015,SUSTAINMENT FEE,REMPLOY WORK CHOICE PAYMENTS,REMPLOY LTD,2033837380,"134,571"
Department for Work and Pensions,Housing Benefits,14/09/2015,HOUSING BENEFIT ADMINISTRATION,HB ENGLAND,LONDON BOROUGH OF WALTHAM FOREST,2033844547,"133,883"
Department for Work and Pensions,Housing Benefits,14/09/2015,HOUSING BENEFIT ADMINISTRATION,HB ENGLAND,WILTSHIRE COUNCIL,2033844696,"132,709"
Department for Work and Pensions,Corporate,30/09/2015,PRIME FACILITY PRICE,FG CD BIRCHWOOD,TELEREAL TRILLIUM,2033866042,"131,566"
Department for Work and Pensions,Housing Benefits,14/09/2015,HOUSING BENEFIT ADMINISTRATION,HB ENGLAND,BRIGHTON & HOVE COUNCIL,2033844648,"130,411"
Department for Work and Pensions,Corporate,14/09/2015,NETWORK SERVICES,CIO ITLR NETWORK,BT GLOBAL SERVICES,2033846213,"129,762"
Department for Work and Pensions,Corporate,01/09/2015,POSTAGE,CHG CLASS 3A VOLUNTARY NATIONAL INSURANCE CONTS,HM REVENUE & CUSTOMS,2005673,"128,314"
Department for Work and Pensions,Housing Benefits,14/09/2015,HOUSING BENEFIT ADMINISTRATION,HB ENGLAND,STOKE ON TRENT CITY COUNCIL,2033844725,"128,186"
Department for Work and Pensions,Housing Benefits,14/09/2015,HOUSING BENEFIT ADMINISTRATION,HB ENGLAND,PLYMOUTH CITY COUNCIL,2033844769,"127,462"
Department for Work and Pensions,Housing Benefits,14/09/2015,HOUSING BENEFIT ADMINISTRATION,HB SCOTLAND,SOUTH LANARKSHIRE COUNCIL,2033844707,"122,460"
Department for Work and Pensions,Corporate,14/09/2015,TREDDS APPS DEV MANDAYS,CHG ABOLITION OF ASSESSED INCOME PERIODS IN SP CREDIT,HP ENTERPRISE SERVICES UK LTD,2033846244,"122,031"
Department for Work and Pensions,Housing Benefits,14/09/2015,HOUSING BENEFIT ADMINISTRATION,HB ENGLAND,WIGAN BOROUGH COUNCIL,2033844807,"121,215"
Department for Work and Pensions,Housing Benefits,14/09/2015,HOUSING BENEFIT ADMINISTRATION,HB ENGLAND,SEFTON METROPOLITAN BOROUGH COUNCIL,2033844758,"120,971"
Department for Work and Pensions,Housing Benefits,14/09/2015,HOUSING BENEFIT ADMINISTRATION,HB ENGLAND,NORTHUMBERLAND COUNCIL,2033844694,"119,847"
Department for Work and Pensions,Corporate,04/09/2015,AMS SERVICES,CIO ITLR AMS,HP ENTERPRISE SERVICES UK LTD,2033834997,"119,057"
Department for Work and Pensions,Corporate,30/09/2015,PRIME FACILITY PRICE,FG CD SHEFFIELD KINGS COURT,TELEREAL TRILLIUM,2033866042,"118,280"
Department for Work and Pensions,Housing Benefits,14/09/2015,HOUSING BENEFIT ADMINISTRATION,HB ENGLAND,BOLTON METROPOLITAN BOROUGH COUNCIL,2033844827,"117,967"
Department for Work and Pensions,Housing Benefits,14/09/2015,HOUSING BENEFIT ADMINISTRATION,HB ENGLAND,LONDON BOROUGH OF HAMMERSMITH & FULHAM,2033844598,"117,963"
Department for Work and Pensions,Corporate,09/09/2015,NON-TREDDS APPS DEV FIXED PRICE CONTRACTS,CIO GG SERVICE DELIVERY,ATOS ORIGIN IT SERVICES UK LTD,2033839110,"117,868"
Department for Work and Pensions,Employment Programmes,16/09/2015,RESIDENTIAL TRAINING COSTS,WWEG EP DELIVERY WELFARE TO WORK PRODUCT SUPPORT,QUEEN ELIZABETH'S FOUNDATION,2033850571,"116,504"
Department for Work and Pensions,Housing Benefits,14/09/2015,HOUSING BENEFIT ADMINISTRATION,HB ENGLAND,PORTSMOUTH CITY COUNCIL,2033844705,"115,944"
Department for Work and Pensions,Corporate,16/09/2015,AGENCY PAYMENTS TO LOCAL AUTHORITIES & PARTNERSHIPS,OPS WDS WSD NW REGION UNIVERSAL CREDIT,SEFTON METROPOLITAN BOROUGH COUNCIL,2033849437,"115,362"
Department for Work and Pensions,Corporate,30/09/2015,PRIME FACILITY PRICE,FG HS HDAS NON CONTRACT,TELEREAL TRILLIUM,2033866042,"115,225"
Department for Work and Pensions,Employment Programmes,16/09/2015,RESIDENTIAL TRAINING COSTS,WWEG EP DELIVERY WELFARE TO WORK PRODUCT SUPPORT,FINCHALE TRAINING COLLEGE,2033849440,"114,642"
Department for Work and Pensions,Housing Benefits,14/09/2015,HOUSING BENEFIT ADMINISTRATION,HB ENGLAND,ROTHERHAM BOROUGH COUNCIL,2033844470,"114,315"
Department for Work and Pensions,Housing Benefits,14/09/2015,HOUSING BENEFIT ADMINISTRATION,HB ENGLAND,LONDON BOROUGH OF BARKING & DAGENHAM,2033844706,"112,426"
Department for Work and Pensions,Housing Benefits,14/09/2015,HOUSING BENEFIT ADMINISTRATION,HB ENGLAND,LONDON BOROUGH OF HOUNSLOW,2033844803,"112,313"
Department for Work and Pensions,Corporate,07/09/2015,MEDICAL SERVICES FIXED COSTS,FG HS HDAS PASSTHROUGH,CENTRE FOR HEALTH & DISABILITY ASSESSMENTS LTD,2033836624,"111,966"
Department for Work and Pensions,Corporate,03/09/2015,CREDIT UNION LOAN BOOK GROWTH,CHG CREDIT UNION EXPANSION AND DEVELOPMENT DELP,THE ASSOCIATION OF BRITISH CREDIT UNIONS LTD,2033831952,"111,541"
Department for Work and Pensions,Housing Benefits,14/09/2015,HOUSING BENEFIT ADMINISTRATION,HB ENGLAND,DUDLEY METROPOLITAN BOROUGH COUNCIL,2033844814,"111,368"
Department for Work and Pensions,Corporate,23/09/2015,NON PRIME PROPERTY COSTS,FG HS HDAS NON CONTRACT,CARTER JONAS LLP,1007393,"111,291"
Department for Work and Pensions,Corporate,18/09/2015,PUBLICITY ADVERTISING MEDIA,CHG ERSP COMMS,CARAT,2033853294,"111,254"
Department for Work and Pensions,Corporate,23/09/2015,MEDICAL SERVICES FIXED COSTS,FG HS MEDICAL SERVICES CONTRACT DEL P,ATOS HEALTHCARE,2033860394,"110,865"
Department for Work and Pensions,Corporate,24/09/2015,TREDDS IS IT CONSULTANCY (HOSTING) NON ADVICE,CIO TECH PLATFORM IMP MOSAIC,HP ENTERPRISE SERVICES UK LTD,2033863709,"110,613"
Department for Work and Pensions,Housing Benefits,14/09/2015,HOUSING BENEFIT ADMINISTRATION,HB ENGLAND,CHESHIRE WEST & CHESTER COUNCIL,2033844691,"110,553"
Department for Work and Pensions,Housing Benefits,14/09/2015,HOUSING BENEFIT ADMINISTRATION,HB ENGLAND,SOUTHAMPTON CITY COUNCIL,2033844460,"110,247"
Department for Work and Pensions,Corporate,14/09/2015,CONNECTIVITY,CHG IT TRANSFORMATION PROG,BT GLOBAL SERVICES,2033846213,"109,599"
Department for Work and Pensions,Child Maintenance and Enforcement Commission,23/09/2015,PROFESSIONAL SERVICES NON VAT RECOVERABLE,FAMILY SUPPORT SERVICES,TNS BMRB,1000243829,"109,210"
Department for Work and Pensions,Housing Benefits,14/09/2015,HOUSING BENEFIT ADMINISTRATION,HB ENGLAND,LONDON BOROUGH OF HILLINGDON,2033844466,"109,188"
Department for Work and Pensions,Housing Benefits,14/09/2015,HOUSING BENEFIT ADMINISTRATION,HB ENGLAND,MEDWAY TOWNS COUNCIL,2033844741,"106,817"
Department for Work and Pensions,Housing Benefits,14/09/2015,HOUSING BENEFIT ADMINISTRATION,HB WALES,SWANSEA CITY COUNCIL,2033844834,"106,523"
Department for Work and Pensions,Housing Benefits,14/09/2015,HOUSING BENEFIT ADMINISTRATION,HB ENGLAND,BARNSLEY BOROUGH COUNCIL,2033844469,"105,233"
Department for Work and Pensions,Housing Benefits,14/09/2015,HOUSING BENEFIT ADMINISTRATION,HB ENGLAND,DERBY CITY COUNCIL,2033844480,"105,229"
Department for Work and Pensions,Housing Benefits,14/09/2015,HOUSING BENEFIT ADMINISTRATION,HB WALES,RHONDDA CYNON TAFF COUNTY BOROUGH COUNCIL,2033844833,"104,728"
Department for Work and Pensions,Housing Benefits,14/09/2015,HOUSING BENEFIT ADMINISTRATION,HB ENGLAND,LONDON BOROUGH OF BROMLEY,2033844774,"104,621"
Department for Work and Pensions,Employment Programmes,03/09/2015,YOUTH PROGRAMMES,WWEG EP YOUTH ENGAGEMENT FUND,T & T YOUTH ENGAGEMENT LLP,2033831883,"103,584"
Department for Work and Pensions,Employment Programmes,25/09/2015,WP JSA 25+ SUSTAINMENT OUTCOME PAYMENT,WWEG EP SCOTLAND INGEUS UK,INGEUS UK LTD,2033865532,"103,415"
Department for Work and Pensions,Housing Benefits,14/09/2015,HOUSING BENEFIT ADMINISTRATION,HB ENGLAND,LONDON BOROUGH OF REDBRIDGE,2033844461,"103,213"
Department for Work and Pensions,Housing Benefits,14/09/2015,HOUSING BENEFIT ADMINISTRATION,HB ENGLAND,EAST RIDING OF YORKSHIRE BOROUGH COUNCIL,2033844714,"103,030"
Department for Work and Pensions,Housing Benefits,14/09/2015,HOUSING BENEFIT ADMINISTRATION,HB ENGLAND,BLACKPOOL BOROUGH COUNCIL,2033844777,"102,629"
Department for Work and Pensions,Housing Benefits,14/09/2015,HOUSING BENEFIT ADMINISTRATION,HB ENGLAND,CHESHIRE EAST BOROUGH COUNCIL,2033844670,"102,382"
Department for Work and Pensions,Housing Benefits,14/09/2015,HOUSING BENEFIT ADMINISTRATION,HB ENGLAND,TAMESIDE BOROUGH COUNCIL,2033844467,"101,829"
Department for Work and Pensions,Housing Benefits,14/09/2015,HOUSING BENEFIT ADMINISTRATION,HB ENGLAND,MILTON KEYNES BOROUGH COUNCIL,2033844765,"100,899"
Department for Work and Pensions,Corporate,09/09/2015,GOVERNMENT ACTUARY'S DEPT,CHG SINGLE FRAUD INVESTIGATION SERVICE,GOVERNMENT ACTUARIES DEPARTMENT GAD,2005687,"100,708"
Department for Work and Pensions,Employment Programmes,09/09/2015,SUSTAINMENT FEE,REMPLOY WORK CHOICE PAYMENTS,REMPLOY LTD,2033839495,"100,268"
Department for Work and Pensions,Corporate,15/09/2015,AR PRIME RECOVERIES,BALANCE SHEET,TELEREAL TRILLIUM,2033847981,"99,838"
Department for Work and Pensions,Corporate,08/09/2015,NETWORK SERVICES,CIO IT SERVICES SERVICE SUPPLY MANAGEMENT,BT GLOBAL SERVICES,2033837127,"99,578"
Department for Work and Pensions,Housing Benefits,14/09/2015,HOUSING BENEFIT ADMINISTRATION,HB ENGLAND,ROCHDALE BOROUGH COUNCIL,2033844830,"99,155"
Department for Work and Pensions,Housing Benefits,14/09/2015,HOUSING BENEFIT ADMINISTRATION,HB SCOTLAND,DUNDEE CITY COUNCIL,2033844603,"98,989"
Department for Work and Pensions,Housing Benefits,14/09/2015,HOUSING BENEFIT ADMINISTRATION,HB ENGLAND,LONDON BOROUGH OF KENSINGTON & CHELSEA,2033844633,"98,752"
Department for Work and Pensions,Housing Benefits,14/09/2015,HOUSING BENEFIT ADMINISTRATION,HB ENGLAND,GATESHEAD BOROUGH COUNCIL,2033844471,"98,323"
Department for Work and Pensions,Corporate,01/09/2015,APPS DEV GOODS AND SERVICES - NON-VAT RECOVERABLE,CHG CLASS 3A VOLUNTARY NATIONAL INSURANCE CONTS,HM REVENUE & CUSTOMS,2005673,"98,201"
Department for Work and Pensions,Corporate,23/09/2015,MEDICAL SERVICES FIXED COSTS,FG HS MEDICAL SERVICES CONTRACT EXIT COSTS,ATOS HEALTHCARE,2033860394,"97,265"
Department for Work and Pensions,Corporate,22/09/2015,NON-TREDDS IS IT APPS DEV MANDAY,CHG SCANNING & DIGITAL STORAGE,ACCENTURE UK LTD,2033857086,"97,133"
Department for Work and Pensions,Housing Benefits,14/09/2015,HOUSING BENEFIT ADMINISTRATION,HB ENGLAND,OLDHAM BOROUGH COUNCIL,2033844829,"96,926"
Department for Work and Pensions,Corporate,25/09/2015,PIP GP FACTUAL REPORTS,FG HS PIP LOT 2,CAPITA BUSINESS SERVICES LTD,2033865371,"94,470"
Department for Work and Pensions,Corporate,22/09/2015,CONTRACTORS & STAFF SUBSTITUTIONS,F&C CD COMMERCIAL MANAGEMENT BUSINESS SERVICES,CAPITA BUSINESS SERVICES LTD,2033857825,"94,105"
Department for Work and Pensions,Corporate,30/09/2015,PRIME FACILITY PRICE,FG CD BRADFORD AMBLER MILL,TELEREAL TRILLIUM,2033866042,"93,952"
Department for Work and Pensions,Housing Benefits,14/09/2015,HOUSING BENEFIT ADMINISTRATION,HB ENGLAND,LONDON BOROUGH OF HARROW,2033844570,"93,747"
Department for Work and Pensions,Child Maintenance and Enforcement Commission,30/09/2015,NON-TREDDS IS IT SERVICES (AMS),FS PHASE 2 - TCS COSTS,TATA CONSULTANCY SERVICES LTD,1000244064,"93,459"
Department for Work and Pensions,Corporate,08/09/2015,NON-TREDDS IS IT CONSULTANCY (HOSTING) NON ADVICE,CHG UC SECURITY,VALTECH LTD,2033837590,"93,300"
Department for Work and Pensions,Employment Programmes,15/09/2015,RESIDENTIAL TRAINING COSTS,WWEG EP DELIVERY WELFARE TO WORK PRODUCT SUPPORT,PORTLAND COLLEGE,2033847400,"92,943"
Department for Work and Pensions,Housing Benefits,14/09/2015,HOUSING BENEFIT ADMINISTRATION,HB ENGLAND,KNOWSLEY BOROUGH COUNCIL,2033844818,"92,489"
Department for Work and Pensions,Housing Benefits,14/09/2015,HOUSING BENEFIT ADMINISTRATION,HB ENGLAND,MIDDLESBROUGH COUNCIL,2033844601,"92,233"
Department for Work and Pensions,Corporate,04/09/2015,AMS SERVICES,CIO ITLR AMS - CAP GEMINI,CAPGEMINI UK PLC,2033834995,"91,443"
Department for Work and Pensions,Corporate,30/09/2015,PRIME FACILITY PRICE,FG CD DEARNE VALLEY DISCOVERY HOUSE,TELEREAL TRILLIUM,2033866042,"91,278"
Department for Work and Pensions,Housing Benefits,14/09/2015,HOUSING BENEFIT ADMINISTRATION,HB ENGLAND,BOURNEMOUTH BOROUGH COUNCIL,2033844647,"91,016"
Department for Work and Pensions,Corporate,08/09/2015,PROFESSIONAL SERVICES NON VAT RECOVERABLE,OPS OPE CMG RELATIONSHIP SUPPORT,ONE PLUS ONE,2033837766,"90,750"
Department for Work and Pensions,Corporate,21/09/2015,CONTRACTED OUT OFFICE SERVICES,CMG OPS EXTERNAL CONTRACTS/SLAS SERCO,SERCO PUBLIC SERVICES LTD,2033855799,"90,631"
Department for Work and Pensions,Corporate,30/09/2015,PRIME FACILITY PRICE,FG CD MANCHESTER ANCHORAGE HOUSE,TELEREAL TRILLIUM,2033866042,"90,290"
Department for Work and Pensions,Housing Benefits,14/09/2015,HOUSING BENEFIT ADMINISTRATION,HB SCOTLAND,RENFREWSHIRE COUNCIL,2033844573,"90,153"
Department for Work and Pensions,Housing Benefits,14/09/2015,HOUSING BENEFIT ADMINISTRATION,HB ENGLAND,SHROPSHIRE COUNCIL,2033844695,"89,286"
Department for Work and Pensions,Employment Programmes,25/09/2015,WP JSA 25+ SUSTAINMENT OUTCOME PAYMENT,WWEG EP SCOTLAND WORKING LINKS,WORKING LINKS,2033865410,"89,010"
Department for Work and Pensions,Employment Programmes,04/09/2015,WP JSA 25+ SUSTAINMENT OUTCOME PAYMENT,WWEG EP EAST OF ENGLAND INGEUS UK,INGEUS UK LTD,2033834944,"88,580"
Department for Work and Pensions,Corporate,30/09/2015,PRIME FACILITY PRICE,FG CD SHEFFIELD ROCKINGHAM HOUSE,TELEREAL TRILLIUM,2033866042,"87,273"
Department for Work and Pensions,Housing Benefits,14/09/2015,HOUSING BENEFIT ADMINISTRATION,HB ENGLAND,CALDERDALE BOROUGH COUNCIL,2033844630,"87,141"
Department for Work and Pensions,Housing Benefits,14/09/2015,HOUSING BENEFIT ADMINISTRATION,HB ENGLAND,SOUTHEND ON SEA BOROUGH COUNCIL,2033844750,"87,004"
Department for Work and Pensions,Housing Benefits,14/09/2015,HOUSING BENEFIT ADMINISTRATION,HB ENGLAND,LUTON BOROUGH COUNCIL,2033844572,"86,546"
Department for Work and Pensions,Employment Programmes,10/09/2015,WP JSA 25+ SUSTAINMENT OUTCOME PAYMENT,WWEG EP EAST OF ENGLAND SEETEC,SEETEC BUSINESS TECHNOLOGY CENTRE LTD,2033841777,"86,215"
Department for Work and Pensions,Housing Benefits,14/09/2015,HOUSING BENEFIT ADMINISTRATION,HB ENGLAND,STOCKTON  BOROUGH COUNCIL,2033844785,"86,019"
Department for Work and Pensions,Housing Benefits,14/09/2015,HOUSING BENEFIT ADMINISTRATION,HB ENGLAND,NORTHAMPTON BOROUGH COUNCIL,2033844575,"86,006"
Department for Work and Pensions,Corporate,14/09/2015,CONTRACTORS & STAFF SUBSTITUTIONS,CIO ADC DIRECTOR,CAPITA BUSINESS SERVICES LTD,2033845752,"85,603"
Department for Work and Pensions,Housing Benefits,14/09/2015,HOUSING BENEFIT ADMINISTRATION,HB ENGLAND,ST HELENS BOROUGH COUNCIL,2033844468,"85,603"
Department for Work and Pensions,Corporate,08/09/2015,CONTRACTORS & STAFF SUBSTITUTIONS,CIO ADC DIRECTOR,CAPITA BUSINESS SERVICES LTD,2033836869,"85,570"
Department for Work and Pensions,Corporate,14/09/2015,TREDDS APPS DEV MANDAYS,CIO IT INFORMATION DATA SERVICES,HP ENTERPRISE SERVICES UK LTD,2033846244,"85,504"
Department for Work and Pensions,Corporate,23/09/2015,AMS SERVICES,CIO ITLR AMS - TATA CONSULTING,TATA CONSULTANCY SERVICES LTD,2033858165,"85,000"
Department for Work and Pensions,Housing Benefits,14/09/2015,HOUSING BENEFIT ADMINISTRATION,HB ENGLAND,PETERBOROUGH CITY COUNCIL,2033844645,"84,983"
Department for Work and Pensions,Housing Benefits,14/09/2015,HOUSING BENEFIT ADMINISTRATION,HB ENGLAND,STOCKPORT BOROUGH COUNCIL,2033844831,"84,705"
Department for Work and Pensions,Housing Benefits,14/09/2015,HOUSING BENEFIT ADMINISTRATION,HB SCOTLAND,HIGHLAND COUNCIL,2033844806,"84,627"
Department for Work and Pensions,Employment Programmes,08/09/2015,WP JSA 25+ SUSTAINMENT OUTCOME PAYMENT,WWEG EP SCOTLAND WORKING LINKS,WORKING LINKS,2033837785,"84,280"
Department for Work and Pensions,Housing Benefits,14/09/2015,HOUSING BENEFIT ADMINISTRATION,HB ENGLAND,NORTH TYNESIDE BOROUGH COUNCIL,2033844472,"84,176"
Department for Work and Pensions,Employment Programmes,25/09/2015,WP JSA 25+ SUSTAINMENT OUTCOME PAYMENT,WWEG EP EAST MIDLANDS A4E,PEOPLEPLUS GROUP,2033864130,"84,065"
Department for Work and Pensions,Corporate,07/09/2015,MOTABILITY ADMINISTRATION GRANT,STR MOTABILITY,MOTABILITY ADMINISTRATION FUND,2033835993,"83,330"
Department for Work and Pensions,Corporate,03/09/2015,RENEWALS OF SOFTWARE SUPPORT AND MAINTENANCE,CIO ITLR SOFTWARE P,SPECIALIST COMPUTER CENTRES PLC,2033832839,"83,328"
Department for Work and Pensions,Employment Programmes,25/09/2015,WP JSA 25+ SUSTAINMENT OUTCOME PAYMENT,WWEG EP EAST LONDON A4E,PEOPLEPLUS GROUP,2033864130,"82,990"
Department for Work and Pensions,Housing Benefits,14/09/2015,HOUSING BENEFIT ADMINISTRATION,HB ENGLAND,NORWICH CITY COUNCIL,2033844620,"82,543"
Department for Work and Pensions,Employment Programmes,25/09/2015,WP JSA 25+ SUSTAINMENT OUTCOME PAYMENT,WWEG EP NORTH WEST MERS HAL CUMB AND LANCS A4E,PEOPLEPLUS GROUP,2033864130,"82,130"
Department for Work and Pensions,Housing Benefits,14/09/2015,HOUSING BENEFIT ADMINISTRATION,HB ENGLAND,THANET DISTRICT COUNCIL,2033844482,"82,111"
Department for Work and Pensions,Housing Benefits,14/09/2015,HOUSING BENEFIT ADMINISTRATION,HB ENGLAND,NORTH EAST LINCOLNSHIRE COUNCIL,2033844800,"82,097"
Department for Work and Pensions,Corporate,03/09/2015,NON-TREDDS IS IT SERVICES (HOSTING),CIO GG SERVICE DELIVERY,DELL CORPORATION LTD,2033831917,"81,927"
Department for Work and Pensions,Corporate,30/09/2015,PRIME FACILITY PRICE,FG CD NUNEATON DISCOVERY HOUSE,TELEREAL TRILLIUM,2033866042,"81,481"
Department for Work and Pensions,Corporate,23/09/2015,STAFF TRAINING VAT RECOVERABLE,F&C DPPM,CALDER CONFERENCES LTD,2033859470,"81,109"
Department for Work and Pensions,Employment Programmes,10/09/2015,WP JSA 25+ SUSTAINMENT OUTCOME PAYMENT,WWEG EP EAST LONDON SEETEC,SEETEC BUSINESS TECHNOLOGY CENTRE LTD,2033841777,"81,055"
Department for Work and Pensions,Employment Programmes,25/09/2015,WP JSA 25+ SUSTAINMENT OUTCOME PAYMENT,WWEG EP EAST OF ENGLAND INGEUS UK,INGEUS UK LTD,2033865532,"80,625"
Department for Work and Pensions,Housing Benefits,14/09/2015,HOUSING BENEFIT ADMINISTRATION,HB ENGLAND,SOUTH TYNESIDE BOROUGH COUNCIL,2033844484,"80,356"
Department for Work and Pensions,Corporate,10/09/2015,CONTRACTED OUT ORIGINAL RESEARCH,CHG UC PROGRAMME INTEGRATION & APPROVALS,CENTRE FOR ECONOMIC & SOCIAL INCLUSION,2033840878,"80,000"
Department for Work and Pensions,Child Maintenance and Enforcement Commission,10/09/2015,NON-TREDDS IS IT SERVICES (AMS),CMG PORTFOLIO - RELEASE 25 TCS,TATA CONSULTANCY SERVICES LTD,1000243233,"78,978"
Department for Work and Pensions,Housing Benefits,14/09/2015,HOUSING BENEFIT ADMINISTRATION,HB ENGLAND,BOROUGH OF TELFORD & WREKIN COUNCIL,2033844529,"78,222"
Department for Work and Pensions,Housing Benefits,14/09/2015,HOUSING BENEFIT ADMINISTRATION,HB ENGLAND,LONDON BOROUGH OF HAVERING,2033844478,"78,219"
Department for Work and Pensions,Corporate,09/09/2015,IT Owned Additions Cost,CIO ITLR HOSTING DEL P,SPECIALIST COMPUTER CENTRES PLC,2033838849,"78,062"
Department for Work and Pensions,Housing Benefits,14/09/2015,HOUSING BENEFIT ADMINISTRATION,HB ENGLAND,SOUTH GLOUCESTERSHIRE COUNCIL,2033844745,"77,403"
Department for Work and Pensions,Corporate,04/09/2015,REMOTE STORAGE COSTS VAT RECOV,CMG OPS EXTERNAL CONTRACTS/SLAS RECORD STORAGE,CAPITA BUSINESS SERVICES LTD,2033833578,"77,107"
Department for Work and Pensions,Housing Benefits,14/09/2015,HOUSING BENEFIT ADMINISTRATION,HB ENGLAND,TORBAY  COUNCIL,2033844534,"77,095"
Department for Work and Pensions,Corporate,15/09/2015,TREDDS IS IT CONSULTANCY (HOSTING) NON ADVICE,CHG VME WFES-R,HP ENTERPRISE SERVICES UK LTD,2033848465,"76,620"
Department for Work and Pensions,Corporate,14/09/2015,TREDDS APPS DEV FIXED PRICE CONTRACTS,CIO ITLR HOSTING DEL P,HP ENTERPRISE SERVICES UK LTD,2033846244,"76,210"
Department for Work and Pensions,Housing Benefits,14/09/2015,HOUSING BENEFIT ADMINISTRATION,HB ENGLAND,NORTH SOMERSET COUNCIL,2033844766,"76,066"
Department for Work and Pensions,Employment Programmes,22/09/2015,WP JSA 25+ SUSTAINMENT OUTCOME PAYMENT,WWEG EP EAST OF ENGLAND SEETEC,SEETEC BUSINESS TECHNOLOGY CENTRE LTD,2033857726,"75,465"
Department for Work and Pensions,Housing Benefits,14/09/2015,HOUSING BENEFIT ADMINISTRATION,HB ENGLAND,SWINDON BOROUGH COUNCIL,2033844501,"75,415"
Department for Work and Pensions,Housing Benefits,14/09/2015,HOUSING BENEFIT ADMINISTRATION,HB ENGLAND,BASILDON DISTRICT COUNCIL,2033844597,"75,289"
Department for Work and Pensions,Housing Benefits,14/09/2015,HOUSING BENEFIT ADMINISTRATION,HB ENGLAND,TRAFFORD BOROUGH COUNCIL,2033844576,"75,116"
Department for Work and Pensions,Housing Benefits,14/09/2015,HOUSING BENEFIT ADMINISTRATION,HB SCOTLAND,ABERDEEN CITY COUNCIL,2033844728,"75,014"
Department for Work and Pensions,Corporate,15/09/2015,NON-TREDDS IS IT APPS DEV MANDAY,CHG CUSTOMER INFORMATION SYSTEM REMEDIATION,IBM UNITED KINGDOM LTD,2033847860,"74,563"
Department for Work and Pensions,Corporate,23/09/2015,NON-TREDDS IS IT SERVICES (AMS),CIO ITLR AMS - TATA CONSULTING,TATA CONSULTANCY SERVICES LTD,2033858165,"74,405"
Department for Work and Pensions,Employment Programmes,04/09/2015,WP JSA 25+ SUSTAINMENT OUTCOME PAYMENT,WWEG EP SCOTLAND INGEUS UK,INGEUS UK LTD,2033834944,"74,390"
Department for Work and Pensions,Housing Benefits,14/09/2015,HOUSING BENEFIT ADMINISTRATION,HB SCOTLAND,NORTH AYRSHIRE COUNCIL,2033844787,"73,611"
Department for Work and Pensions,Housing Benefits,14/09/2015,HOUSING BENEFIT ADMINISTRATION,HB ENGLAND,LONDON BOROUGH OF BEXLEY,2033844773,"73,389"
Department for Work and Pensions,Corporate,15/09/2015,POSTAGE,FG CD NEWCASTLE ESTATE,UK MAIL,2033848702,"71,944"
Department for Work and Pensions,Employment Programmes,14/09/2015,OUTCOME FEE,REMPLOY WORK CHOICE PAYMENTS,REMPLOY LTD,2033846534,"71,660"
Department for Work and Pensions,Employment Programmes,16/09/2015,RESIDENTIAL TRAINING COSTS,WWEG EP DELIVERY WELFARE TO WORK PRODUCT SUPPORT,RNCB HEREFORD,2033849910,"71,414"
Department for Work and Pensions,Corporate,14/09/2015,CONTRACTORS & STAFF SUBSTITUTIONS,F&C CD STRATEGY AND BUSINESS MANAGEMENT,CAPITA BUSINESS SERVICES LTD,2033845752,"71,038"
Department for Work and Pensions,Corporate,24/09/2015,NON-TREDDS IS IT APPS DEV MANDAY,CHG STATE PENSION REFORM 2,ACCENTURE UK LTD,2033863713,"70,909"
Department for Work and Pensions,Corporate,02/09/2015,RECURRENT PUBLICITY,CHG ERSP COMMS,ENGINE PARTNERS UK LLP,1007352,"70,725"
Department for Work and Pensions,Corporate,16/09/2015,CONSULTANTS VAT RECOVERABLE,CHG UC PROGRAMME DIRECTOR,DELOITTE LLP,2033848936,"70,404"
Department for Work and Pensions,Housing Benefits,14/09/2015,HOUSING BENEFIT ADMINISTRATION,HB SCOTLAND,WEST LOTHIAN COUNCIL,2033844626,"70,261"
Department for Work and Pensions,Corporate,22/09/2015,NON-TREDDS IS IT SERVICES (HOSTING),F&C IGS INFO SERVICES,ORC INTERNATIONAL LTD,2033857566,"70,243"
Department for Work and Pensions,Housing Benefits,14/09/2015,HOUSING BENEFIT ADMINISTRATION,HB ENGLAND,LONDON BOROUGH OF MERTON,2033844722,"70,183"
Department for Work and Pensions,Corporate,17/09/2015,PRINTING/BINDING,FG CD CORPORATE CHARGES,XEROX UK LTD 3W,2033851170,"69,748"
Department for Work and Pensions,Corporate,25/09/2015,AGENCY PAYMENTS TO LOCAL AUTHORITIES & PARTNERSHIPS,OPS WDS WSD NW REGION UNIVERSAL CREDIT,WIGAN COUNCIL,2033864469,"69,708"
Department for Work and Pensions,Housing Benefits,14/09/2015,HOUSING BENEFIT ADMINISTRATION,HB WALES,NEWPORT CITY COUNCIL,2033844729,"69,506"
Department for Work and Pensions,Corporate,14/09/2015,CONTRACTORS & STAFF SUBSTITUTIONS,F&C CD COMMERCIAL MANAGEMENT BUSINESS SERVICES,CAPITA BUSINESS SERVICES LTD,2033845752,"69,334"
Department for Work and Pensions,Housing Benefits,14/09/2015,HOUSING BENEFIT ADMINISTRATION,HB ENGLAND,CENTRAL BEDFORDSHIRE DISTRICT COUNCIL,2033844673,"68,415"
Department for Work and Pensions,Housing Benefits,14/09/2015,HOUSING BENEFIT ADMINISTRATION,HB ENGLAND,WARRINGTON BOROUGH COUNCIL,2033844749,"68,281"
Department for Work and Pensions,Housing Benefits,14/09/2015,HOUSING BENEFIT ADMINISTRATION,HB ENGLAND,REDCAR & CLEVELAND BOROUGH  COUNCIL,2033844808,"68,184"
Department for Work and Pensions,Housing Benefits,14/09/2015,HOUSING BENEFIT ADMINISTRATION,HB WALES,CAERPHILLY COUNTY BOROUGH COUNCIL,2033844483,"68,082"
Department for Work and Pensions,Employment Programmes,11/09/2015,WP JSA 25+ SUSTAINMENT OUTCOME PAYMENT,WWEG EP EAST OF ENGLAND INGEUS UK,INGEUS UK LTD,2033842738,"67,725"
Department for Work and Pensions,Housing Benefits,14/09/2015,HOUSING BENEFIT ADMINISTRATION,HB ENGLAND,READING BOROUGH COUNCIL,2033844544,"67,373"
Department for Work and Pensions,Employment Programmes,22/09/2015,OUTCOME FEE,REMPLOY WORK CHOICE PAYMENTS,REMPLOY LTD,2033857565,"67,181"
Department for Work and Pensions,Housing Benefits,14/09/2015,HOUSING BENEFIT ADMINISTRATION,HB SCOTLAND,ABERDEENSHIRE COUNCIL,2033844624,"67,168"
Department for Work and Pensions,Housing Benefits,14/09/2015,HOUSING BENEFIT ADMINISTRATION,HB ENGLAND,LONDON BOROUGH OF SUTTON,2033844804,"66,994"
Department for Work and Pensions,Employment Programmes,25/09/2015,WP JSA 25+ SUSTAINMENT OUTCOME PAYMENT,WWEG EP NORTH EAST AVANTA ENTERPRISE,PEOPLEPLUS LTD,2033865088,"66,865"
Department for Work and Pensions,Employment Programmes,01/09/2015,WP JSA 25+ SUSTAINMENT OUTCOME PAYMENT,WWEG EP SCOTLAND WORKING LINKS,WORKING LINKS,2033828831,"66,650"
Department for Work and Pensions,Housing Benefits,14/09/2015,HOUSING BENEFIT ADMINISTRATION,HB WALES,NEATH PORT TALBOT COUNTY BOROUGH COUNCIL,2033844517,"66,544"
Department for Work and Pensions,Corporate,01/09/2015,CONTRACTORS & STAFF SUBSTITUTIONS,F&C CD COMMERCIAL MANAGEMENT BUSINESS SERVICES,CAPITA BUSINESS SERVICES LTD,2033829835,"66,213"
Department for Work and Pensions,Corporate,11/09/2015,NON-TREDDS IS IT APPS DEV MANDAY,CHG UC PATHFINDER DELIVERY MANAGEMENT,IBM UNITED KINGDOM LTD,2033842749,"66,039"
Department for Work and Pensions,Corporate,25/09/2015,PRIME UNAVOIDABLE COSTS (UAC),CHG ESTATES RATIONALISATION FORMER JCP OPS,TELEREAL TRILLIUM,2033864780,"65,979"
Department for Work and Pensions,Employment Programmes,22/09/2015,SUSTAINMENT FEE,REMPLOY WORK CHOICE PAYMENTS,REMPLOY LTD,2033857565,"65,966"
Department for Work and Pensions,Housing Benefits,14/09/2015,HOUSING BENEFIT ADMINISTRATION,HB WALES,CARMARTHENSHIRE COUNTY COUNCIL,2033844619,"65,648"
Department for Work and Pensions,Corporate,03/09/2015,NON-TREDDS IS IT SERVICES (HOSTING),CIO GG CORE,DELL CORPORATION LTD,2033831917,"65,364"
Department for Work and Pensions,Employment Programmes,25/09/2015,WP JSA 25+ SUSTAINMENT OUTCOME PAYMENT,WWEG EP EAST OF ENGLAND SEETEC,SEETEC BUSINESS TECHNOLOGY CENTRE LTD,2033864675,"65,360"
Department for Work and Pensions,Employment Programmes,25/09/2015,WP JSA 25+ SUSTAINMENT OUTCOME PAYMENT,WWEG EP SOUTH EAST SURR SUSSX AND KENT AVANTA ENTERPRISE,PEOPLEPLUS LTD,2033865088,"65,360"
Department for Work and Pensions,Housing Benefits,14/09/2015,HOUSING BENEFIT ADMINISTRATION,HB ENGLAND,HALTON BOROUGH COUNCIL,2033844731,"65,149"
Department for Work and Pensions,Employment Programmes,25/09/2015,WP JSA 25+ SUSTAINMENT OUTCOME PAYMENT,WWEG EP NORTH WEST MERS HAL CUMB AND LANCS INGEUS UK,INGEUS UK LTD,2033865532,"65,145"
Department for Work and Pensions,Employment Programmes,18/09/2015,WP JSA 25+ SUSTAINMENT OUTCOME PAYMENT,WWEG EP SCOTLAND WORKING LINKS,WORKING LINKS,2033852919,"65,145"
Department for Work and Pensions,Employment Programmes,30/09/2015,WP JSA 25+ SUSTAINMENT OUTCOME PAYMENT,WWEG EP WEST YORKSHIRE BEST LTD,INTERSERVE WORKING FUTURES,2033867568,"65,145"
Department for Work and Pensions,Corporate,15/09/2015,AMS SERVICES,F&C FIN CONT BI,HP ENTERPRISE SERVICES UK LTD,2033848465,"64,991"
Department for Work and Pensions,Corporate,08/09/2015,VOCA Charges,FG FIN CONT COBAP BANKING,VOCALINK,2033837546,"64,883"
Department for Work and Pensions,Housing Benefits,14/09/2015,HOUSING BENEFIT ADMINISTRATION,HB SCOTLAND,DUMFRIES & GALLOWAY COUNCIL,2033844503,"64,857"
Department for Work and Pensions,Housing Benefits,14/09/2015,HOUSING BENEFIT ADMINISTRATION,HB ENGLAND,THURROCK BOROUGH COUNCIL,2033844747,"64,761"
Department for Work and Pensions,Employment Programmes,07/09/2015,WP JSA 25+ SUSTAINMENT OUTCOME PAYMENT,WWEG EP NORTH WEST GM CHES AND WARR AVANTA ENTERPRISE,PEOPLEPLUS LTD,2033836191,"64,715"
Department for Work and Pensions,Housing Benefits,14/09/2015,HOUSING BENEFIT ADMINISTRATION,HB ENGLAND,NORTH LINCOLNSHIRE COUNCIL,2033844754,"64,348"
Department for Work and Pensions,Housing Benefits,14/09/2015,HOUSING BENEFIT ADMINISTRATION,HB ENGLAND,BURY METROPOLITAN BOROUGH COUNCIL,2033844828,"64,331"
Department for Work and Pensions,Employment Programmes,18/09/2015,WP JSA 25+ SUSTAINMENT OUTCOME PAYMENT,WWEG EP EAST OF ENGLAND INGEUS UK,INGEUS UK LTD,2033852983,"64,285"
Department for Work and Pensions,Housing Benefits,14/09/2015,HOUSING BENEFIT ADMINISTRATION,HB ENGLAND,TENDERING DISTRICT COUNCIL,2033844610,"64,217"
Department for Work and Pensions,Employment Programmes,16/09/2015,OUTCOME FEE,REMPLOY WORK CHOICE PAYMENTS,REMPLOY LTD,2033850071,"64,196"
Department for Work and Pensions,Housing Benefits,14/09/2015,HOUSING BENEFIT ADMINISTRATION,HB ENGLAND,BLACKBURN BOROUGH COUNCIL,2033844539,"64,154"
Department for Work and Pensions,Corporate,11/09/2015,RENEWALS OF SOFTWARE SUPPORT AND MAINTENANCE,CIO ITLR SOFTWARE P,SPECIALIST COMPUTER CENTRES PLC,2033843927,"64,141"
Department for Work and Pensions,Corporate,21/09/2015,TREDDS IS IT MGT CONSULTANCY NON ADVICE,CIO IT DIRECTOR & SUPPORT,HP ENTERPRISE SERVICES UK LTD,2033854946,"63,570"
Department for Work and Pensions,Corporate,15/09/2015,RENEWALS OF SOFTWARE SUPPORT AND MAINTENANCE,CIO ITLR HOSTING DEL P,HP ENTERPRISE SERVICES UK LTD,2033848465,"63,569"
Department for Work and Pensions,Housing Benefits,14/09/2015,HOUSING BENEFIT ADMINISTRATION,HB ENGLAND,IPSWICH BOROUGH COUNCIL,2033844605,"63,443"
Department for Work and Pensions,Corporate,15/09/2015,TREDDS APPS DEV MANDAYS,CHG VME CACS-R,HP ENTERPRISE SERVICES UK LTD,2033848465,"63,404"
Department for Work and Pensions,Employment Programmes,25/09/2015,WP JSA 25+ SUSTAINMENT OUTCOME PAYMENT,WWEG EP NORTH EAST INGEUS UK,INGEUS UK LTD,2033865532,"63,210"
Department for Work and Pensions,Housing Benefits,14/09/2015,HOUSING BENEFIT ADMINISTRATION,HB ENGLAND,BEDFORD BOROUGH COUNCIL,2033844571,"63,084"
Department for Work and Pensions,Corporate,30/09/2015,AR PRIME RECOVERIES,BALANCE SHEET,TELEREAL TRILLIUM,2033866044,"62,897"
Department for Work and Pensions,Corporate,14/09/2015,TREDDS APPS DEV MANDAYS,CHG VIRTUAL MACHINE ENVIRONMENT REPLACEMENT,HP ENTERPRISE SERVICES UK LTD,2033846244,"62,653"
Department for Work and Pensions,Employment Programmes,04/09/2015,WP JSA 25+ SUSTAINMENT OUTCOME PAYMENT,WWEG EP EAST MIDLANDS INGEUS UK,INGEUS UK LTD,2033834944,"62,350"
Department for Work and Pensions,Housing Benefits,14/09/2015,HOUSING BENEFIT ADMINISTRATION,HB SCOTLAND,WEST DUNBARTONSHIRE COUNCIL,2033844704,"62,227"
Department for Work and Pensions,Employment Programmes,25/09/2015,WP JSA 25+ SUSTAINMENT OUTCOME PAYMENT,WWEG EP EAST MIDLANDS INGEUS UK,INGEUS UK LTD,2033865532,"62,135"
Department for Work and Pensions,Corporate,22/09/2015,CONTRACTORS & STAFF SUBSTITUTIONS,CIO IT SECURITY & BUSINESS CONTINUITY,CAPITA BUSINESS SERVICES LTD,2033857825,"62,105"
Department for Work and Pensions,Corporate,14/09/2015,TREDDS APPS DEV FIXED PRICE CONTRACTS,CHG PIP IT PHASE 4,HP ENTERPRISE SERVICES UK LTD,2033846244,"62,089"
Department for Work and Pensions,Employment Programmes,22/09/2015,WP JSA 25+ SUSTAINMENT OUTCOME PAYMENT,WWEG EP EAST LONDON SEETEC,SEETEC BUSINESS TECHNOLOGY CENTRE LTD,2033857726,"61,705"
Department for Work and Pensions,Housing Benefits,14/09/2015,HOUSING BENEFIT ADMINISTRATION,HB ENGLAND,ISLE OF WIGHT COUNTY COUNCIL,2033844715,"61,671"
Department for Work and Pensions,Corporate,30/09/2015,PRIME FACILITY PRICE,FG CD CORBY DISCOVERY HOUSE,TELEREAL TRILLIUM,2033866042,"61,348"
Department for Work and Pensions,Corporate,11/09/2015,NON-TREDDS IS IT APPS DEV MANDAY,CIO CIS CORE,IBM UNITED KINGDOM LTD,2033842749,"61,237"
Department for Work and Pensions,Corporate,30/09/2015,PRIME FACILITY PRICE,FG CD PRESTON HOLBORN HOUSE,TELEREAL TRILLIUM,2033866042,"61,179"
Department for Work and Pensions,Corporate,14/09/2015,SOFTWARE LICENCES,F&C CD STRATEGY AND BUSINESS MANAGEMENT,SPECIALIST COMPUTER CENTRES PLC,2033845569,"60,859"
Department for Work and Pensions,Housing Benefits,14/09/2015,HOUSING BENEFIT ADMINISTRATION,HB ENGLAND,SLOUGH BOROUGH COUNCIL,2033844622,"60,734"
Department for Work and Pensions,Corporate,16/09/2015,STAFF TRAINING VAT RECOVERABLE,HR CONTRACTUAL L AND D,CAPITA CIVIL SERVICE LEARNING,2033850508,"60,563"
Department for Work and Pensions,Housing Benefits,14/09/2015,HOUSING BENEFIT ADMINISTRATION,HB SCOTLAND,FALKIRK DISTRICT COUNCIL,2033844836,"60,361"
Department for Work and Pensions,Corporate,09/09/2015,PUBLICITY ADVERTISING MEDIA,CHG UC STAKEHOLDER & PARTNERS,CARAT LTD,2033838809,"60,352"
Department for Work and Pensions,Corporate,01/09/2015,CONTRACTORS & STAFF SUBSTITUTIONS,CIO ADC DIRECTOR,CAPITA BUSINESS SERVICES LTD,2033829835,"60,106"
Department for Work and Pensions,Housing Benefits,14/09/2015,HOUSING BENEFIT ADMINISTRATION,HB ENGLAND,PRESTON BOROUGH COUNCIL,2033844518,"59,203"
Department for Work and Pensions,Housing Benefits,14/09/2015,HOUSING BENEFIT ADMINISTRATION,HB ENGLAND,COLCHESTER BOROUGH COUNCIL,2033844546,"59,136"
Department for Work and Pensions,Housing Benefits,14/09/2015,HOUSING BENEFIT ADMINISTRATION,HB WALES,BRIDGEND COUNTY BOROUGH COUNCIL,2033844721,"59,039"
Department for Work and Pensions,Employment Programmes,11/09/2015,WP JSA 25+ SUSTAINMENT OUTCOME PAYMENT,WWEG EP SCOTLAND WORKING LINKS,WORKING LINKS,2033842624,"58,910"
Department for Work and Pensions,Housing Benefits,14/09/2015,HOUSING BENEFIT ADMINISTRATION,HB SCOTLAND,EAST AYRSHIRE COUNCIL FINANCE DEPARTMENT,2033844477,"58,724"
Department for Work and Pensions,Corporate,30/09/2015,PRIME FACILITY PRICE,FG CD CLARKE HOUSE,TELEREAL TRILLIUM,2033866042,"58,660"
Department for Work and Pensions,Corporate,11/09/2015,IT Owned Additions Cost,CIO ITLR DESKTOP,SPECIALIST COMPUTER CENTRES PLC,2033843927,"58,550"
Department for Work and Pensions,Corporate,15/09/2015,POSTAGE,FG CD CENTRAL CONTRACTS,ROYAL MAIL GROUP PLC,2033848706,"58,508"
Department for Work and Pensions,Housing Benefits,14/09/2015,HOUSING BENEFIT ADMINISTRATION,HB ENGLAND,HARTLEPOOL BOROUGH COUNCIL,2033844462,"58,259"
Department for Work and Pensions,Employment Programmes,09/09/2015,OUTCOME FEE,REMPLOY WORK CHOICE PAYMENTS,REMPLOY LTD,2033839495,"58,224"
Department for Work and Pensions,Corporate,30/09/2015,STAFF TRAINING VAT RECOVERABLE,HR CONTRACTUAL L AND D,CAPITA CIVIL SERVICE LEARNING,2033867447,"58,078"
Department for Work and Pensions,Corporate,11/09/2015,NON-TREDDS IS IT APPS DEV MANDAY,CHG SCANNING & DIGITAL STORAGE,IBM UNITED KINGDOM LTD,2033842749,"57,930"
Department for Work and Pensions,Employment Programmes,04/09/2015,WP JSA 25+ SUSTAINMENT OUTCOME PAYMENT,WWEG EP NORTH WEST MERS HAL CUMB AND LANCS INGEUS UK,INGEUS UK LTD,2033834944,"57,835"
Department for Work and Pensions,Corporate,22/09/2015,CONTRACTORS & STAFF SUBSTITUTIONS,CIO UC CORE,CAPITA BUSINESS SERVICES LTD,2033857825,"57,721"
Department for Work and Pensions,Corporate,03/09/2015,PRINTING/BINDING,FG CD CORPORATE CHARGES,XEROX UK LTD 3W,2033831592,"57,676"
Department for Work and Pensions,Employment Programmes,04/09/2015,WP JSA 25+ SUSTAINMENT OUTCOME PAYMENT,WWEG EP NORTH EAST INGEUS UK,INGEUS UK LTD,2033834944,"57,620"
Department for Work and Pensions,Corporate,09/09/2015,CONTRACTED OUT ORIGINAL RESEARCH,STR ANALYSIS CAD,CENTRE FOR ECONOMIC & SOCIAL INCLUSION,2033838176,"57,579"
Department for Work and Pensions,Corporate,25/09/2015,COST VARIANCE ACCOUNT,CHG DEPARTMENTAL & BUSINESS STRATEGY,PA CONSULTING SERVICES LTD,2033864376,"57,250"
Department for Work and Pensions,Housing Benefits,14/09/2015,HOUSING BENEFIT ADMINISTRATION,HB ENGLAND,SOLIHULL METROPOLITAN BOROUGH COUNCIL,2033844600,"57,136"
Department for Work and Pensions,Employment Programmes,18/09/2015,WP JSA 25+ SUSTAINMENT OUTCOME PAYMENT,WWEG EP EAST MIDLANDS INGEUS UK,INGEUS UK LTD,2033852983,"56,330"
Department for Work and Pensions,Employment Programmes,25/09/2015,WP JSA 25+ SUSTAINMENT OUTCOME PAYMENT,WWEG EP WEST LONDON INGEUS UK,INGEUS UK LTD,2033865532,"56,115"
Department for Work and Pensions,Housing Benefits,14/09/2015,HOUSING BENEFIT ADMINISTRATION,HB ENGLAND,BATH & NORTH EAST SOMERSET COUNCIL,2033844568,"55,833"
Department for Work and Pensions,Employment Programmes,16/09/2015,RESIDENTIAL TRAINING COSTS,WWEG EP DELIVERY WELFARE TO WORK PRODUCT SUPPORT,DONCASTER DEAF TRUST,2033849876,"55,277"
Department for Work and Pensions,Housing Benefits,14/09/2015,HOUSING BENEFIT ADMINISTRATION,HB ENGLAND,SWALE BOROUGH COUNCIL,2033844743,"55,233"
Department for Work and Pensions,Employment Programmes,25/09/2015,WP JSA 25+ SUSTAINMENT OUTCOME PAYMENT,WWEG EP W MIDLANDS COV WARW STAFFS AND MARCHES SERCO,SERCO LTD,2033864563,"55,040"
Department for Work and Pensions,Corporate,15/09/2015,RENEWALS OF SOFTWARE SUPPORT AND MAINTENANCE,CIO NISSA OGD,SPECIALIST COMPUTER CENTRES PLC,2033847092,"54,959"
Department for Work and Pensions,Housing Benefits,14/09/2015,HOUSING BENEFIT ADMINISTRATION,HB ENGLAND,CITY OF YORK COUNCIL,2033844748,"54,875"
Department for Work and Pensions,Employment Programmes,18/09/2015,WP JSA 25+ SUSTAINMENT OUTCOME PAYMENT,WWEG EP SCOTLAND INGEUS UK,INGEUS UK LTD,2033852983,"54,610"
Department for Work and Pensions,Employment Programmes,11/09/2015,WP JSA 25+ SUSTAINMENT OUTCOME PAYMENT,WWEG EP SCOTLAND INGEUS UK,INGEUS UK LTD,2033842738,"54,395"
Department for Work and Pensions,Employment Programmes,15/09/2015,OUTCOME FEE,REMPLOY WORK CHOICE PAYMENTS,REMPLOY LTD,2033847279,"53,745"
Department for Work and Pensions,Housing Benefits,14/09/2015,HOUSING BENEFIT ADMINISTRATION,HB ENGLAND,SOUTH SOMERSET DISTRICT COUNCIL,2033844554,"53,420"
Department for Work and Pensions,Housing Benefits,14/09/2015,HOUSING BENEFIT ADMINISTRATION,HB ENGLAND,OXFORD CITY COUNCIL,2033844791,"53,306"
Department for Work and Pensions,Housing Benefits,14/09/2015,HOUSING BENEFIT ADMINISTRATION,HB ENGLAND,GREAT YARMOUTH COUNCIL,2033844640,"52,915"
Department for Work and Pensions,Housing Benefits,14/09/2015,HOUSING BENEFIT ADMINISTRATION,HB ENGLAND,HASTINGS BOROUGH COUNCIL,2033844719,"52,811"
Department for Work and Pensions,Housing Benefits,14/09/2015,HOUSING BENEFIT ADMINISTRATION,HB ENGLAND,ARUN DISTRICT COUNCIL,2033844500,"52,782"
Department for Work and Pensions,Housing Benefits,14/09/2015,HOUSING BENEFIT ADMINISTRATION,HB ENGLAND,HEREFORDSHIRE COUNCIL,2033844795,"52,424"
Department for Work and Pensions,Employment Programmes,16/09/2015,RESIDENTIAL TRAINING COSTS,WWEG EP DELIVERY WELFARE TO WORK PRODUCT SUPPORT,RNIB,2033850251,"52,391"
Department for Work and Pensions,Corporate,14/09/2015,TREDDS APPS DEV MANDAYS,CHG STATE PENSION REFORM 2,HP ENTERPRISE SERVICES UK LTD,2033846244,"52,341"
Department for Work and Pensions,Housing Benefits,14/09/2015,HOUSING BENEFIT ADMINISTRATION,HB ENGLAND,EAST LINDSEY DISTRICT COUNCIL,2033844548,"52,072"
Department for Work and Pensions,Corporate,15/09/2015,TREDDS IS IT CONSULTANCY (HOSTING) NON ADVICE,CHG CUSTOMER INFORMATION SYSTEM REMEDIATION,HP ENTERPRISE SERVICES UK LTD,2033848465,"52,065"
Department for Work and Pensions,Housing Benefits,14/09/2015,HOUSING BENEFIT ADMINISTRATION,HB ENGLAND,SCARBOROUGH BOROUGH COUNCIL,2033844753,"51,824"
Department for Work and Pensions,Housing Benefits,14/09/2015,HOUSING BENEFIT ADMINISTRATION,HB SCOTLAND,PERTH & KINROSS COUNCIL,2033844755,"51,796"
Department for Work and Pensions,Corporate,04/09/2015,CONTRACTED OUT OFFICE SERVICES,HR DWP GENERAL FAST STREAM,HM REVENUE & CUSTOMS,2005680,"51,600"
Department for Work and Pensions,Housing Benefits,14/09/2015,HOUSING BENEFIT ADMINISTRATION,HB ENGLAND,GLOUCESTER CITY COUNCIL,2033844674,"51,571"
Department for Work and Pensions,Employment Programmes,10/09/2015,ACCESS TO WORK - PAYMENT FOR SUPPORT WORKERS,WWEG EP LONDON REGION,GENERATE,2033841316,"51,398"
Department for Work and Pensions,Employment Programmes,09/09/2015,WP JSA 25+ SUSTAINMENT OUTCOME PAYMENT,WWEG EP EAST LONDON CAREERS DEVELOPMENT GROUP,CAREERS DEVELOPMENT GROUP,2033839609,"51,170"
Department for Work and Pensions,Employment Programmes,25/09/2015,WP JSA 25+ SUSTAINMENT OUTCOME PAYMENT,WWEG EP W MIDLANDS BIRM SOL BC FOURSTAR EMP AND SKILLS,PEOPLEPLUS GROUP LTD,2033865123,"51,170"
Department for Work and Pensions,Housing Benefits,14/09/2015,HOUSING BENEFIT ADMINISTRATION,HB ENGLAND,BASINGSTOKE DISTRICT COUNCIL,2033844634,"50,846"
Department for Work and Pensions,Employment Programmes,25/09/2015,WP JSA 25+ SUSTAINMENT OUTCOME PAYMENT,WWEG EP WEST YORKSHIRE INGEUS UK,INGEUS UK LTD,2033865532,"50,740"
Department for Work and Pensions,Housing Benefits,14/09/2015,HOUSING BENEFIT ADMINISTRATION,HB ENGLAND,LONDON BOROUGH OF RICHMOND UPON THAMES,2033844656,"50,648"
Department for Work and Pensions,Housing Benefits,14/09/2015,HOUSING BENEFIT ADMINISTRATION,HB ENGLAND,KINGS LYNN & WEST NORFOLK BOROUGH COUNCIL,2033844641,"50,606"
Department for Work and Pensions,Housing Benefits,14/09/2015,HOUSING BENEFIT ADMINISTRATION,HB ENGLAND,CRAWLEY BOROUGH COUNCIL,2033844762,"50,563"
Department for Work and Pensions,Corporate,15/09/2015,TREDDS APPS DEV MANDAYS,CMG CPRG CMG PORTFOLIO - HPES COSTS,HP ENTERPRISE SERVICES UK LTD,2033848465,"50,431"
Department for Work and Pensions,Housing Benefits,14/09/2015,HOUSING BENEFIT ADMINISTRATION,HB SCOTLAND,INVERCLYDE DISTRICT COUNCIL,2033844476,"50,176"
Department for Work and Pensions,Employment Programmes,21/09/2015,SUSTAINMENT FEE,REMPLOY WORK CHOICE PAYMENTS,REMPLOY LTD,2033855480,"50,134"
Department for Work and Pensions,Employment Programmes,23/09/2015,SUSTAINMENT FEE,REMPLOY WORK CHOICE PAYMENTS,REMPLOY LTD,2033858961,"50,134"
Department for Work and Pensions,Employment Programmes,04/09/2015,WP JSA 25+ SUSTAINMENT OUTCOME PAYMENT,WWEG EP WEST YORKSHIRE INGEUS UK,INGEUS UK LTD,2033834944,"50,095"
Department for Work and Pensions,Corporate,01/09/2015,FSF - PARTNERSHIP GRANTS - TO HELP JSA CLIENTS INTO WORK,OPS WDC WSD NW BLACKBURN ORCHARD HOUSE JOBCENTRE PLUS,BLACKBURN COLLEGE,1007344,"49,995"
Department for Work and Pensions,Employment Programmes,18/09/2015,WP JSA 25+ SUSTAINMENT OUTCOME PAYMENT,WWEG EP NORTH WEST MERS HAL CUMB AND LANCS INGEUS UK,INGEUS UK LTD,2033852983,"49,880"
Department for Work and Pensions,Employment Programmes,07/09/2015,WP JSA 25+ SUSTAINMENT OUTCOME PAYMENT,WWEG EP NORTH EAST AVANTA ENTERPRISE,PEOPLEPLUS LTD,2033836191,"49,665"
Department for Work and Pensions,Housing Benefits,14/09/2015,HOUSING BENEFIT ADMINISTRATION,HB ENGLAND,DACORUM BOROUGH COUNCIL,2033844789,"49,601"
Department for Work and Pensions,Housing Benefits,14/09/2015,HOUSING BENEFIT ADMINISTRATION,HB ENGLAND,WAVENEY DISTRICT COUNCIL,2033844732,"49,545"
Department for Work and Pensions,Corporate,24/09/2015,NON-TREDDS IS IT SERVICES (HOSTING),CIO CTO SECURITY,AKAMAI TECHNOLOGIES,2033862397,"49,329"
Department for Work and Pensions,Corporate,09/09/2015,PRIME UNAVOIDABLE COSTS (UAC),CHG ESTATES RATIONALISATION FORMER JCP OPS,TELEREAL TRILLIUM,2033839933,"49,144"
Department for Work and Pensions,Housing Benefits,14/09/2015,HOUSING BENEFIT ADMINISTRATION,HB ENGLAND,ASHFIELD DISTRICT COUNCIL,2033844602,"49,075"
Department for Work and Pensions,Housing Benefits,14/09/2015,HOUSING BENEFIT ADMINISTRATION,HB ENGLAND,LANCASTER CITY COUNCIL,2033844822,"49,034"
Department for Work and Pensions,Employment Programmes,25/09/2015,WP JSA 25+ SUSTAINMENT OUTCOME PAYMENT,WWEG EP WEST LONDON MAXIMUS EMPLOYMENT UK,MAXIMUS HEALTH & HUMAN SERVICES LTD,2033865538,"49,020"
Department for Work and Pensions,Corporate,11/09/2015,NON-TREDDS IS IT APPS DEV MANDAY,CIO INFRASTRUCTURE & SERVICE REMEDIATION,IBM UNITED KINGDOM LTD,2033842749,"49,015"
Department for Work and Pensions,Employment Programmes,18/09/2015,WP JSA 25+ SUSTAINMENT OUTCOME PAYMENT,WWEG EP NORTH WEST MERS HAL CUMB AND LANCS A4E,PEOPLEPLUS GROUP,2033853550,"48,805"
Department for Work and Pensions,Housing Benefits,14/09/2015,HOUSING BENEFIT ADMINISTRATION,HB ENGLAND,DARLINGTON BOROUGH COUNCIL,2033844552,"48,495"
Department for Work and Pensions,Corporate,30/09/2015,IT Owned Additions Cost,CHG UC DESIGN & BUILD PROGRAMME MANAGER,SPECIALIST COMPUTER CENTRES PLC,2033866458,"48,437"
Department for Work and Pensions,Housing Benefits,14/09/2015,HOUSING BENEFIT ADMINISTRATION,HB ENGLAND,BRAINTREE DISTRICT COUNCIL,2033844459,"48,335"
Department for Work and Pensions,Housing Benefits,14/09/2015,HOUSING BENEFIT ADMINISTRATION,HB ENGLAND,POOLE BOROUGH COUNCIL,2033844558,"48,063"
Department for Work and Pensions,Employment Programmes,04/09/2015,WP JSA 25+ SUSTAINMENT OUTCOME PAYMENT,WWEG EP WEST LONDON INGEUS UK,INGEUS UK LTD,2033834944,"47,945"
Department for Work and Pensions,Housing Benefits,14/09/2015,HOUSING BENEFIT ADMINISTRATION,HB ENGLAND,BURNLEY BOROUGH COUNCIL,2033844595,"47,914"
Department for Work and Pensions,Housing Benefits,14/09/2015,HOUSING BENEFIT ADMINISTRATION,HB ENGLAND,HUNTINGDON DISTRICT COUNCIL,2033844783,"47,907"
Department for Work and Pensions,Housing Benefits,14/09/2015,HOUSING BENEFIT ADMINISTRATION,HB ENGLAND,CHESTERFIELD BOROUGH COUNCIL,2033844464,"47,732"
Department for Work and Pensions,Employment Programmes,10/09/2015,WP JSA 25+ SUSTAINMENT OUTCOME PAYMENT,WWEG EP NORTH WEST GM CHES AND WARR SEETEC,SEETEC BUSINESS TECHNOLOGY CENTRE LTD,2033841777,"47,730"
Department for Work and Pensions,Housing Benefits,14/09/2015,HOUSING BENEFIT ADMINISTRATION,HB WALES,WREXHAM COUNTY BOROUGH COUNCIL,2033844594,"47,676"
Department for Work and Pensions,Housing Benefits,14/09/2015,HOUSING BENEFIT ADMINISTRATION,HB SCOTLAND,SOUTH AYRSHIRE COUNCIL,2033844505,"47,586"
Department for Work and Pensions,Housing Benefits,14/09/2015,HOUSING BENEFIT ADMINISTRATION,HB ENGLAND,ROYAL BOROUGH OF KINGSTON UPON THAMES,2033844650,"47,542"
Department for Work and Pensions,Employment Programmes,04/09/2015,WP JSA 25+ SUSTAINMENT OUTCOME PAYMENT,WWEG EP EAST LONDON A4E,PEOPLEPLUS GROUP,2033833425,"47,300"
Department for Work and Pensions,Employment Programmes,18/09/2015,WP JSA 25+ SUSTAINMENT OUTCOME PAYMENT,WWEG EP NORTH EAST INGEUS UK,INGEUS UK LTD,2033852983,"47,300"
Department for Work and Pensions,Corporate,11/09/2015,NON-TREDDS IS IT APPS DEV MANDAY,CIO CIS DEVELOPMENT,IBM UNITED KINGDOM LTD,2033842749,"47,286"
Department for Work and Pensions,Corporate,15/09/2015,POSTAGE,OPS BEN DD SERVICE CENTRE 5 - SPECIALIST OPERATIONS,ROYAL MAIL GROUP PLC,2033848706,"47,179"
Department for Work and Pensions,Housing Benefits,14/09/2015,HOUSING BENEFIT ADMINISTRATION,HB ENGLAND,HARLOW DISTRICT COUNCIL,2033844786,"47,029"
Department for Work and Pensions,Employment Programmes,25/09/2015,WP JSA 25+ SUSTAINMENT OUTCOME PAYMENT,WWEG EP SOUTH EAST TV HANTS AND IOW A4E,PEOPLEPLUS GROUP,2033864130,"46,870"
Department for Work and Pensions,Housing Benefits,14/09/2015,HOUSING BENEFIT ADMINISTRATION,HB ENGLAND,CANTERBURY CITY COUNCIL,2033844717,"46,806"
Department for Work and Pensions,Corporate,11/09/2015,NON-TREDDS IS IT SERVICES (HOSTING),CHG UC DIGITAL SERVICES-RECURRENT,SPECIALIST COMPUTER CENTRES PLC,2033843927,"46,784"
Department for Work and Pensions,Housing Benefits,14/09/2015,HOUSING BENEFIT ADMINISTRATION,HB ENGLAND,EXETER CITY COUNCIL,2033844515,"46,690"
Department for Work and Pensions,Corporate,15/09/2015,TREDDS APPS DEV MANDAYS,CHG ESA REFORMS,HP ENTERPRISE SERVICES UK LTD,2033848465,"46,658"
Department for Work and Pensions,Housing Benefits,14/09/2015,HOUSING BENEFIT ADMINISTRATION,HB ENGLAND,MAIDSTONE BOROUGH COUNCIL,2033844740,"46,548"
Department for Work and Pensions,Employment Programmes,11/09/2015,WP JSA 25+ SUSTAINMENT OUTCOME PAYMENT,WWEG EP NORTH EAST INGEUS UK,INGEUS UK LTD,2033842738,"46,440"
Department for Work and Pensions,Employment Programmes,04/09/2015,WP JSA 25+ SUSTAINMENT OUTCOME PAYMENT,WWEG EP W MIDLANDS BIRM SOL BC FOURSTAR EMP AND SKILLS,PEOPLEPLUS GROUP LTD,2033834778,"46,440"
Department for Work and Pensions,Corporate,17/09/2015,VOCA Charges,FG FIN CONT COBAP BANKING,VOCALINK,2033851135,"46,376"
Department for Work and Pensions,Corporate,22/09/2015,CONTRACTORS & STAFF SUBSTITUTIONS,CIO ADC DIRECTOR,CAPITA BUSINESS SERVICES LTD,2033857825,"46,336"
Department for Work and Pensions,Corporate,14/09/2015,AMS SERVICES,CIO ITLR AMS,HP ENTERPRISE SERVICES UK LTD,2033846244,"46,302"
Department for Work and Pensions,Housing Benefits,14/09/2015,HOUSING BENEFIT ADMINISTRATION,HB ENGLAND,NUNEATON BOROUGH COUNCIL,2033844735,"46,255"
Department for Work and Pensions,Employment Programmes,25/09/2015,WP JSA 25+ SUSTAINMENT OUTCOME PAYMENT,WWEG EP SOUTH EAST TV HANTS AND IOW MAXIMUS EMPLOYMENT,MAXIMUS HEALTH & HUMAN SERVICES LTD,2033865538,"46,010"
Department for Work and Pensions,Housing Benefits,14/09/2015,HOUSING BENEFIT ADMINISTRATION,HB ENGLAND,SHEPWAY DISTRICT COUNCIL,2033844825,"45,985"
Department for Work and Pensions,Employment Programmes,07/09/2015,WP JSA 25+ SUSTAINMENT OUTCOME PAYMENT,WWEG EP WEST LONDON MAXIMUS EMPLOYMENT UK,MAXIMUS HEALTH & HUMAN SERVICES LTD,2033835927,"45,795"
Department for Work and Pensions,Housing Benefits,14/09/2015,HOUSING BENEFIT ADMINISTRATION,HB ENGLAND,DOVER DISTRICT COUNCIL,2033844739,"45,736"
Department for Work and Pensions,Employment Programmes,15/09/2015,WP JSA 25+ SUSTAINMENT OUTCOME PAYMENT,WWEG EP EAST OF ENGLAND SEETEC,SEETEC BUSINESS TECHNOLOGY CENTRE LTD,2033848469,"45,365"
Department for Work and Pensions,Corporate,23/09/2015,NON-TREDDS IS IT SERVICES (HOSTING),CIO CTO SECURITY,AKAMAI TECHNOLOGIES,2033859681,"45,323"
Department for Work and Pensions,Housing Benefits,14/09/2015,HOUSING BENEFIT ADMINISTRATION,HB ENGLAND,MANSFIELD DISTRICT COUNCIL,2033844465,"45,244"
Department for Work and Pensions,Housing Benefits,14/09/2015,HOUSING BENEFIT ADMINISTRATION,HB ENGLAND,CHELMSFORD BOROUGH COUNCIL,2033844587,"45,224"
Department for Work and Pensions,Corporate,10/09/2015,CONTRACTED OUT OFFICE SERVICES,FG OPS FIN DM ENFORCEMENT,AKINIKA,2033842321,"45,224"
Department for Work and Pensions,Corporate,08/09/2015,NON PRIME PROPERTY COSTS,FG CD OPS & CMG ESTATES NON-PRIME COSTS,COPELAND BOROUGH COUNCIL,2033837411,"45,167"
Department for Work and Pensions,Corporate,15/09/2015,ADEP AM SERVICES - VAT NON-RECOVERABLE,CHG UC DESIGN & BUILD PROGRAMME MANAGER,IBM UNITED KINGDOM LTD,2033847860,"44,791"
Department for Work and Pensions,Housing Benefits,14/09/2015,HOUSING BENEFIT ADMINISTRATION,HB WALES,PEMBROKESHIRE COUNTY COUNCIL,2033844549,"44,736"
Department for Work and Pensions,Corporate,08/09/2015,PROFESSIONAL SERVICES NON VAT RECOVERABLE,OPS OPE CMG RELATIONSHIP SUPPORT,CHILDREN 1ST,2033837818,"44,529"
Department for Work and Pensions,Corporate,17/09/2015,AGENCY PAYMENTS TO LOCAL AUTHORITIES & PARTNERSHIPS,OPS WDC WSD NE NORTHUMBRIA TYNE AND WEAR DISTRICT OFFICE,NEWCASTLE CITY COUNCIL,2033852708,"44,426"
Department for Work and Pensions,Housing Benefits,14/09/2015,HOUSING BENEFIT ADMINISTRATION,HB SCOTLAND,SCOTTISH BORDERS COUNCIL,2033844824,"44,370"
Department for Work and Pensions,Employment Programmes,18/09/2015,WP JSA 25+ SUSTAINMENT OUTCOME PAYMENT,WWEG EP EAST MIDLANDS A4E,PEOPLEPLUS GROUP,2033853550,"44,290"
Department for Work and Pensions,Employment Programmes,07/09/2015,WP JSA 25+ SUSTAINMENT OUTCOME PAYMENT,WWEG EP SOUTH EAST TV HANTS AND IOW MAXIMUS EMPLOYMENT,MAXIMUS HEALTH & HUMAN SERVICES LTD,2033835927,"44,290"
Department for Work and Pensions,Housing Benefits,14/09/2015,HOUSING BENEFIT ADMINISTRATION,HB WALES,FLINTSHIRE COUNTY COUNCIL,2033844502,"44,226"
Department for Work and Pensions,Employment Programmes,16/09/2015,RESIDENTIAL TRAINING COSTS,WWEG EP DELIVERY WELFARE TO WORK PRODUCT SUPPORT,ENHAM,2033849122,"44,130"
Department for Work and Pensions,Housing Benefits,14/09/2015,HOUSING BENEFIT ADMINISTRATION,HB ENGLAND,WYCOMBE DISTRICT COUNCIL,2033844781,"44,015"
Department for Work and Pensions,Corporate,24/09/2015,SOFTWARE LICENCES,CHG UC DESIGN & BUILD PROGRAMME MANAGER,SPECIALIST COMPUTER CENTRES PLC,2033862087,"44,002"
Department for Work and Pensions,Housing Benefits,14/09/2015,HOUSING BENEFIT ADMINISTRATION,HB ENGLAND,EASTBOURNE BOROUGH COUNCIL,2033844562,"43,874"
Department for Work and Pensions,Employment Programmes,25/09/2015,WP JSA 25+ SUSTAINMENT OUTCOME PAYMENT,WWEG EP EAST LONDON SEETEC,SEETEC BUSINESS TECHNOLOGY CENTRE LTD,2033864675,"43,860"
Department for Work and Pensions,Employment Programmes,04/09/2015,WP JSA 25+ SUSTAINMENT OUTCOME PAYMENT,WWEG EP EAST MIDLANDS A4E,PEOPLEPLUS GROUP,2033833425,"43,860"
Department for Work and Pensions,Corporate,04/09/2015,TREDDS APPS DEV MANDAYS,CMG CPRG CMG PORTFOLIO - HPES COSTS,HP ENTERPRISE SERVICES UK LTD,2033834997,"43,844"
Department for Work and Pensions,Corporate,30/09/2015,PRIME FACILITY PRICE,FG CD TOMLINSON HOUSE,TELEREAL TRILLIUM,2033866042,"43,790"
Department for Work and Pensions,Corporate,10/09/2015,RECURRENT PUBLICITY,CIO CENTRAL MISCELLANANEOUS,LINKED IN,1007363,"43,625"
Department for Work and Pensions,Housing Benefits,14/09/2015,HOUSING BENEFIT ADMINISTRATION,HB SCOTLAND,ANGUS COUNCIL,2033844816,"43,406"
Department for Work and Pensions,Housing Benefits,14/09/2015,HOUSING BENEFIT ADMINISTRATION,HB ENGLAND,LINCOLN CITY COUNCIL,2033844614,"43,396"
Department for Work and Pensions,Employment Programmes,07/09/2015,ACCESS TO WORK - PAYMENT FOR SUPPORT WORKERS,WWEG EP LONDON REGION,SOUTH WEST LONDON & ST GEORGES NHS TRUST,2033835786,"43,179"
Department for Work and Pensions,Corporate,15/09/2015,POSTAGE,FG HS HDAS NON CONTRACT,ROYAL MAIL GROUP PLC,2033848706,"43,175"
Department for Work and Pensions,Corporate,15/09/2015,SOFTWARE LICENCES GREATER THAN ONE YEAR TERM,CIO INFRASTRUCTURE & SERVICE REMEDIATION,SPECIALIST COMPUTER CENTRES PLC,2033847092,"42,900"
Department for Work and Pensions,Housing Benefits,14/09/2015,HOUSING BENEFIT ADMINISTRATION,HB ENGLAND,BRECKLAND DISTRICT COUNCIL,2033844617,"42,890"
Department for Work and Pensions,Housing Benefits,14/09/2015,HOUSING BENEFIT ADMINISTRATION,HB ENGLAND,AYLESBURY VALE DISTRICT COUNCIL,2033844778,"42,877"
Department for Work and Pensions,Housing Benefits,14/09/2015,HOUSING BENEFIT ADMINISTRATION,HB ENGLAND,NORTH HERTFORDSHIRE DISTRICT COUNCIL,2033844651,"42,768"
Department for Work and Pensions,Corporate,14/09/2015,CONTRACTORS & STAFF SUBSTITUTIONS,CIO UC CORE,CAPITA BUSINESS SERVICES LTD,2033845752,"42,665"
Department for Work and Pensions,Corporate,30/09/2015,PROFESSIONAL SERVICES NON VAT RECOVERABLE,CMG OPS EXTERNAL CONTRACTS/SLAS TRACE,EXPERIAN LTD,2033867084,"42,625"
Department for Work and Pensions,Employment Programmes,07/09/2015,WP JSA 25+ SUSTAINMENT OUTCOME PAYMENT,WWEG EP NORTH WEST GM CHES AND WARR G4S,G4S REGIONAL MANAGEMENT UK & I LTD,2033836361,"42,570"
Department for Work and Pensions,Employment Programmes,11/09/2015,WP JSA 25+ SUSTAINMENT OUTCOME PAYMENT,WWEG EP NORTH WEST MERS HAL CUMB AND LANCS INGEUS UK,INGEUS UK LTD,2033842738,"42,570"
Department for Work and Pensions,Housing Benefits,14/09/2015,HOUSING BENEFIT ADMINISTRATION,HB WALES,CONWY COUNTY BOROUGH  COUNCIL,2033844723,"42,422"
Department for Work and Pensions,Employment Programmes,11/09/2015,ACCESS TO WORK - PAYMENT FOR SUPPORT WORKERS,WWEG EP NORTH WEST,UNIVERSITY OF CENTRAL LANCASHIRE,2033843668,"42,348"
Department for Work and Pensions,Employment Programmes,15/09/2015,SUSTAINMENT FEE,REMPLOY WORK CHOICE PAYMENTS,REMPLOY LTD,2033847279,"42,218"
Department for Work and Pensions,Employment Programmes,10/09/2015,ACCESS TO WORK - PAYMENT FOR SUPPORT WORKERS,WWEG EP NORTH WEST,SIGN COMMUNICATIONS,2033841432,"42,205"
Department for Work and Pensions,Employment Programmes,25/09/2015,WP JSA 25+ SUSTAINMENT OUTCOME PAYMENT,WWEG EP EAST LONDON CAREERS DEVELOPMENT GROUP,CAREERS DEVELOPMENT GROUP,2033864156,"42,140"
Department for Work and Pensions,Employment Programmes,15/09/2015,WP JSA 25+ SUSTAINMENT OUTCOME PAYMENT,WWEG EP EAST LONDON SEETEC,SEETEC BUSINESS TECHNOLOGY CENTRE LTD,2033848469,"42,140"
Department for Work and Pensions,Corporate,21/09/2015,AGENCY PAYMENTS TO LOCAL AUTHORITIES & PARTNERSHIPS,OPS WDC WSD LN USDL,LONDON BOROUGH OF LAMBETH,2033854976,"42,104"
Department for Work and Pensions,Employment Programmes,04/09/2015,Youth Contract Wage Incentive Payment,WWEG EP JCP WAGE INCENTIVES,INCOMMUNITIES GROUP LTD,2033835366,"42,088"
Department for Work and Pensions,Housing Benefits,14/09/2015,HOUSING BENEFIT ADMINISTRATION,HB WALES,POWYS COUNTY COUNCIL,2033844793,"42,086"
Department for Work and Pensions,Housing Benefits,14/09/2015,HOUSING BENEFIT ADMINISTRATION,HB WALES,GWYNEDD COUNCIL,2033844654,"42,026"
Department for Work and Pensions,Housing Benefits,14/09/2015,HOUSING BENEFIT ADMINISTRATION,HB ENGLAND,CHARNWOOD BOROUGH COUNCIL,2033844702,"42,003"
Department for Work and Pensions,Corporate,10/09/2015,CONTRACTED OUT OFFICE SERVICES,FG OPS FIN DEBT OPS INVESTMENT,INDESSER,2033841698,"41,977"
Department for Work and Pensions,Housing Benefits,14/09/2015,HOUSING BENEFIT ADMINISTRATION,HB ENGLAND,TEIGNBRIDGE DISTRICT COUNCIL,2033844788,"41,767"
Department for Work and Pensions,Employment Programmes,11/09/2015,WP JSA 25+ SUSTAINMENT OUTCOME PAYMENT,WWEG EP NORTH WEST MERS HAL CUMB AND LANCS A4E,PEOPLEPLUS GROUP,2033842746,"41,710"
Department for Work and Pensions,Corporate,03/09/2015,NON-TREDDS IS IT SERVICES (HOSTING),CIO GG DEVELOPMENT,DELL CORPORATION LTD,2033831917,"41,606"
Department for Work and Pensions,Corporate,08/09/2015,CONTRACTORS & STAFF SUBSTITUTIONS,CIO COO IT DIRECTOR,CAPITA BUSINESS SERVICES LTD,2033836869,"41,582"
Department for Work and Pensions,Corporate,22/09/2015,CONTRACTORS & STAFF SUBSTITUTIONS,CIO IT INFORMATION DATA SERVICES,CAPITA BUSINESS SERVICES LTD,2033857825,"41,535"
Department for Work and Pensions,Housing Benefits,14/09/2015,HOUSING BENEFIT ADMINISTRATION,HB ENGLAND,SEDGEMOOR DISTRICT COUNCIL,2033844479,"41,511"
Department for Work and Pensions,Employment Programmes,11/09/2015,WP JSA 25+ SUSTAINMENT OUTCOME PAYMENT,WWEG EP EAST LONDON A4E,PEOPLEPLUS GROUP,2033842746,"41,495"
Department for Work and Pensions,Employment Programmes,30/09/2015,WP JSA 25+ SUSTAINMENT OUTCOME PAYMENT,WWEG EP WALES WORKING LINKS WALES,WORKING LINKS,2033867512,"41,495"
Department for Work and Pensions,Employment Programmes,07/09/2015,WP JSA 25+ SUSTAINMENT OUTCOME PAYMENT,WWEG EP WALES REHAB JOB FIT,REHAB JOBFIT LLP,2033835458,"41,280"
Department for Work and Pensions,Corporate,01/09/2015,CONTRACTORS & STAFF SUBSTITUTIONS,CIO COO IT DIRECTOR,CAPITA BUSINESS SERVICES LTD,2033829835,"41,270"
Department for Work and Pensions,Corporate,22/09/2015,NON-TREDDS IS IT APPS DEV MANDAY,CHG UC PATHFINDER RECURRENT COSTS,ACCENTURE UK LTD,2033857086,"41,178"
Department for Work and Pensions,Housing Benefits,14/09/2015,HOUSING BENEFIT ADMINISTRATION,HB WALES,TORFAEN BOROUGH COUNCIL,2033844811,"41,105"
Department for Work and Pensions,Housing Benefits,14/09/2015,HOUSING BENEFIT ADMINISTRATION,HB ENGLAND,WYRE BOROUGH COUNCIL,2033844820,"41,074"
Department for Work and Pensions,Employment Programmes,07/09/2015,WP JSA 25+ SUSTAINMENT OUTCOME PAYMENT,WWEG EP WEST LONDON REED IN PARTNERSHIP,REED IN PARTNERSHIP LTD,2033835452,"41,065"
Department for Work and Pensions,Housing Benefits,14/09/2015,HOUSING BENEFIT ADMINISTRATION,HB ENGLAND,WELWYN HATFIELD DISTRICT COUNCIL,2033844690,"40,914"
Department for Work and Pensions,Employment Programmes,14/09/2015,WP JSA 25+ SUSTAINMENT OUTCOME PAYMENT,WWEG EP EAST LONDON CAREERS DEVELOPMENT GROUP,CAREERS DEVELOPMENT GROUP,2033846810,"40,850"
Department for Work and Pensions,Corporate,11/09/2015,COURIER COSTS,FG CD COURIER,TNT UK LTD,2033844116,"40,830"
Department for Work and Pensions,Corporate,29/09/2015,BAILIFF TRACE,CMG OPS EXTERNAL CONTRACTS/SLAS HMRC TRACE,HM REVENUE & CUSTOMS,2005718,"40,797"
Department for Work and Pensions,Employment Programmes,11/09/2015,WP JSA 25+ SUSTAINMENT OUTCOME PAYMENT,WWEG EP EAST MIDLANDS A4E,PEOPLEPLUS GROUP,2033842746,"40,635"
Department for Work and Pensions,Employment Programmes,04/09/2015,WP JSA 25+ SUSTAINMENT OUTCOME PAYMENT,WWEG EP EAST LONDON CAREERS DEVELOPMENT GROUP,CAREERS DEVELOPMENT GROUP,2033834299,"40,420"
Department for Work and Pensions,Employment Programmes,18/09/2015,WP JSA 25+ SUSTAINMENT OUTCOME PAYMENT,WWEG EP WEST YORKSHIRE INGEUS UK,INGEUS UK LTD,2033852983,"40,420"
Department for Work and Pensions,Housing Benefits,14/09/2015,HOUSING BENEFIT ADMINISTRATION,HB ENGLAND,PENDLE BOROUGH COUNCIL,2033844720,"40,402"
Department for Work and Pensions,Housing Benefits,14/09/2015,HOUSING BENEFIT ADMINISTRATION,HB ENGLAND,BASSETLAW DISTRICT COUNCIL,2033844507,"40,399"
Department for Work and Pensions,Housing Benefits,14/09/2015,HOUSING BENEFIT ADMINISTRATION,HB ENGLAND,NEWCASTLE UNDER LYME BOROUGH COUNCIL,2033844578,"40,336"
Department for Work and Pensions,Housing Benefits,14/09/2015,HOUSING BENEFIT ADMINISTRATION,HB ENGLAND,HYNDBURN BOROUGH COUNCIL,2033844541,"40,308"
Department for Work and Pensions,Housing Benefits,14/09/2015,HOUSING BENEFIT ADMINISTRATION,HB ENGLAND,SOUTH KESTEVEN DISTRICT COUNCIL,2033844615,"40,153"
Department for Work and Pensions,Housing Benefits,14/09/2015,HOUSING BENEFIT ADMINISTRATION,HB ENGLAND,CAMBRIDGE CITY COUNCIL,2033844823,"40,039"
Department for Work and Pensions,Corporate,23/09/2015,FSF - PARTNERSHIP GRANTS - TO HELP JSA CLIENTS INTO WORK,OPS WDC WSD SC PETERHEAD JOBCENTRE PLUS,NHS GRAMPIAN,2033858265,"40,000"
Department for Work and Pensions,Housing Benefits,14/09/2015,HOUSING BENEFIT ADMINISTRATION,HB ENGLAND,NEW FOREST DISTRICT COUNCIL,2033844660,"39,959"
Department for Work and Pensions,Employment Programmes,11/09/2015,WP JSA 25+ SUSTAINMENT OUTCOME PAYMENT,WWEG EP EAST MIDLANDS INGEUS UK,INGEUS UK LTD,2033842738,"39,775"
Department for Work and Pensions,Housing Benefits,14/09/2015,HOUSING BENEFIT ADMINISTRATION,HB WALES,DENBIGHSHIRE COUNTY COUNCIL,2033844499,"39,746"
Department for Work and Pensions,European Social Fund,16/09/2015,MA ESF(D) PROGRAMME EXPENDITURE EC PREFUNDED L A's,WWEG EUROPEAN SOCIAL FUND PROGRAMME 2007-2013,MELTON BOROUGH COUNCIL,5000001908,"39,734"
Department for Work and Pensions,Corporate,14/09/2015,OVERTIME,CMG OPS EXTERNAL CONTRACTS/SLAS EASTERN PAYMENTS NI,DSD GROUP ACCOUNT,1007368,"39,434"
Department for Work and Pensions,Housing Benefits,14/09/2015,HOUSING BENEFIT ADMINISTRATION,HB ENGLAND,ASHFORD BOROUGH COUNCIL,2033844716,"39,068"
Department for Work and Pensions,Corporate,15/09/2015,POSTAGE,FG CD NEWCASTLE ESTATE,ROYAL MAIL GROUP PLC,2033848706,"39,020"
Department for Work and Pensions,Corporate,22/09/2015,CONTRACTORS & STAFF SUBSTITUTIONS,CIO ARCHITECTURE CORE,CAPITA BUSINESS SERVICES LTD,2033857825,"38,927"
Department for Work and Pensions,Corporate,14/09/2015,CONTRACTORS & STAFF SUBSTITUTIONS,CIO ARCHITECTURE CORE,CAPITA BUSINESS SERVICES LTD,2033845752,"38,872"
Department for Work and Pensions,Corporate,14/09/2015,CONTRACTORS & STAFF SUBSTITUTIONS,CIO ENTERPRISE INFRASTRUCTURE CONTRACT CORE HOSTING,CAPITA BUSINESS SERVICES LTD,2033845752,"38,860"
Department for Work and Pensions,Corporate,22/09/2015,CONTRACTORS & STAFF SUBSTITUTIONS,CIO COO IT DIRECTOR,CAPITA BUSINESS SERVICES LTD,2033857825,"38,828"
Department for Work and Pensions,Housing Benefits,14/09/2015,HOUSING BENEFIT ADMINISTRATION,HB ENGLAND,STEVENAGE BOROUGH COUNCIL,2033844688,"38,766"
Department for Work and Pensions,Housing Benefits,14/09/2015,HOUSING BENEFIT ADMINISTRATION,HB ENGLAND,AMBER VALLEY BOROUGH COUNCIL,2033844700,"38,575"
Department for Work and Pensions,Housing Benefits,14/09/2015,HOUSING BENEFIT ADMINISTRATION,HB ENGLAND,GRAVESHAM BOROUGH COUNCIL,2033844495,"38,567"
Department for Work and Pensions,Corporate,30/09/2015,FSF - TRAINING PAYMENTS TO PROVIDERS - JSA JOBSEEKERS,OPS WDC WSD NE WEST YORKSHIRE DISTRICT OFFICE,STANDGUIDE LTD,2033867592,"38,565"
Department for Work and Pensions,Housing Benefits,14/09/2015,HOUSING BENEFIT ADMINISTRATION,HB WALES,VALE OF GLAMORGAN COUNCIL,2033844649,"38,421"
Department for Work and Pensions,Corporate,23/09/2015,COST VARIANCE ACCOUNT,OPS OPE C&I NATIONAL 3,CAPITA CIVIL SERVICE LEARNING,2033858287,"38,323"
Department for Work and Pensions,Corporate,15/09/2015,POSTAGE,FG CD CENTRAL CONTRACTS AGILITY,ROYAL MAIL GROUP PLC,2033848706,"38,119"
Department for Work and Pensions,Housing Benefits,14/09/2015,HOUSING BENEFIT ADMINISTRATION,HB ENGLAND,WEST BERKSHIRE COUNCIL,2033844658,"37,981"
Department for Work and Pensions,Housing Benefits,14/09/2015,HOUSING BENEFIT ADMINISTRATION,HB ENGLAND,TAUNTON DEANE BOROUGH COUNCIL,2033844531,"37,956"
Department for Work and Pensions,Corporate,22/09/2015,CONTRACTORS & STAFF SUBSTITUTIONS,F&C CD STRATEGY AND BUSINESS MANAGEMENT,CAPITA BUSINESS SERVICES LTD,2033857825,"37,916"
Department for Work and Pensions,Housing Benefits,14/09/2015,HOUSING BENEFIT ADMINISTRATION,HB ENGLAND,HAVANT BOROUGH COUNCIL,2033844521,"37,904"
Department for Work and Pensions,Housing Benefits,14/09/2015,HOUSING BENEFIT ADMINISTRATION,HB ENGLAND,FENLAND DISTRICT COUNCIL,2033844746,"37,892"
Department for Work and Pensions,Employment Programmes,25/09/2015,WP JSA 25+ SUSTAINMENT OUTCOME PAYMENT,WWEG EP NORTH WEST GM CHES AND WARR AVANTA ENTERPRISE,PEOPLEPLUS LTD,2033865088,"37,840"
Department for Work and Pensions,Employment Programmes,18/09/2015,WP JSA 25+ SUSTAINMENT OUTCOME PAYMENT,WWEG EP WEST LONDON INGEUS UK,INGEUS UK LTD,2033852983,"37,840"
Department for Work and Pensions,Corporate,08/09/2015,CONTRACTORS & STAFF SUBSTITUTIONS,F&C CD COMMERCIAL MANAGEMENT BUSINESS SERVICES,CAPITA BUSINESS SERVICES LTD,2033836869,"37,663"
Department for Work and Pensions,Employment Programmes,11/09/2015,WP JSA 25+ SUSTAINMENT OUTCOME PAYMENT,WWEG EP NORTH EAST AVANTA ENTERPRISE,PEOPLEPLUS LTD,2033843638,"37,625"
Department for Work and Pensions,Housing Benefits,14/09/2015,HOUSING BENEFIT ADMINISTRATION,HB ENGLAND,CHERWELL DISTRICT COUNCIL,2033844757,"37,533"
Department for Work and Pensions,Corporate,08/09/2015,PROFESSIONAL SERVICES NON VAT RECOVERABLE,OPS OPE CMG RELATIONSHIP SUPPORT,HOWELLS LLP,2033837892,"37,518"
Department for Work and Pensions,Corporate,11/09/2015,IT Owned Additions Cost,CIO TECHNOLOGY COO CORE,SPECIALIST COMPUTER CENTRES PLC,2033843927,"37,467"
Department for Work and Pensions,Employment Programmes,18/09/2015,WP JSA 25+ SUSTAINMENT OUTCOME PAYMENT,WWEG EP EAST LONDON A4E,PEOPLEPLUS GROUP,2033853550,"37,410"
Department for Work and Pensions,Housing Benefits,14/09/2015,HOUSING BENEFIT ADMINISTRATION,HB ENGLAND,CHELTENHAM BOROUGH COUNCIL,2033844680,"37,408"
Department for Work and Pensions,Corporate,15/09/2015,TREDDS APPS DEV MANDAYS,CHG PIP IT PHASE 4,HP ENTERPRISE SERVICES UK LTD,2033848465,"37,380"
Department for Work and Pensions,Corporate,01/09/2015,CONTRACTORS & STAFF SUBSTITUTIONS,CIO IT INFORMATION DATA SERVICES,CAPITA BUSINESS SERVICES LTD,2033829835,"37,357"
Department for Work and Pensions,Corporate,22/09/2015,STAFF TRAINING VAT RECOVERABLE,HR CONTRACTUAL L AND D,CAPITA CIVIL SERVICE LEARNING,2033857780,"37,309"
Department for Work and Pensions,Housing Benefits,14/09/2015,HOUSING BENEFIT ADMINISTRATION,HB ENGLAND,WATFORD BOROUGH COUNCIL,2033844799,"37,226"
Department for Work and Pensions,Employment Programmes,07/09/2015,WP JSA 25+ SUSTAINMENT OUTCOME PAYMENT,WWEG EP SOUTH EAST SURR SUSSX AND KENT AVANTA ENTERPRISE,PEOPLEPLUS LTD,2033836191,"37,195"
Department for Work and Pensions,Housing Benefits,14/09/2015,HOUSING BENEFIT ADMINISTRATION,HB ENGLAND,REIGATE & BANSTEAD BOROUGH COUNCIL,2033844708,"37,175"
Department for Work and Pensions,Housing Benefits,14/09/2015,HOUSING BENEFIT ADMINISTRATION,HB ENGLAND,MENDIP DISTRICT COUNCIL,2033844530,"37,087"
Department for Work and Pensions,Corporate,11/09/2015,NON-TREDDS IS IT APPS DEV MANDAY,CIO CIS INFRASTRUCTURE,IBM UNITED KINGDOM LTD,2033842749,"37,061"
Department for Work and Pensions,Corporate,24/09/2015,APPS DEV INDEX ARR,CHG PIP IT PHASE 4,HP ENTERPRISE SERVICES UK LTD,2033863709,"37,059"
Department for Work and Pensions,Housing Benefits,14/09/2015,HOUSING BENEFIT ADMINISTRATION,HB ENGLAND,EPPING FOREST DISTRICT COUNCIL,2033844588,"36,985"
Department for Work and Pensions,Housing Benefits,14/09/2015,HOUSING BENEFIT ADMINISTRATION,HB ENGLAND,GOSPORT BOROUGH COUNCIL,2033844638,"36,980"
Department for Work and Pensions,Employment Programmes,22/09/2015,WP JSA 25+ SUSTAINMENT OUTCOME PAYMENT,WWEG EP NORTH WEST GM CHES AND WARR SEETEC,SEETEC BUSINESS TECHNOLOGY CENTRE LTD,2033857726,"36,980"
Department for Work and Pensions,Employment Programmes,18/09/2015,SUSTAINMENT FEE,REMPLOY WORK CHOICE PAYMENTS,REMPLOY LTD,2033853560,"36,941"
Department for Work and Pensions,Corporate,23/09/2015,FSF - PARTNERSHIP GRANTS - TO HELP JSA CLIENTS INTO WORK,OPS WDC WSD CE EAST ANGLIA DISTRICT OFFICE,VOLUNTARY NORFOLK,2033860013,"36,934"
Department for Work and Pensions,Housing Benefits,14/09/2015,HOUSING BENEFIT ADMINISTRATION,HB SCOTLAND,ARGYLL & BUTE COUNCIL,2033844577,"36,864"
Department for Work and Pensions,Employment Programmes,21/09/2015,WP JSA 25+ SUSTAINMENT OUTCOME PAYMENT,WWEG EP EAST LONDON CAREERS DEVELOPMENT GROUP,CAREERS DEVELOPMENT GROUP,2033855698,"36,765"
Department for Work and Pensions,Housing Benefits,14/09/2015,HOUSING BENEFIT ADMINISTRATION,HB ENGLAND,GEDLING BOROUGH COUNCIL,2033844509,"36,591"
Department for Work and Pensions,Corporate,09/09/2015,FSF - TRAINING PAYMENTS TO PROVIDERS - JSA JOBSEEKERS,OPS WDC WSD NW CUMB LANCS EMPLOYER AND PARTNERSHIPS TEAM,INSPIRA CUMBRIA LTD,2033838050,"36,572"
Department for Work and Pensions,Corporate,01/09/2015,CONTRACTORS & STAFF SUBSTITUTIONS,CIO UC CORE,CAPITA BUSINESS SERVICES LTD,2033829835,"36,563"
Department for Work and Pensions,Employment Programmes,18/09/2015,WP JSA 25+ SUSTAINMENT OUTCOME PAYMENT,WWEG EP NORTH EAST AVANTA ENTERPRISE,PEOPLEPLUS LTD,2033853271,"36,550"
Department for Work and Pensions,Housing Benefits,14/09/2015,HOUSING BENEFIT ADMINISTRATION,HB ENGLAND,GUILDFORD BOROUGH COUNCIL,2033844684,"36,502"
Department for Work and Pensions,Housing Benefits,14/09/2015,HOUSING BENEFIT ADMINISTRATION,HB ENGLAND,EAST STAFFORDSHIRE DISTRICT COUNCIL,2033844556,"36,405"
Department for Work and Pensions,Housing Benefits,14/09/2015,HOUSING BENEFIT ADMINISTRATION,HB WALES,BLAENAU GWENT COUNTY BOROUGH COUNCIL,2033844621,"36,373"
Department for Work and Pensions,Employment Programmes,25/09/2015,WP JSA 25+ SUSTAINMENT OUTCOME PAYMENT,WWEG EP WEST LONDON REED IN PARTNERSHIP,REED IN PARTNERSHIP LTD,2033864802,"36,335"
Department for Work and Pensions,Housing Benefits,14/09/2015,HOUSING BENEFIT ADMINISTRATION,HB ENGLAND,CANNOCK CHASE DISTRICT COUNCIL,2033844555,"36,174"
Department for Work and Pensions,Housing Benefits,14/09/2015,HOUSING BENEFIT ADMINISTRATION,HB ENGLAND,WEST LANCASHIRE DISTRICT COUNCIL,2033844565,"36,080"
Department for Work and Pensions,Housing Benefits,14/09/2015,HOUSING BENEFIT ADMINISTRATION,HB ENGLAND,EAST DEVON DISTRICT COUNCIL,2033844514,"36,002"
Department for Work and Pensions,Housing Benefits,14/09/2015,HOUSING BENEFIT ADMINISTRATION,HB ENGLAND,HERTSMERE BOROUGH COUNCIL,2033844687,"35,929"
Department for Work and Pensions,Employment Programmes,11/09/2015,WP JSA 25+ SUSTAINMENT OUTCOME PAYMENT,WWEG EP EAST LONDON SEETEC,SEETEC BUSINESS TECHNOLOGY CENTRE LTD,2033842780,"35,905"
Department for Work and Pensions,Employment Programmes,25/09/2015,WP JSA 25+ SUSTAINMENT OUTCOME PAYMENT,WWEG EP WALES REHAB JOB FIT,REHAB JOBFIT LLP,2033864425,"35,905"
Department for Work and Pensions,Housing Benefits,14/09/2015,HOUSING BENEFIT ADMINISTRATION,HB ENGLAND,RUSHMOOR BOROUGH COUNCIL,2033844661,"35,852"
Department for Work and Pensions,Corporate,08/09/2015,CONTRACTORS & STAFF SUBSTITUTIONS,CIO UC CORE,CAPITA BUSINESS SERVICES LTD,2033836869,"35,755"
Department for Work and Pensions,Employment Programmes,08/09/2015,WP JSA 25+ SUSTAINMENT OUTCOME PAYMENT,WWEG EP WALES WORKING LINKS WALES,WORKING LINKS,2033837785,"35,690"
Department for Work and Pensions,Employment Programmes,11/09/2015,WP JSA 25+ SUSTAINMENT OUTCOME PAYMENT,WWEG EP WEST LONDON INGEUS UK,INGEUS UK LTD,2033842738,"35,690"
Department for Work and Pensions,Housing Benefits,14/09/2015,HOUSING BENEFIT ADMINISTRATION,HB ENGLAND,NORTH DEVON DISTRICT COUNCIL,2033844516,"35,564"
Department for Work and Pensions,Employment Programmes,04/09/2015,COMMUNITY WORK PLACEMENTS - LONG COMPLETION FEE,WWEP EP FG CEP CWP CPA06 - NORTH WEST (1),G4S REGIONAL MANAGEMENT UK & I LTD,2033834887,"35,519"
Department for Work and Pensions,Housing Benefits,14/09/2015,HOUSING BENEFIT ADMINISTRATION,HB ENGLAND,EAST HERTFORDSHIRE DISTRICT COUNCIL,2033844550,"35,502"
Department for Work and Pensions,Employment Programmes,02/09/2015,WP JSA 25+ SUSTAINMENT OUTCOME PAYMENT,WWEG EP EAST OF ENGLAND SEETEC,SEETEC BUSINESS TECHNOLOGY CENTRE LTD,2033830233,"35,475"
Department for Work and Pensions,Employment Programmes,07/09/2015,WP JSA 25+ SUSTAINMENT OUTCOME PAYMENT,WWEG EP SOUTH EAST SURR SUSSX AND KENT G4S,G4S REGIONAL MANAGEMENT UK & I LTD,2033836361,"35,475"
Department for Work and Pensions,Corporate,01/09/2015,MEDICAL SERVICES FIXED COSTS,FG HS MEDICAL SERVICES CONTRACT DEL P,ATOS HEALTHCARE,2033829256,"35,277"
Department for Work and Pensions,Housing Benefits,14/09/2015,HOUSING BENEFIT ADMINISTRATION,HB ENGLAND,NEWARK DISTRICT COUNCIL,2033844510,"35,120"
Department for Work and Pensions,Corporate,07/09/2015,SOFTWARE LICENCES GREATER THAN ONE YEAR TERM,CHG UC DESIGN & BUILD PROGRAMME MANAGER,SPECIALIST COMPUTER CENTRES PLC,2033836560,"34,983"
Department for Work and Pensions,Housing Benefits,14/09/2015,HOUSING BENEFIT ADMINISTRATION,HB ENGLAND,BROXBOURNE BOROUGH COUNCIL,2033844686,"34,950"
Department for Work and Pensions,Housing Benefits,14/09/2015,HOUSING BENEFIT ADMINISTRATION,HB SCOTLAND,MIDLOTHIAN COUNCIL,2033844625,"34,882"
Department for Work and Pensions,Employment Programmes,30/09/2015,WP JSA 25+ SUSTAINMENT OUTCOME PAYMENT,WWEG EP EAST OF ENGLAND SEETEC,SEETEC BUSINESS TECHNOLOGY CENTRE LTD,2033867022,"34,830"
Department for Work and Pensions,Employment Programmes,04/09/2015,WP JSA 25+ SUSTAINMENT OUTCOME PAYMENT,WWEG EP NORTH WEST MERS HAL CUMB AND LANCS A4E,PEOPLEPLUS GROUP,2033833425,"34,830"
Department for Work and Pensions,Housing Benefits,14/09/2015,HOUSING BENEFIT ADMINISTRATION,HB ENGLAND,WYRE FOREST DISTRICT COUNCIL,2033844665,"34,804"
Department for Work and Pensions,Housing Benefits,14/09/2015,HOUSING BENEFIT ADMINISTRATION,HB ENGLAND,EREWASH BOROUGH COUNCIL,2033844492,"34,774"
Department for Work and Pensions,Housing Benefits,14/09/2015,HOUSING BENEFIT ADMINISTRATION,HB ENGLAND,CITY OF CARLISLE DISTRICT COUNCIL,2033844489,"34,382"
Department for Work and Pensions,Housing Benefits,14/09/2015,HOUSING BENEFIT ADMINISTRATION,HB ENGLAND,CHICHESTER DISTRICT COUNCIL,2033844761,"34,367"
Department for Work and Pensions,Employment Programmes,30/09/2015,SUSTAINMENT FEE,REMPLOY WORK CHOICE PAYMENTS,REMPLOY LTD,2033867200,"34,302"
Department for Work and Pensions,Housing Benefits,14/09/2015,HOUSING BENEFIT ADMINISTRATION,HB ENGLAND,HARROGATE BOROUGH COUNCIL,2033844669,"34,286"
Department for Work and Pensions,Corporate,10/09/2015,NON-TREDDS IS IT SERVICES (HOSTING),CIO ITLR DIGITAL TOWER DEL P,SKYSCAPE CLOUD SERVICES LTD,2033841533,"34,191"
Department for Work and Pensions,Employment Programmes,25/09/2015,WP JSA 25+ SUSTAINMENT OUTCOME PAYMENT,WWEG EP NORTH WEST GM CHES AND WARR SEETEC,SEETEC BUSINESS TECHNOLOGY CENTRE LTD,2033864675,"34,185"
Department for Work and Pensions,Corporate,01/09/2015,CONTRACTORS & STAFF SUBSTITUTIONS,CIO ARCHITECTURE CORE,CAPITA BUSINESS SERVICES LTD,2033829835,"34,162"
Department for Work and Pensions,Housing Benefits,14/09/2015,HOUSING BENEFIT ADMINISTRATION,HB ENGLAND,WORCESTER CITY COUNCIL,2033844569,"33,965"
Department for Work and Pensions,Corporate,11/09/2015,IT Owned Additions Cost,CHG DIGITAL ACADEMY,SPECIALIST COMPUTER CENTRES PLC,2033843927,"33,926"
Department for Work and Pensions,Housing Benefits,14/09/2015,HOUSING BENEFIT ADMINISTRATION,HB ENGLAND,STAFFORD BOROUGH COUNCIL,2033844677,"33,777"
Department for Work and Pensions,Corporate,22/09/2015,DESKTOP SERVICES,CIO ITLR DESKTOP,HP ENTERPRISE SERVICES UK LTD,2033858000,"33,682"
Department for Work and Pensions,Corporate,24/09/2015,FSF - TRAINING PAYMENTS TO PROVIDERS - JSA JOBSEEKERS,OPS WDC WSD WL SOUTH EAST WALES DISTRICT OFFICE,TBG LEARNING REHAB JOBFIT LLP,2033863225,"33,675"
Department for Work and Pensions,Corporate,24/09/2015,HOSTING SERVICES,CIO ITLR HOSTING DEL P,HP ENTERPRISE SERVICES UK LTD,2033863709,"33,651"
Department for Work and Pensions,Housing Benefits,14/09/2015,HOUSING BENEFIT ADMINISTRATION,HB SCOTLAND,EAST LOTHIAN DISTRICT COUNCIL,2033844473,"33,624"
Department for Work and Pensions,Housing Benefits,14/09/2015,HOUSING BENEFIT ADMINISTRATION,HB ENGLAND,TONBRIDGE & MALLING DISTRICT COUNCIL,2033844744,"33,615"
Department for Work and Pensions,Employment Programmes,11/09/2015,WP JSA 25+ SUSTAINMENT OUTCOME PAYMENT,WWEG EP WEST YORKSHIRE INGEUS UK,INGEUS UK LTD,2033842738,"33,540"
Department for Work and Pensions,Housing Benefits,14/09/2015,HOUSING BENEFIT ADMINISTRATION,HB ENGLAND,NORTH NORFOLK DISTRICT COUNCIL,2033844813,"33,507"
Department for Work and Pensions,Corporate,14/09/2015,CONTRACTORS & STAFF SUBSTITUTIONS,CIO COO IT DIRECTOR,CAPITA BUSINESS SERVICES LTD,2033845752,"33,491"
Department for Work and Pensions,Housing Benefits,14/09/2015,HOUSING BENEFIT ADMINISTRATION,HB ENGLAND,WORTHING BOROUGH COUNCIL,2033844764,"33,388"
Department for Work and Pensions,Corporate,01/09/2015,CONTRACTORS & STAFF SUBSTITUTIONS,CIO IT SECURITY & BUSINESS CONTINUITY,CAPITA BUSINESS SERVICES LTD,2033829835,"33,363"
Department for Work and Pensions,Employment Programmes,02/09/2015,WP JSA 25+ SUSTAINMENT OUTCOME PAYMENT,WWEG EP SCOTLAND WORKING LINKS,WORKING LINKS,2033830760,"33,325"
Department for Work and Pensions,Corporate,08/09/2015,CONTRACTORS & STAFF SUBSTITUTIONS,CIO IT SECURITY & BUSINESS CONTINUITY,CAPITA BUSINESS SERVICES LTD,2033836869,"33,089"
Department for Work and Pensions,Employment Programmes,18/09/2015,WP JSA 25+ SUSTAINMENT OUTCOME PAYMENT,WWEG EP WEST LONDON MAXIMUS EMPLOYMENT UK,MAXIMUS HEALTH & HUMAN SERVICES LTD,2033853376,"32,895"
Department for Work and Pensions,Employment Programmes,10/09/2015,OUTCOME FEE,REMPLOY WORK CHOICE PAYMENTS,REMPLOY LTD,2033842420,"32,844"
Department for Work and Pensions,Employment Programmes,18/09/2015,OUTCOME FEE,REMPLOY WORK CHOICE PAYMENTS,REMPLOY LTD,2033853560,"32,844"
Department for Work and Pensions,Corporate,04/09/2015,NON-TREDDS IS IT APPS DEV MANDAY,CHG UC PATHFINDER DELIVERY MANAGEMENT,CAPGEMINI UK PLC,2033834995,"32,640"
Department for Work and Pensions,Housing Benefits,14/09/2015,HOUSING BENEFIT ADMINISTRATION,HB ENGLAND,TUNBRIDGE WELLS BOROUGH COUNCIL,2033844538,"32,636"
Department for Work and Pensions,Employment Programmes,11/09/2015,ACCESS TO WORK - TRAVEL IN WORK,WWEG EP WEST MIDLANDS,CAPITA SYMONDS LTD,2033842643,"32,477"
Department for Work and Pensions,Housing Benefits,14/09/2015,HOUSING BENEFIT ADMINISTRATION,HB ENGLAND,BRACKNELL FOREST BOROUGH COUNCIL,2033844657,"32,298"
Department for Work and Pensions,Employment Programmes,18/09/2015,WP JSA 25+ SUSTAINMENT OUTCOME PAYMENT,WWEG EP W MIDLANDS BIRM SOL BC FOURSTAR EMP AND SKILLS,PEOPLEPLUS GROUP LTD,2033853030,"32,250"
Department for Work and Pensions,Housing Benefits,14/09/2015,HOUSING BENEFIT ADMINISTRATION,HB ENGLAND,WINDSOR & MAIDENHEAD BOROUGH COUNCIL,2033844659,"32,210"
Department for Work and Pensions,Housing Benefits,14/09/2015,HOUSING BENEFIT ADMINISTRATION,HB ENGLAND,ELMBRIDGE BOROUGH COUNCIL,2033844608,"32,135"
Department for Work and Pensions,Housing Benefits,14/09/2015,HOUSING BENEFIT ADMINISTRATION,HB ENGLAND,ST EDMUNDSBURY BOROUGH COUNCIL,2033844770,"32,047"
Department for Work and Pensions,Housing Benefits,14/09/2015,HOUSING BENEFIT ADMINISTRATION,HB ENGLAND,SUFFOLK COASTAL DISTRICT COUNCIL,2033844607,"31,812"
Department for Work and Pensions,Housing Benefits,14/09/2015,HOUSING BENEFIT ADMINISTRATION,HB ENGLAND,NORTH EAST DERBYSHIRE DISTRICT COUNCIL,2033844512,"31,748"
Department for Work and Pensions,Corporate,22/09/2015,RECURRENT PUBLICITY,CHG ERSP COMMS,IPSOS MORI,2033857830,"31,730"
Department for Work and Pensions,Employment Programmes,10/09/2015,SUSTAINMENT FEE,REMPLOY WORK CHOICE PAYMENTS,REMPLOY LTD,2033842420,"31,664"
Department for Work and Pensions,Employment Programmes,25/09/2015,SERVICE FEE,WWEG EP CORE MWA CPA NORTH WEST,LEARNDIRECT LTD,2033865502,"31,650"
Department for Work and Pensions,Housing Benefits,14/09/2015,HOUSING BENEFIT ADMINISTRATION,HB ENGLAND,WARWICK DISTRICT COUNCIL,2033844678,"31,644"
Department for Work and Pensions,Corporate,15/09/2015,TREDDS IS IT CONSULTANCY (HOSTING) NON ADVICE,CHG VIRTUAL MACHINE ENVIRONMENT REPLACEMENT,HP ENTERPRISE SERVICES UK LTD,2033848465,"31,642"
Department for Work and Pensions,Housing Benefits,14/09/2015,HOUSING BENEFIT ADMINISTRATION,HB ENGLAND,STRATFORD ON AVON DISTRICT COUNCIL,2033844737,"31,626"
Department for Work and Pensions,Employment Programmes,25/09/2015,WP JSA 25+ SUSTAINMENT OUTCOME PAYMENT,WWEG EP SOUTH EAST SURR SUSSX AND KENT G4S,G4S REGIONAL MANAGEMENT UK & I LTD,2033865734,"31,605"
Department for Work and Pensions,Housing Benefits,14/09/2015,HOUSING BENEFIT ADMINISTRATION,HB ENGLAND,CORBY BOROUGH COUNCIL,2033844627,"31,536"
Department for Work and Pensions,Housing Benefits,14/09/2015,HOUSING BENEFIT ADMINISTRATION,HB ENGLAND,SOUTH NORFOLK DISTRICT COUNCIL,2033844780,"31,523"
Department for Work and Pensions,Employment Programmes,08/09/2015,WP JSA 25+ SUSTAINMENT OUTCOME PAYMENT,WWEG EP EAST LONDON CAREERS DEVELOPMENT GROUP,CAREERS DEVELOPMENT GROUP,2033837040,"31,390"
Department for Work and Pensions,Housing Benefits,14/09/2015,HOUSING BENEFIT ADMINISTRATION,HB ENGLAND,ST ALBANS DISTRICT COUNCIL,2033844771,"31,386"
Department for Work and Pensions,Housing Benefits,14/09/2015,HOUSING BENEFIT ADMINISTRATION,HB ENGLAND,ALLERDALE DISTRICT COUNCIL,2033844809,"31,273"
Department for Work and Pensions,Employment Programmes,25/09/2015,WP JSA NEET SUSTAINMENT OUTCOME PAYMENT,WWEG EP EAST MIDLANDS A4E,PEOPLEPLUS GROUP,2033864130,"31,250"
Department for Work and Pensions,Corporate,14/09/2015,CONTRACTORS & STAFF SUBSTITUTIONS,CIO IT SERVICES SERVICE TRANSITION,CAPITA BUSINESS SERVICES LTD,2033845752,"31,201"
Department for Work and Pensions,Employment Programmes,02/09/2015,WP JSA 25+ SUSTAINMENT OUTCOME PAYMENT,WWEG EP EAST LONDON CAREERS DEVELOPMENT GROUP,CAREERS DEVELOPMENT GROUP,2033830787,"31,175"
Department for Work and Pensions,Employment Programmes,01/09/2015,WP JSA 25+ SUSTAINMENT OUTCOME PAYMENT,WWEG EP WALES WORKING LINKS WALES,WORKING LINKS,2033828831,"31,175"
Department for Work and Pensions,Housing Benefits,14/09/2015,HOUSING BENEFIT ADMINISTRATION,HB ENGLAND,RUGBY BOROUGH COUNCIL,2033844736,"31,151"
Department for Work and Pensions,Corporate,14/09/2015,CONTRACTORS & STAFF SUBSTITUTIONS,CIO IT SECURITY & BUSINESS CONTINUITY,CAPITA BUSINESS SERVICES LTD,2033845752,"31,115"
Department for Work and Pensions,Housing Benefits,14/09/2015,HOUSING BENEFIT ADMINISTRATION,HB ENGLAND,CHORLEY BOROUGH COUNCIL,2033844540,"31,024"
Department for Work and Pensions,Housing Benefits,14/09/2015,HOUSING BENEFIT ADMINISTRATION,HB ENGLAND,DARTFORD BOROUGH COUNCIL,2033844779,"31,002"
Department for Work and Pensions,Housing Benefits,14/09/2015,HOUSING BENEFIT ADMINISTRATION,HB ENGLAND,TEST VALLEY BOROUGH COUNCIL,2033844520,"30,989"
Department for Work and Pensions,Employment Programmes,11/09/2015,WP JSA 25+ SUSTAINMENT OUTCOME PAYMENT,WWEG EP NORTH WEST GM CHES AND WARR AVANTA ENTERPRISE,PEOPLEPLUS LTD,2033843638,"30,960"
Department for Work and Pensions,Employment Programmes,25/09/2015,WP JSA 25+ SUSTAINMENT OUTCOME PAYMENT,WWEG EP SOUTH YORKSHIRE A4E,PEOPLEPLUS GROUP,2033864130,"30,960"
Department for Work and Pensions,Employment Programmes,25/09/2015,WP JSA 25+ SUSTAINMENT OUTCOME PAYMENT,WWEG EP SOUTH YORKSHIRE SERCO,SERCO LTD,2033864563,"30,960"
Department for Work and Pensions,Corporate,15/09/2015,POSTAGE,OPS PEN PS AA UNIT,ROYAL MAIL GROUP PLC,2033848706,"30,927"
Department for Work and Pensions,Child Maintenance and Enforcement Commission,15/09/2015,TREDDS APPS DEV MANDAYS,FS PHASE 2 - HPES COSTS,HP ENTERPRISE SERVICES UK LTD,1000243404,"30,885"
Department for Work and Pensions,Corporate,14/09/2015,CONTRACTORS & STAFF SUBSTITUTIONS,CIO IT SERVICES DIRECTOR & BUSINESS MANAGEMENT TEAM,CAPITA BUSINESS SERVICES LTD,2033845752,"30,832"
Department for Work and Pensions,Housing Benefits,14/09/2015,HOUSING BENEFIT ADMINISTRATION,HB ENGLAND,BOROUGH OF REDDITCH,2033844664,"30,818"
Department for Work and Pensions,Employment Programmes,25/09/2015,WP JSA NEET SUSTAINMENT OUTCOME PAYMENT,WWEG EP SCOTLAND WORKING LINKS,WORKING LINKS,2033865410,"30,750"
Department for Work and Pensions,Corporate,04/09/2015,BANK COMMISSION & CHARGES,FG FIN CONT COBAP BANKING,HSBC BANK PLC,2033834521,"30,653"
Department for Work and Pensions,Employment Programmes,07/09/2015,WP JSA 25+ SUSTAINMENT OUTCOME PAYMENT,WWEG EP W MIDLANDS BIRM SOL BC PERTEMPS,PERTEMPS,2033835511,"30,530"
Department for Work and Pensions,Housing Benefits,14/09/2015,HOUSING BENEFIT ADMINISTRATION,HB ENGLAND,BROXTOWE BOROUGH COUNCIL,2033844508,"30,453"
Department for Work and Pensions,Housing Benefits,14/09/2015,HOUSING BENEFIT ADMINISTRATION,HB ENGLAND,WEYMOUTH & PORTLAND BOROUGH COUNCIL,2033844561,"30,447"
Department for Work and Pensions,Employment Programmes,04/09/2015,WP JSA 25+ JOB OUTCOME PAYMENTWP JSA 25+ JOB OUTCOME PAYMENT,WWEG EP W MIDLANDS COV WARW STAFFS AND MARCHES SERCO,SERCO LTD,2033834040,"30,360"
Department for Work and Pensions,Housing Benefits,14/09/2015,HOUSING BENEFIT ADMINISTRATION,HB ENGLAND,WEST DORSET DISTRICT COUNCIL,2033844560,"30,251"
Department for Work and Pensions,Corporate,08/09/2015,TREDDS IS IT CONSULTANCY (HOSTING) NON ADVICE,CIO IT SERVICES SERVICE TRANSITION,HP ENTERPRISE SERVICES UK LTD,2033837123,"30,166"
Department for Work and Pensions,Corporate,14/09/2015,CONTRACTORS & STAFF SUBSTITUTIONS,CHG DEPARTMENTAL & BUSINESS STRATEGY,CAPITA BUSINESS SERVICES LTD,2033845752,"30,155"
Department for Work and Pensions,Employment Programmes,11/09/2015,WP JSA 25+ SUSTAINMENT OUTCOME PAYMENT,WWEG EP EAST OF ENGLAND SEETEC,SEETEC BUSINESS TECHNOLOGY CENTRE LTD,2033842780,"30,100"
Department for Work and Pensions,Employment Programmes,11/09/2015,WP JSA 25+ SUSTAINMENT OUTCOME PAYMENT,WWEG EP WEST LONDON MAXIMUS EMPLOYMENT UK,MAXIMUS HEALTH & HUMAN SERVICES LTD,2033844106,"30,100"
Department for Work and Pensions,Housing Benefits,14/09/2015,HOUSING BENEFIT ADMINISTRATION,HB WALES,MERTHYR TYDFIL BOROUGH COUNCIL,2033844832,"29,926"
Department for Work and Pensions,Corporate,24/09/2015,ACCOUNTS PAYABLE UNAPPROVED INVOICES,STR ANALYSIS DIRECTOR OF ANALYSIS AND SUPPORT,ENTERPRISE LSE LTD,2033861162,"29,902"
Department for Work and Pensions,Employment Programmes,15/09/2015,WP JSA 25+ SUSTAINMENT OUTCOME PAYMENT,WWEG EP SCOTLAND WORKING LINKS,WORKING LINKS,2033847737,"29,885"
Department for Work and Pensions,Employment Programmes,25/09/2015,WP JSA 25+ SUSTAINMENT OUTCOME PAYMENT,WWEG EP W MIDLANDS COV WARW STAFFS AND MARCHES ESG,ESG HOLDINGS LIMITED,2033864253,"29,885"
Department for Work and Pensions,Employment Programmes,30/09/2015,ACCESS TO WORK - TRAVEL IN WORK,WWEG EP LONDON REGION,ROYAL BRITISH LEGION INDUSTRIES,2033867194,"29,858"
Department for Work and Pensions,Corporate,14/09/2015,CONTRACTORS & STAFF SUBSTITUTIONS,CIO ENTERPRISE INFRASTRUCTURE CONTRACT IPCC,CAPITA BUSINESS SERVICES LTD,2033845752,"29,816"
Department for Work and Pensions,Child Maintenance and Enforcement Commission,15/09/2015,TREDDS IS IT CONSULTANCY (HOSTING) NON ADVICE,CMG PORTFOLIO - RELEASE 25 HPES,HP ENTERPRISE SERVICES UK LTD,1000243404,"29,729"
Department for Work and Pensions,Employment Programmes,15/09/2015,RESIDENTIAL TRAINING COSTS,WWEG EP DELIVERY WELFARE TO WORK PRODUCT SUPPORT,QUEEN ALEXANDRA COLLEGE,2033847693,"29,721"
Department for Work and Pensions,Housing Benefits,14/09/2015,HOUSING BENEFIT ADMINISTRATION,HB ENGLAND,BOLSOVER DISTRICT COUNCIL,2033844790,"29,643"
Department for Work and Pensions,Housing Benefits,14/09/2015,HOUSING BENEFIT ADMINISTRATION,HB ENGLAND,SEVENOAKS DISTRICT COUNCIL,2033844742,"29,590"
Department for Work and Pensions,Corporate,24/09/2015,STAFF TRAINING VAT RECOVERABLE,HR CONTRACTUAL L AND D,CAPITA CIVIL SERVICE LEARNING,2033862460,"29,514"
Department for Work and Pensions,Housing Benefits,14/09/2015,HOUSING BENEFIT ADMINISTRATION,HB ENGLAND,HIGH PEAK BOROUGH COUNCIL,2033844493,"29,513"
Department for Work and Pensions,Employment Programmes,11/09/2015,WP JSA 25+ SUSTAINMENT OUTCOME PAYMENT,WWEG EP SOUTH EAST SURR SUSSX AND KENT AVANTA ENTERPRISE,PEOPLEPLUS LTD,2033843638,"29,455"
Department for Work and Pensions,Employment Programmes,18/09/2015,WP JSA 25+ SUSTAINMENT OUTCOME PAYMENT,WWEG EP SOUTH EAST TV HANTS AND IOW MAXIMUS EMPLOYMENT,MAXIMUS HEALTH & HUMAN SERVICES LTD,2033853376,"29,455"
Department for Work and Pensions,Housing Benefits,14/09/2015,HOUSING BENEFIT ADMINISTRATION,HB SCOTLAND,THE MORAY COUNCIL,2033844504,"29,414"
Department for Work and Pensions,Corporate,25/09/2015,MEDICAL SERVICES VAT NON-RECOVERABLE,FG HS MEDICAL SERVICES CONTRACT DEL P,PERTEMPS PEOPLE DEVELOPMENT GROUP,2033864904,"29,403"
Department for Work and Pensions,Housing Benefits,14/09/2015,HOUSING BENEFIT ADMINISTRATION,HB ENGLAND,WEALDEN DISTRICT COUNCIL,2033844584,"29,339"
Department for Work and Pensions,Corporate,17/09/2015,SECURE PRINTING,FG CD SECURE PRINT,XEROX UK LTD 3W,2033851170,"29,182"
Department for Work and Pensions,Corporate,14/09/2015,TREDDS IS IT MGT CONSULTANCY NON ADVICE,CHG VIRTUAL MACHINE ENVIRONMENT REPLACEMENT,HP ENTERPRISE SERVICES UK LTD,2033846244,"29,118"
Department for Work and Pensions,Corporate,04/09/2015,NETWORK SERVICES,CMG DJ CMG OPS EXG OP DIRECTOR,BT GLOBAL SERVICES,2033835298,"29,109"
Department for Work and Pensions,Employment Programmes,23/09/2015,WP JSA 25+ SUSTAINMENT OUTCOME PAYMENT,WWEG EP EAST OF ENGLAND SEETEC,SEETEC BUSINESS TECHNOLOGY CENTRE LTD,2033859589,"29,025"
Department for Work and Pensions,Housing Benefits,14/09/2015,HOUSING BENEFIT ADMINISTRATION,HB ENGLAND,MID SUSSEX DISTRICT COUNCIL,2033844494,"29,004"
Department for Work and Pensions,Housing Benefits,14/09/2015,HOUSING BENEFIT ADMINISTRATION,HB ENGLAND,HORSHAM DISTRICT COUNCIL,2033844763,"28,915"
Department for Work and Pensions,Housing Benefits,14/09/2015,HOUSING BENEFIT ADMINISTRATION,HB ENGLAND,KETTERING BOROUGH COUNCIL,2033844644,"28,862"
Department for Work and Pensions,Employment Programmes,03/09/2015,WP JSA 25+ SUSTAINMENT OUTCOME PAYMENT,WWEG EP NORTH WEST GM CHES AND WARR AVANTA ENTERPRISE,PEOPLEPLUS LTD,2033831715,"28,810"
Department for Work and Pensions,Employment Programmes,14/09/2015,WP JSA 25+ SUSTAINMENT OUTCOME PAYMENT,WWEG EP WALES WORKING LINKS WALES,WORKING LINKS,2033846798,"28,810"
Department for Work and Pensions,Housing Benefits,14/09/2015,HOUSING BENEFIT ADMINISTRATION,HB ENGLAND,WYCHAVON DISTRICT COUNCIL,2033844768,"28,676"
Department for Work and Pensions,Housing Benefits,14/09/2015,HOUSING BENEFIT ADMINISTRATION,HB ENGLAND,WAVERLEY BOROUGH COUNCIL,2033844526,"28,640"
Department for Work and Pensions,Employment Programmes,23/09/2015,WP JSA 25+ SUSTAINMENT OUTCOME PAYMENT,WWEG EP EAST LONDON SEETEC,SEETEC BUSINESS TECHNOLOGY CENTRE LTD,2033859589,"28,595"
Department for Work and Pensions,Employment Programmes,23/09/2015,WP JSA 25+ SUSTAINMENT OUTCOME PAYMENT,WWEG EP NORTH WEST GM CHES AND WARR SEETEC,SEETEC BUSINESS TECHNOLOGY CENTRE LTD,2033859589,"28,595"
Department for Work and Pensions,Employment Programmes,18/09/2015,WP JSA 25+ SUSTAINMENT OUTCOME PAYMENT,WWEG EP SOUTH EAST SURR SUSSX AND KENT AVANTA ENTERPRISE,PEOPLEPLUS LTD,2033853271,"28,595"
Department for Work and Pensions,Employment Programmes,11/09/2015,WP JSA 25+ SUSTAINMENT OUTCOME PAYMENT,WWEG EP SOUTH EAST TV HANTS AND IOW A4E,PEOPLEPLUS GROUP,2033842746,"28,595"
Department for Work and Pensions,Corporate,08/09/2015,CONTRACTORS & STAFF SUBSTITUTIONS,F&C CD STRATEGY AND BUSINESS MANAGEMENT,CAPITA BUSINESS SERVICES LTD,2033836869,"28,512"
Department for Work and Pensions,Employment Programmes,10/09/2015,ACCESS TO WORK - TRAVEL IN WORK,WWEG EP NORTH WEST,CAPITA SYMONDS LTD,2033841735,"28,463"
Department for Work and Pensions,Housing Benefits,14/09/2015,HOUSING BENEFIT ADMINISTRATION,HB ENGLAND,EASTLEIGH BOROUGH COUNCIL,2033844636,"28,444"
Department for Work and Pensions,Employment Programmes,01/09/2015,WP JSA 25+ SUSTAINMENT OUTCOME PAYMENT,WWEG EP SOUTH EAST SURR SUSSX AND KENT G4S,G4S REGIONAL MANAGEMENT UK & I LTD,2033828950,"28,380"
Department for Work and Pensions,Housing Benefits,14/09/2015,HOUSING BENEFIT ADMINISTRATION,HB ENGLAND,LEWES DISTRICT COUNCIL,2033844733,"28,367"
Department for Work and Pensions,Housing Benefits,14/09/2015,HOUSING BENEFIT ADMINISTRATION,HB ENGLAND,WINCHESTER CITY COUNCIL,2033844662,"28,294"
Department for Work and Pensions,Corporate,16/09/2015,SOFTWARE LICENCES,CIO IT STATISTICAL SERVICES,SPECIALIST COMPUTER CENTRES PLC,2033850447,"28,158"
Department for Work and Pensions,Employment Programmes,25/09/2015,WP JSA 25+ SUSTAINMENT OUTCOME PAYMENT,WWEG EP W MIDLANDS BIRM SOL BC PERTEMPS,PERTEMPS,2033865169,"27,950"
Department for Work and Pensions,Employment Programmes,25/09/2015,WP JSA 18-24 JOB SUSTAINMENT OUTCOME PAYMENT,WWEG EP NORTH EAST INGEUS UK,INGEUS UK LTD,2033865532,"27,880"
Department for Work and Pensions,Corporate,08/09/2015,CONTRACTORS & STAFF SUBSTITUTIONS,CIO ARCHITECTURE CORE,CAPITA BUSINESS SERVICES LTD,2033836869,"27,793"
Department for Work and Pensions,Corporate,02/09/2015,AGENCY PAYMENTS TO LOCAL AUTHORITIES & PARTNERSHIPS,OPS WDC WSD CE GROUP DIRECTORS OFFICE,EREWASH BOROUGH COUNCIL,2033830419,"27,771"
Department for Work and Pensions,Corporate,14/09/2015,VOCA Charges,FG FIN CONT COBAP BANKING,VOCALINK,2033846392,"27,666"
Department for Work and Pensions,Housing Benefits,14/09/2015,HOUSING BENEFIT ADMINISTRATION,HB ENGLAND,BOSTON BOROUGH COUNCIL,2033844593,"27,547"
Department for Work and Pensions,Employment Programmes,11/09/2015,WP JSA 25+ SUSTAINMENT OUTCOME PAYMENT,WWEG EP W MIDLANDS BIRM SOL BC FOURSTAR EMP AND SKILLS,PEOPLEPLUS GROUP LTD,2033844436,"27,520"
Department for Work and Pensions,Housing Benefits,14/09/2015,HOUSING BENEFIT ADMINISTRATION,HB ENGLAND,BOROUGH OF WELLINGBOROUGH,2033844667,"27,417"
Department for Work and Pensions,Housing Benefits,14/09/2015,HOUSING BENEFIT ADMINISTRATION,HB ENGLAND,SPELTHORNE BOROUGH COUNCIL,2033844710,"27,375"
Department for Work and Pensions,Housing Benefits,14/09/2015,HOUSING BENEFIT ADMINISTRATION,HB ENGLAND,WEST LINDSEY DISTRICT COUNCIL,2033844616,"27,371"
Department for Work and Pensions,Employment Programmes,10/09/2015,WP JSA 18-24 JOB SUSTAINMENT OUTCOME PAYMENT,WWEG EP EAST OF ENGLAND SEETEC,SEETEC BUSINESS TECHNOLOGY CENTRE LTD,2033841777,"27,370"
Department for Work and Pensions,Employment Programmes,25/09/2015,WP JSA 18-24 JOB SUSTAINMENT OUTCOME PAYMENT,WWEG EP SCOTLAND WORKING LINKS,WORKING LINKS,2033865410,"27,370"
Department for Work and Pensions,Employment Programmes,01/09/2015,WP JSA 25+ SUSTAINMENT OUTCOME PAYMENT,WWEG EP NORTH WEST GM CHES AND WARR G4S,G4S REGIONAL MANAGEMENT UK & I LTD,2033828950,"27,305"
Department for Work and Pensions,Housing Benefits,14/09/2015,HOUSING BENEFIT ADMINISTRATION,HB ENGLAND,ROTHER DISTRICT COUNCIL,2033844583,"27,229"
Department for Work and Pensions,Corporate,15/09/2015,POSTAGE,OPS BEN DD SFSB WEMBLEY,ROYAL MAIL GROUP PLC,2033848706,"27,227"
Department for Work and Pensions,Housing Benefits,14/09/2015,HOUSING BENEFIT ADMINISTRATION,HB ENGLAND,EAST HAMPSHIRE DISTRICT COUNCIL,2033844635,"27,170"
Department for Work and Pensions,Employment Programmes,21/09/2015,WP JSA 25+ SUSTAINMENT OUTCOME PAYMENT,WWEG EP NORTH WEST GM CHES AND WARR G4S,G4S REGIONAL MANAGEMENT UK & I LTD,2033856790,"27,090"
Department for Work and Pensions,Employment Programmes,14/09/2015,WP JSA 25+ SUSTAINMENT OUTCOME PAYMENT,WWEG EP WEST LONDON REED IN PARTNERSHIP,REED IN PARTNERSHIP LTD,2033846203,"27,090"
Department for Work and Pensions,Employment Programmes,25/09/2015,WP JSA 18-24 JOB SUSTAINMENT OUTCOME PAYMENT,WWEG EP NORTH WEST MERS HAL CUMB AND LANCS A4E,PEOPLEPLUS GROUP,2033864130,"27,030"
Department for Work and Pensions,Housing Benefits,14/09/2015,HOUSING BENEFIT ADMINISTRATION,HB ENGLAND,BROADLAND DISTRICT COUNCIL,2033844618,"26,825"
Department for Work and Pensions,Housing Benefits,14/09/2015,HOUSING BENEFIT ADMINISTRATION,HB ENGLAND,TAMWORTH BOROUGH COUNCIL,2033844581,"26,794"
Department for Work and Pensions,Housing Benefits,14/09/2015,HOUSING BENEFIT ADMINISTRATION,HB ENGLAND,SOUTH STAFFORDSHIRE DISTRICT COUNCIL,2033844579,"26,760"
Department for Work and Pensions,Corporate,24/09/2015,NON PRIME PROPERTY COSTS,FG CD OPS & CMG ESTATES NON-PRIME COSTS,VALUATION OFFICE AGENCY,2033862490,"26,740"
Department for Work and Pensions,Housing Benefits,14/09/2015,HOUSING BENEFIT ADMINISTRATION,HB ENGLAND,BARROW BOROUGH COUNCIL,2033844703,"26,727"
Department for Work and Pensions,Housing Benefits,14/09/2015,HOUSING BENEFIT ADMINISTRATION,HB ENGLAND,WOKING BOROUGH COUNCIL,2033844712,"26,689"
Department for Work and Pensions,Child Maintenance and Enforcement Commission,15/09/2015,TREDDS APPS DEV MANDAYS,OPS MI TCS,HP ENTERPRISE SERVICES UK LTD,1000243404,"26,673"
Department for Work and Pensions,Employment Programmes,25/09/2015,WP JSA 25+ SUSTAINMENT OUTCOME PAYMENT,WWEG EP S WEST DEV COR DOR AND SOM PROSPECTS SERVICES,PROSPECTS SERVICES LTD,2033865565,"26,660"
Department for Work and Pensions,Housing Benefits,14/09/2015,HOUSING BENEFIT ADMINISTRATION,HB ENGLAND,SOUTH CAMBRIDGESHIRE DISTRICT COUNCIL,2033844784,"26,587"
Department for Work and Pensions,Housing Benefits,14/09/2015,HOUSING BENEFIT ADMINISTRATION,HB ENGLAND,SOUTH RIBBLE BOROUGH COUNCIL C,2033844564,"26,522"
Department for Work and Pensions,Employment Programmes,25/09/2015,WP JSA 18-24 JOB SUSTAINMENT OUTCOME PAYMENT,WWEG EP NORTH WEST MERS HAL CUMB AND LANCS INGEUS UK,INGEUS UK LTD,2033865532,"26,520"
Department for Work and Pensions,Employment Programmes,03/09/2015,WP JSA 25+ JOB OUTCOME PAYMENTWP JSA 25+ JOB OUTCOME PAYMENT,WWEG EP EAST LONDON CAREERS DEVELOPMENT GROUP,CAREERS DEVELOPMENT GROUP,2033832436,"26,472"
Department for Work and Pensions,Employment Programmes,01/09/2015,WP JSA 25+ SUSTAINMENT OUTCOME PAYMENT,WWEG EP EAST LONDON SEETEC,SEETEC BUSINESS TECHNOLOGY CENTRE LTD,2033829873,"26,445"
Department for Work and Pensions,Employment Programmes,11/09/2015,SUSTAINMENT FEE,REMPLOY WORK CHOICE PAYMENTS,REMPLOY LTD,2033843860,"26,386"
Department for Work and Pensions,Housing Benefits,14/09/2015,HOUSING BENEFIT ADMINISTRATION,HB ENGLAND,STROUD DISTRICT COUNCIL,2033844612,"26,361"
Department for Work and Pensions,Housing Benefits,14/09/2015,HOUSING BENEFIT ADMINISTRATION,HB ENGLAND,FOREST OF DEAN DISTRICT COUNCIL,2033844611,"26,346"
Department for Work and Pensions,Housing Benefits,14/09/2015,HOUSING BENEFIT ADMINISTRATION,HB SCOTLAND,STIRLING COUNCIL,2033844727,"26,316"
Department for Work and Pensions,Housing Benefits,14/09/2015,HOUSING BENEFIT ADMINISTRATION,HB ENGLAND,SOUTH OXFORDSHIRE DISTRICT COUNCIL,2033844511,"26,292"
Department for Work and Pensions,Corporate,09/09/2015,AGENCY PAYMENTS TO LOCAL AUTHORITIES & PARTNERSHIPS,OPS WDC WSD LN GROUP HOLDING ACCOUNT,LONDON BOROUGH OF WALTHAM FOREST,2033838644,"26,256"
Department for Work and Pensions,Employment Programmes,18/09/2015,WP JSA 25+ SUSTAINMENT OUTCOME PAYMENT,WWEG EP SOUTH EAST TV HANTS AND IOW A4E,PEOPLEPLUS GROUP,2033853550,"26,230"
Department for Work and Pensions,Employment Programmes,25/09/2015,WP JSA 25+ SUSTAINMENT OUTCOME PAYMENT,WWEG EP W MIDLANDS BIRM SOL BC NEWCASTLE COLLEGE GROUP,NEWCASTLE COLLEGE GROUP,2033865572,"26,230"
Department for Work and Pensions,Employment Programmes,30/09/2015,WP JSA 18-24 JOB SUSTAINMENT OUTCOME PAYMENT,WWEG EP WEST YORKSHIRE BEST LTD,INTERSERVE WORKING FUTURES,2033867568,"26,180"
Department for Work and Pensions,Corporate,21/09/2015,AGENCY PAYMENTS TO LOCAL AUTHORITIES & PARTNERSHIPS,OPS WDC WSD CE GROUP DPA LA PAYMENTS,TAMWORTH BOROUGH COUNCIL,2033854975,"26,167"
Department for Work and Pensions,Housing Benefits,14/09/2015,HOUSING BENEFIT ADMINISTRATION,HB ENGLAND,CASTLE POINT DISTRICT COUNCIL,2033844586,"26,108"
Department for Work and Pensions,Employment Programmes,25/09/2015,WP JSA 25+ SUSTAINMENT OUTCOME PAYMENT,WWEG EP NORTH WEST GM CHES AND WARR G4S,G4S REGIONAL MANAGEMENT UK & I LTD,2033865734,"26,015"
Department for Work and Pensions,Corporate,25/09/2015,FSF - TRAINING PAYMENTS TO PROVIDERS - JSA JOBSEEKERS,OPS WDC WSD CE EMPLOYER AND PARTNERSHIPS MIDLAND SHIRES,PERTEMPS,2033865168,"25,995"
Department for Work and Pensions,Employment Programmes,25/09/2015,WP JSA 18-24 JOB SUSTAINMENT OUTCOME PAYMENT,WWEG EP EAST MIDLANDS A4E,PEOPLEPLUS GROUP,2033864130,"25,840"
Department for Work and Pensions,Employment Programmes,02/09/2015,WP JSA 25+ SUSTAINMENT OUTCOME PAYMENT,WWEG EP NORTH WEST GM CHES AND WARR AVANTA ENTERPRISE,PEOPLEPLUS LTD,2033830888,"25,800"
Department for Work and Pensions,Corporate,14/09/2015,TREDDS APPS DEV MANDAYS,CIO IT OGD HMRC ITLR,HP ENTERPRISE SERVICES UK LTD,2033846244,"25,799"
Department for Work and Pensions,Corporate,01/09/2015,CONTRACTORS & STAFF SUBSTITUTIONS,CHG DIGITAL TRANSFORMATION DG OFFICE,CAPITA BUSINESS SERVICES LTD,2033829835,"25,762"
Department for Work and Pensions,Housing Benefits,14/09/2015,HOUSING BENEFIT ADMINISTRATION,HB ENGLAND,VALE OF WHITE HORSE DISTRICT COUNCIL,2033844527,"25,745"
Department for Work and Pensions,Employment Programmes,04/09/2015,WP JSA 18-24 JOB SUSTAINMENT OUTCOME PAYMENT,WWEG EP EAST OF ENGLAND INGEUS UK,INGEUS UK LTD,2033834944,"25,670"
Department for Work and Pensions,Housing Benefits,14/09/2015,HOUSING BENEFIT ADMINISTRATION,HB ENGLAND,NORTH WEST LEICESTER DISTRICT COUNCIL,2033844590,"25,660"
Department for Work and Pensions,Corporate,23/09/2015,FSF - PARTNERSHIP GRANTS - TO HELP JSA CLIENTS INTO WORK,OPS WDC WSD CE BIRMINGHAM AND SOLIHULL DISTRICT OFFICE,BEST NETWORK,2033859472,"25,597"
Department for Work and Pensions,Corporate,23/09/2015,FSF - PARTNERSHIP GRANTS - TO HELP JSA CLIENTS INTO WORK,OPS WDC WSD CE BIRMINGHAM AND SOLIHULL DISTRICT OFFICE,BIRMINGHAM EMPLOYMENT SKILLS & TRAINING NETWORK,2033859587,"25,597"
Department for Work and Pensions,Housing Benefits,14/09/2015,HOUSING BENEFIT ADMINISTRATION,HB ENGLAND,ROSSENDALE BOROUGH COUNCIL,2033844563,"25,515"
Department for Work and Pensions,Housing Benefits,14/09/2015,HOUSING BENEFIT ADMINISTRATION,HB ENGLAND,HINCKLEY & BOSWORTH BOROUGH COUNCIL,2033844567,"25,468"
Department for Work and Pensions,Housing Benefits,14/09/2015,HOUSING BENEFIT ADMINISTRATION,HB SCOTLAND,CLACKMANNANSHIRE COUNCIL,2033844794,"25,370"
Department for Work and Pensions,Employment Programmes,09/09/2015,WP JSA 25+ SUSTAINMENT OUTCOME PAYMENT,WWEG EP SCOTLAND WORKING LINKS,WORKING LINKS,2033839652,"25,370"
Department for Work and Pensions,Employment Programmes,04/09/2015,WP JSA 25+ SUSTAINMENT OUTCOME PAYMENT,WWEG EP SOUTH EAST TV HANTS AND IOW A4E,PEOPLEPLUS GROUP,2033833425,"25,370"
Department for Work and Pensions,Employment Programmes,11/09/2015,WP JSA 25+ SUSTAINMENT OUTCOME PAYMENT,WWEG EP SOUTH EAST TV HANTS AND IOW MAXIMUS EMPLOYMENT,MAXIMUS HEALTH & HUMAN SERVICES LTD,2033844106,"25,370"
Department for Work and Pensions,Corporate,08/09/2015,PROFESSIONAL ADVICE & OPINION VAT RECOVERABLE,STR LEGAL SERVICES,HOGAN LOVELLS,1007356,"25,232"
Department for Work and Pensions,Employment Programmes,25/09/2015,WP JSA 25+ SUSTAINMENT OUTCOME PAYMENT,WWEG EP S WEST GLOS WILTS AND W OF E JHP GROUP,LEARNDIRECT LTD,2033865502,"25,155"
Department for Work and Pensions,Employment Programmes,18/09/2015,WP JSA 25+ SUSTAINMENT OUTCOME PAYMENT,WWEG EP W MIDLANDS BIRM SOL BC PERTEMPS,PERTEMPS,2033852799,"25,155"
Department for Work and Pensions,Employment Programmes,09/09/2015,WP JSA 25+ SUSTAINMENT OUTCOME PAYMENT,WWEG EP W MIDLANDS COV WARW STAFFS AND MARCHES ESG,ESG HOLDINGS LIMITED,2033838932,"25,155"
Department for Work and Pensions,Corporate,21/09/2015,FSF - PARTNERSHIP GRANTS - TO HELP JSA CLIENTS INTO WORK,OPS WDC WSD SC ABERDEEN EBURY HOUSE JOBCENTRE PLUS,ABERDEEN CITY COUNCIL,2033854464,"25,123"
Department for Work and Pensions,Housing Benefits,14/09/2015,HOUSING BENEFIT ADMINISTRATION,HB WALES,CEREDIGION COUNTY COUNCIL,2033844519,"25,043"
Department for Work and Pensions,Corporate,22/09/2015,NON-TREDDS IS IT APPS DEV MANDAY,CHG ABOLITION OF ASSESSED INCOME PERIODS IN SP CREDIT,ACCENTURE UK LTD,2033857086,"25,001"
Department for Work and Pensions,Corporate,24/09/2015,CONTRACTED OUT ORIGINAL RESEARCH,STR ANALYSIS CAD,IES,2033863503,"25,000"
Department for Work and Pensions,Corporate,08/09/2015,PROFESSIONAL ADVICE & OPINION VAT RECOVERABLE,STR LEGAL SERVICES,HOGAN LOVELLS,1007358,"24,949"
Department for Work and Pensions,Corporate,22/09/2015,NON-TREDDS IS IT APPS DEV MANDAY,OPS OPE C&I BUSINESS GENERATED CHANGE - IT,ACCENTURE UK LTD,2033857086,"24,942"
Department for Work and Pensions,Employment Programmes,30/09/2015,WP JSA 25+ SUSTAINMENT OUTCOME PAYMENT,WWEG EP SOUTH EAST SURR SUSSX AND KENT AVANTA ENTERPRISE,PEOPLEPLUS LTD,2033866695,"24,940"
Department for Work and Pensions,Employment Programmes,21/09/2015,WP JSA 25+ SUSTAINMENT OUTCOME PAYMENT,WWEG EP WALES REHAB JOB FIT,REHAB JOBFIT LLP,2033856100,"24,940"
Department for Work and Pensions,Corporate,25/09/2015,VALUATION OFFICE,OPS BEN DD YORKSHIRE BC (QH),VALUATION OFFICE AGENCY,2033865071,"24,880"
Department for Work and Pensions,Housing Benefits,14/09/2015,HOUSING BENEFIT ADMINISTRATION,HB ENGLAND,SOUTH HAMS DISTRICT COUNCIL,2033844532,"24,787"
Department for Work and Pensions,Housing Benefits,14/09/2015,HOUSING BENEFIT ADMINISTRATION,HB ENGLAND,THREE RIVERS DISTRICT COUNCIL,2033844689,"24,756"
Department for Work and Pensions,Housing Benefits,14/09/2015,HOUSING BENEFIT ADMINISTRATION,HB SCOTLAND,EAST DUNBARTONSHIRE COUNCIL,2033844675,"24,730"
Department for Work and Pensions,Employment Programmes,25/09/2015,WP JSA 25+ SUSTAINMENT OUTCOME PAYMENT,WWEG EP WALES WORKING LINKS WALES,WORKING LINKS,2033865410,"24,725"
Department for Work and Pensions,Employment Programmes,25/09/2015,WP JSA 18-24 JOB SUSTAINMENT OUTCOME PAYMENT,WWEG EP EAST OF ENGLAND INGEUS UK,INGEUS UK LTD,2033865532,"24,650"
Department for Work and Pensions,Employment Programmes,01/09/2015,WP JSA 25+ SUSTAINMENT OUTCOME PAYMENT,WWEG EP EAST OF ENGLAND INGEUS UK,INGEUS UK LTD,2033828906,"24,510"
Department for Work and Pensions,Employment Programmes,25/09/2015,WP JSA 18-24 JOB SUSTAINMENT OUTCOME PAYMENT,WWEG EP NORTH EAST AVANTA ENTERPRISE,PEOPLEPLUS LTD,2033865088,"24,480"
Department for Work and Pensions,Corporate,15/09/2015,TREDDS APPS DEV MANDAYS,CHG VME MIDDLEWARE-R,HP ENTERPRISE SERVICES UK LTD,2033848465,"24,433"
Department for Work and Pensions,Corporate,24/09/2015,FSF - TRAINING PAYMENTS TO PROVIDERS - SICK/DISABLED CLIENTS,OPS WDC WSD SE GREATER WESSEX DISTRICT OFFICE,EQL SOLUTIONS LTD,2033861104,"24,425"
Department for Work and Pensions,Employment Programmes,25/09/2015,COMMUNITY WORK PLACEMENTS - SHORT COMPLETION FEE,WWEP EP FG CEP CWP CPA04 - LONDON (EAST),G4S REGIONAL MANAGEMENT UK & I LTD,2033865734,"24,360"
Department for Work and Pensions,Employment Programmes,15/09/2015,WP JSA 25+ SUSTAINMENT OUTCOME PAYMENT,WWEG EP NORTH WEST GM CHES AND WARR SEETEC,SEETEC BUSINESS TECHNOLOGY CENTRE LTD,2033848469,"24,295"
Department for Work and Pensions,Employment Programmes,01/09/2015,WP JSA 25+ SUSTAINMENT OUTCOME PAYMENT,WWEG EP SOUTH EAST SURR SUSSX AND KENT AVANTA ENTERPRISE,PEOPLEPLUS LTD,2033829293,"24,295"
Department for Work and Pensions,Housing Benefits,14/09/2015,HOUSING BENEFIT ADMINISTRATION,HB ENGLAND,LICHFIELD DISTRICT COUNCIL,2033844557,"24,220"
Department for Work and Pensions,Employment Programmes,30/09/2015,WP JSA 25+ SUSTAINMENT OUTCOME PAYMENT,WWEG EP EAST OF ENGLAND INGEUS UK,INGEUS UK LTD,2033867595,"24,080"
Department for Work and Pensions,Employment Programmes,14/09/2015,WP JSA 25+ SUSTAINMENT OUTCOME PAYMENT,WWEG EP NORTH WEST GM CHES AND WARR G4S,G4S REGIONAL MANAGEMENT UK & I LTD,2033845722,"24,080"
Department for Work and Pensions,Employment Programmes,11/09/2015,WP JSA 25+ SUSTAINMENT OUTCOME PAYMENT,WWEG EP W MIDLANDS BIRM SOL BC PERTEMPS,PERTEMPS,2033842526,"24,080"
Department for Work and Pensions,Employment Programmes,25/09/2015,SUSTAINMENT FEE,WWEG EP WORK CHOICE DEVON AND CORNWALL,THE PLUSS ORGANISATION,2033865207,"24,001"
Department for Work and Pensions,Employment Programmes,04/09/2015,WP JSA 18-24 JOB SUSTAINMENT OUTCOME PAYMENT,WWEG EP SCOTLAND INGEUS UK,INGEUS UK LTD,2033834944,"23,970"
Department for Work and Pensions,Housing Benefits,14/09/2015,HOUSING BENEFIT ADMINISTRATION,HB ENGLAND,WEST OXFORDSHIRE DISTRICT COUNCIL,2033844528,"23,899"
Department for Work and Pensions,Employment Programmes,08/09/2015,OUTCOME FEE,REMPLOY WORK CHOICE PAYMENTS,REMPLOY LTD,2033837380,"23,887"
Department for Work and Pensions,Employment Programmes,14/09/2015,WP JSA 25+ SUSTAINMENT OUTCOME PAYMENT,WWEG EP WALES REHAB JOB FIT,REHAB JOBFIT LLP,2033845614,"23,865"
Department for Work and Pensions,Housing Benefits,14/09/2015,HOUSING BENEFIT ADMINISTRATION,HB ENGLAND,COPELAND BOROUGH COUNCIL,2033844490,"23,750"
Department for Work and Pensions,Employment Programmes,22/09/2015,WP JSA 25+ SUSTAINMENT OUTCOME PAYMENT,WWEG EP EAST LONDON CAREERS DEVELOPMENT GROUP,CAREERS DEVELOPMENT GROUP,2033857282,"23,650"
Department for Work and Pensions,Employment Programmes,18/09/2015,WP JSA 25+ SUSTAINMENT OUTCOME PAYMENT,WWEG EP W MIDLANDS BIRM SOL BC NEWCASTLE COLLEGE GROUP,NEWCASTLE COLLEGE GROUP,2033853563,"23,650"
Department for Work and Pensions,Housing Benefits,14/09/2015,HOUSING BENEFIT ADMINISTRATION,HB ENGLAND,NORTH KESTEVEN DISTRICT COUNCIL,2033844772,"23,632"
Department for Work and Pensions,Child Maintenance and Enforcement Commission,15/09/2015,POSTAGE,CS CENTRALLY HELD BUDGETS FACILITIES CONTRACTS,ROYAL MAIL GROUP PLC,1000243407,"23,629"
Department for Work and Pensions,Housing Benefits,14/09/2015,HOUSING BENEFIT ADMINISTRATION,HB WALES,ISLE OF ANGLESEY COUNTY COUNCIL,2033844812,"23,622"
Department for Work and Pensions,Corporate,15/09/2015,POSTAGE,OPS BEN BD SC GLASGOW NORTHGATE,ROYAL MAIL GROUP PLC,2033848706,"23,553"
Department for Work and Pensions,Corporate,01/09/2015,CONTRACTORS & STAFF SUBSTITUTIONS,F&C CD STRATEGY AND BUSINESS MANAGEMENT,CAPITA BUSINESS SERVICES LTD,2033829835,"23,522"
Department for Work and Pensions,Corporate,25/09/2015,STAFF RELATED COSTS VAT RECOVERABLE,HR EAP,OH ASSIST,2033865625,"23,521"
Department for Work and Pensions,Housing Benefits,14/09/2015,HOUSING BENEFIT ADMINISTRATION,HB ENGLAND,SOUTH LAKELAND DISTRICT COUNCIL,2033844802,"23,440"
Department for Work and Pensions,Employment Programmes,01/09/2015,WP JSA 25+ SUSTAINMENT OUTCOME PAYMENT,WWEG EP S WEST DEV COR DOR AND SOM PROSPECTS SERVICES,PROSPECTS SERVICES LTD,2033829132,"23,435"
Department for Work and Pensions,Child Maintenance and Enforcement Commission,25/09/2015,BAILIFF COMMISSION,EXTERNAL CONTRACTS DEBT COLLECTION IQOR,MARSTON GROUP LTD,1000243977,"23,434"
Department for Work and Pensions,Housing Benefits,14/09/2015,HOUSING BENEFIT ADMINISTRATION,HB ENGLAND,FYLDE BOROUGH COUNCIL,2033844805,"23,415"
Department for Work and Pensions,Housing Benefits,14/09/2015,HOUSING BENEFIT ADMINISTRATION,HB WALES,MONMOUTHSHIRE COUNTY  COUNCIL,2033844810,"23,378"
Department for Work and Pensions,Housing Benefits,14/09/2015,HOUSING BENEFIT ADMINISTRATION,HB ENGLAND,SOUTH HOLLAND DISTRICT COUNCIL,2033844676,"23,368"
Department for Work and Pensions,Employment Programmes,25/09/2015,COMMUNITY WORK PLACEMENTS - LONG COMPLETION FEE,WWEP EP FG CEP CWP CPA06 - NORTH WEST (1),G4S REGIONAL MANAGEMENT UK & I LTD,2033865734,"23,368"
Department for Work and Pensions,Corporate,11/09/2015,NON-TREDDS IS IT APPS DEV MANDAY,CIO ADC DIRECTOR,IBM UNITED KINGDOM LTD,2033842749,"23,326"
Department for Work and Pensions,Corporate,14/09/2015,NETWORK SERVICES,CHG IT TRANSFORMATION PROG,BT GLOBAL SERVICES,2033846213,"23,322"
Department for Work and Pensions,Employment Programmes,25/09/2015,COMMUNITY WORK PLACEMENTS - SHORT COMPLETION FEE,WWEP EP FG CEP CWP CPA02 - EAST MIDLANDS,G4S REGIONAL MANAGEMENT UK & I LTD,2033865734,"23,286"
Department for Work and Pensions,Employment Programmes,23/09/2015,WP JSA 25+ SUSTAINMENT OUTCOME PAYMENT,WWEG EP WEST LONDON MAXIMUS EMPLOYMENT UK,MAXIMUS HEALTH & HUMAN SERVICES LTD,2033860055,"23,220"
Department for Work and Pensions,Housing Benefits,14/09/2015,HOUSING BENEFIT ADMINISTRATION,HB ENGLAND,TORRIDGE DISTRICT COUNCIL,2033844535,"23,144"
Department for Work and Pensions,Housing Benefits,14/09/2015,HOUSING BENEFIT ADMINISTRATION,HB ENGLAND,BABERGH DISTRICT COUNCIL,2033844582,"23,098"
Department for Work and Pensions,Housing Benefits,14/09/2015,HOUSING BENEFIT ADMINISTRATION,HB ENGLAND,MID DEVON DISTRICT COUNCIL,2033844533,"23,031"
Department for Work and Pensions,Corporate,08/09/2015,CONTRACTORS & STAFF SUBSTITUTIONS,CIO ENTERPRISE INFRASTRUCTURE CONTRACT GENERAL,CAPITA BUSINESS SERVICES LTD,2033836869,"23,024"
Department for Work and Pensions,Employment Programmes,02/09/2015,WP JSA 25+ SUSTAINMENT OUTCOME PAYMENT,WWEG EP SCOTLAND INGEUS UK,INGEUS UK LTD,2033830762,"23,005"
Department for Work and Pensions,Employment Programmes,21/09/2015,WP JSA 25+ SUSTAINMENT OUTCOME PAYMENT,WWEG EP WEST LONDON REED IN PARTNERSHIP,REED IN PARTNERSHIP LTD,2033855137,"23,005"
Department for Work and Pensions,Corporate,15/09/2015,APPS DEV INDEX ARR,CHG UC PATHFINDER DELIVERY MANAGEMENT,HP ENTERPRISE SERVICES UK LTD,2033848465,"22,894"
Department for Work and Pensions,Employment Programmes,11/09/2015,WP JSA 25+ SUSTAINMENT OUTCOME PAYMENT,WWEG EP NORTH WEST GM CHES AND WARR SEETEC,SEETEC BUSINESS TECHNOLOGY CENTRE LTD,2033842780,"22,790"
Department for Work and Pensions,Employment Programmes,04/09/2015,WP JSA 18-24 JOB SUSTAINMENT OUTCOME PAYMENT,WWEG EP EAST MIDLANDS INGEUS UK,INGEUS UK LTD,2033834944,"22,780"
Department for Work and Pensions,Employment Programmes,25/09/2015,WP JSA 18-24 JOB SUSTAINMENT OUTCOME PAYMENT,WWEG EP SCOTLAND INGEUS UK,INGEUS UK LTD,2033865532,"22,780"
Department for Work and Pensions,Corporate,14/09/2015,TREDDS APPS DEV MANDAYS,CHG WINTER FUEL TEMPERATURE LINK,HP ENTERPRISE SERVICES UK LTD,2033846244,"22,760"
Department for Work and Pensions,Corporate,30/09/2015,PRIME FACILITY PRICE,FG CD PORTH OLDWAY HOUSE,TELEREAL TRILLIUM,2033866042,"22,756"
Department for Work and Pensions,Housing Benefits,14/09/2015,HOUSING BENEFIT ADMINISTRATION,HB ENGLAND,EAST CAMBRIDGESHIRE DISTRICT COUNCIL,2033844782,"22,751"
Department for Work and Pensions,Housing Benefits,14/09/2015,HOUSING BENEFIT ADMINISTRATION,HB ENGLAND,STAFFORDSHIRE MOORLANDS DISTRICT COUNCIL,2033844580,"22,734"
Department for Work and Pensions,Corporate,25/09/2015,STAFF TRAINING VAT RECOVERABLE,CIO IT CYBER SECURITY,CAPITA CIVIL SERVICE LEARNING,2033864649,"22,667"
Department for Work and Pensions,Employment Programmes,04/09/2015,WP JSA 18-24 JOB SUSTAINMENT OUTCOME PAYMENT,WWEG EP NORTH EAST INGEUS UK,INGEUS UK LTD,2033834944,"22,610"
Department for Work and Pensions,Employment Programmes,01/09/2015,WP JSA 25+ SUSTAINMENT OUTCOME PAYMENT,WWEG EP NORTH WEST GM CHES AND WARR AVANTA ENTERPRISE,PEOPLEPLUS LTD,2033829293,"22,575"
Department for Work and Pensions,Employment Programmes,02/09/2015,WP JSA 25+ SUSTAINMENT OUTCOME PAYMENT,WWEG EP WEST YORKSHIRE BEST LTD,INTERSERVE WORKING FUTURES,2033830712,"22,575"
Department for Work and Pensions,Child Maintenance and Enforcement Commission,03/09/2015,DWP COURT FEES & RELATED EXPENSES,EXTERNAL CONTRACTS HARPER MACLEOD,HARPER MACLEOD LLP,1000242854,"22,509"
Department for Work and Pensions,Corporate,30/09/2015,PRINTING/BINDING,FG CD MANAGEMENT FEE,XEROX UK LTD 3W,2033866692,"22,409"
Department for Work and Pensions,Employment Programmes,18/09/2015,OUTCOME FEE,WWEG EP REMPLOY,REMPLOY LTD,2033853560,"22,394"
Department for Work and Pensions,Employment Programmes,14/09/2015,WP JSA 25+ SUSTAINMENT OUTCOME PAYMENT,WWEG EP SOUTH EAST SURR SUSSX AND KENT G4S,G4S REGIONAL MANAGEMENT UK & I LTD,2033845722,"22,360"
Department for Work and Pensions,Corporate,15/09/2015,COURIER COSTS,OPS PEN PS NEWCASTLE PC INTERNATIONAL GROUP,UK MAIL,2033848702,"22,338"
Department for Work and Pensions,Corporate,07/09/2015,FSF - TRAINING PAYMENTS TO PROVIDERS - CARERS,OPS WDC WSD CE MERCIA EXTERNAL RELATIONS TEAM,LEARNDIRECT LTD,2033836549,"22,320"
Department for Work and Pensions,Housing Benefits,14/09/2015,HOUSING BENEFIT ADMINISTRATION,HB ENGLAND,HAMBLETON DISTRICT COUNCIL,2033844668,"22,288"
Department for Work and Pensions,Housing Benefits,14/09/2015,HOUSING BENEFIT ADMINISTRATION,HB ENGLAND,TEWKESBURY BOROUGH COUNCIL,2033844613,"22,239"
Department for Work and Pensions,Employment Programmes,25/09/2015,WP JSA 25+ JOB OUTCOME PAYMENTWP JSA 25+ JOB OUTCOME PAYMENT,WWEG EP EAST MIDLANDS A4E,PEOPLEPLUS GROUP,2033864130,"22,224"
Department for Work and Pensions,Corporate,15/09/2015,POSTAGE,OPS OPE NINO GLASGOW NDC,ROYAL MAIL GROUP PLC,2033848706,"22,185"
Department for Work and Pensions,Employment Programmes,02/09/2015,WP JSA 25+ SUSTAINMENT OUTCOME PAYMENT,WWEG EP EAST LONDON SEETEC,SEETEC BUSINESS TECHNOLOGY CENTRE LTD,2033830233,"22,145"
Department for Work and Pensions,Employment Programmes,07/09/2015,WP JSA 25+ SUSTAINMENT OUTCOME PAYMENT,WWEG EP WEST YORKSHIRE BEST LTD,INTERSERVE WORKING FUTURES,2033835468,"22,145"
Department for Work and Pensions,Housing Benefits,14/09/2015,HOUSING BENEFIT ADMINISTRATION,HB ENGLAND,SOUTH DERBYSHIRE DISTRICT COUNCIL,2033844551,"22,110"
Department for Work and Pensions,Housing Benefits,14/09/2015,HOUSING BENEFIT ADMINISTRATION,HB ENGLAND,RUNNYMEDE BOROUGH COUNCIL,2033844709,"22,092"
Department for Work and Pensions,Corporate,15/09/2015,NON-TREDDS IS IT APPS DEV MANDAY,CHG UC PATHFINDER RECURRENT COSTS,IBM UNITED KINGDOM LTD,2033847860,"22,067"
Department for Work and Pensions,Employment Programmes,25/09/2015,WP JSA NEET SUSTAINMENT OUTCOME PAYMENT,WWEG EP NORTH WEST MERS HAL CUMB AND LANCS A4E,PEOPLEPLUS GROUP,2033864130,"22,000"
Department for Work and Pensions,Employment Programmes,08/09/2015,WP JSA 25+ SUSTAINMENT OUTCOME PAYMENT,WWEG EP SCOTLAND INGEUS UK,INGEUS UK LTD,2033837866,"21,930"
Department for Work and Pensions,Employment Programmes,04/09/2015,WP JSA 25+ SUSTAINMENT OUTCOME PAYMENT,WWEG EP W MIDLANDS BIRM SOL BC NEWCASTLE COLLEGE GROUP,NEWCASTLE COLLEGE GROUP,2033833732,"21,930"
Department for Work and Pensions,Employment Programmes,30/09/2015,WP JSA 25+ SUSTAINMENT OUTCOME PAYMENT,WWEG EP W MIDLANDS COV WARW STAFFS AND MARCHES ESG,ESG HOLDINGS LIMITED,2033866837,"21,930"
Department for Work and Pensions,Employment Programmes,04/09/2015,WP JSA 25+ JOB OUTCOME PAYMENTWP JSA 25+ JOB OUTCOME PAYMENT,WWEG EP SOUTH YORKSHIRE SERCO,SERCO LTD,2033834040,"21,840"
Department for Work and Pensions,Corporate,15/09/2015,NON-TREDDS IS IT APPS DEV MANDAY,CHG VME CACS-R,IBM UNITED KINGDOM LTD,2033847860,"21,823"
Department for Work and Pensions,Housing Benefits,14/09/2015,HOUSING BENEFIT ADMINISTRATION,HB ENGLAND,RUSHCLIFFE BOROUGH COUNCIL,2033844671,"21,804"
Department for Work and Pensions,Corporate,07/09/2015,RENEWALS OF SOFTWARE SUPPORT AND MAINTENANCE,CHG UC DESIGN & BUILD PROGRAMME MANAGER,SPECIALIST COMPUTER CENTRES PLC,2033836560,"21,759"
Department for Work and Pensions,Employment Programmes,02/09/2015,WP JSA 25+ SUSTAINMENT OUTCOME PAYMENT,WWEG EP SOUTH EAST SURR SUSSX AND KENT G4S,G4S REGIONAL MANAGEMENT UK & I LTD,2033830396,"21,715"
Department for Work and Pensions,Employment Programmes,25/09/2015,WP JSA 18-24 JOB SUSTAINMENT OUTCOME PAYMENT,WWEG EP EAST MIDLANDS INGEUS UK,INGEUS UK LTD,2033865532,"21,590"
Department for Work and Pensions,Employment Programmes,01/09/2015,WP JSA 25+ SUSTAINMENT OUTCOME PAYMENT,WWEG EP SCOTLAND INGEUS UK,INGEUS UK LTD,2033828906,"21,500"
Department for Work and Pensions,Employment Programmes,11/09/2015,WP JSA 25+ SUSTAINMENT OUTCOME PAYMENT,WWEG EP SOUTH YORKSHIRE A4E,PEOPLEPLUS GROUP,2033842746,"21,500"
Department for Work and Pensions,Employment Programmes,01/09/2015,WP JSA 25+ SUSTAINMENT OUTCOME PAYMENT,WWEG EP WALES REHAB JOB FIT,REHAB JOBFIT LLP,2033829746,"21,500"
Department for Work and Pensions,Employment Programmes,01/09/2015,COMMUNITY WORK PLACEMENTS - LONG COMPLETION FEE,WWEP EP FG CEP CWP CPA06 - NORTH WEST (1),G4S REGIONAL MANAGEMENT UK & I LTD,2033828950,"21,498"
Department for Work and Pensions,Corporate,03/09/2015,STAFF TRAINING VAT RECOVERABLE,HR FAST STREAM PROGRAMME,CAPITA CIVIL SERVICE LEARNING,2033831671,"21,464"
Department for Work and Pensions,Corporate,22/09/2015,CONTRACTORS & STAFF SUBSTITUTIONS,CHG DEPARTMENTAL & BUSINESS STRATEGY,CAPITA BUSINESS SERVICES LTD,2033857825,"21,313"
Department for Work and Pensions,Employment Programmes,30/09/2015,WP JSA 25+ SUSTAINMENT OUTCOME PAYMENT,WWEG EP NORTH EAST AVANTA ENTERPRISE,PEOPLEPLUS LTD,2033866695,"21,285"
Department for Work and Pensions,Employment Programmes,30/09/2015,WP JSA 25+ SUSTAINMENT OUTCOME PAYMENT,WWEG EP NORTH WEST GM CHES AND WARR SEETEC,SEETEC BUSINESS TECHNOLOGY CENTRE LTD,2033867022,"21,285"
Department for Work and Pensions,Employment Programmes,23/09/2015,WP JSA 25+ SUSTAINMENT OUTCOME PAYMENT,WWEG EP SOUTH EAST TV HANTS AND IOW MAXIMUS EMPLOYMENT,MAXIMUS HEALTH & HUMAN SERVICES LTD,2033860055,"21,285"
Department for Work and Pensions,Employment Programmes,21/09/2015,WP JSA 25+ SUSTAINMENT OUTCOME PAYMENT,WWEG EP WALES WORKING LINKS WALES,WORKING LINKS,2033856879,"21,285"
Department for Work and Pensions,Employment Programmes,08/09/2015,WP JSA 18-24 JOB SUSTAINMENT OUTCOME PAYMENT,WWEG EP SCOTLAND WORKING LINKS,WORKING LINKS,2033837785,"21,250"
Department for Work and Pensions,Corporate,11/09/2015,PUBLICITY RES'H/EVAL,COMMS OTHER,GORKANA GROUP LTD,2033843484,"21,200"
Department for Work and Pensions,Corporate,22/09/2015,CONTRACTORS & STAFF SUBSTITUTIONS,CHG RTI STRATEGIC SOLUTION,CAPITA BUSINESS SERVICES LTD,2033857825,"21,193"
Department for Work and Pensions,Housing Benefits,14/09/2015,HOUSING BENEFIT ADMINISTRATION,HB ENGLAND,FAREHAM BOROUGH COUNCIL,2033844637,"21,159"
Department for Work and Pensions,Housing Benefits,14/09/2015,HOUSING BENEFIT ADMINISTRATION,HB ENGLAND,WOKINGHAM BOROUGH COUNCIL,2033844457,"21,119"
Department for Work and Pensions,Corporate,01/09/2015,CONTRACTORS & STAFF SUBSTITUTIONS,CIO ITPD IT DIGITALISATION,CAPITA BUSINESS SERVICES LTD,2033829835,"21,072"
Department for Work and Pensions,Employment Programmes,18/09/2015,WP JSA 25+ SUSTAINMENT OUTCOME PAYMENT,WWEG EP NORTH WEST GM CHES AND WARR AVANTA ENTERPRISE,PEOPLEPLUS LTD,2033853271,"21,070"
Department for Work and Pensions,Employment Programmes,04/09/2015,WP JSA 25+ SUSTAINMENT OUTCOME PAYMENT,WWEG EP SCOTLAND WORKING LINKS,WORKING LINKS,2033834942,"21,070"
Department for Work and Pensions,Employment Programmes,21/09/2015,WP JSA 25+ SUSTAINMENT OUTCOME PAYMENT,WWEG EP SOUTH EAST SURR SUSSX AND KENT G4S,G4S REGIONAL MANAGEMENT UK & I LTD,2033856790,"21,070"
Department for Work and Pensions,Employment Programmes,04/09/2015,WP JSA 25+ SUSTAINMENT OUTCOME PAYMENT,WWEG EP SOUTH YORKSHIRE SERCO,SERCO LTD,2033834040,"21,070"
Department for Work and Pensions,Housing Benefits,14/09/2015,HOUSING BENEFIT ADMINISTRATION,HB ENGLAND,EAST NORTHANTS DISTRICT COUNCIL,2033844643,"20,915"
Department for Work and Pensions,Corporate,01/09/2015,SOFTWARE LICENCES,CHG VME CACS-R,SPECIALIST COMPUTER CENTRES PLC,2033829626,"20,882"
Department for Work and Pensions,Employment Programmes,25/09/2015,SERVICE FEE,WWEG EP CORE MWA CPA SCOTLAND,LEARNDIRECT LTD,2033865502,"20,877"
Department for Work and Pensions,Employment Programmes,30/09/2015,WP JSA 25+ SUSTAINMENT OUTCOME PAYMENT,WWEG EP W MIDLANDS BIRM SOL BC NEWCASTLE COLLEGE GROUP,NEWCASTLE COLLEGE GROUP,2033867772,"20,855"
Department for Work and Pensions,Employment Programmes,01/09/2015,WP JSA 25+ SUSTAINMENT OUTCOME PAYMENT,WWEG EP WEST LONDON REED IN PARTNERSHIP,REED IN PARTNERSHIP LTD,2033829070,"20,855"
Department for Work and Pensions,Housing Benefits,14/09/2015,HOUSING BENEFIT ADMINISTRATION,HB ENGLAND,SELBY DISTRICT COUNCIL,2033844792,"20,829"
Department for Work and Pensions,Corporate,14/09/2015,TREDDS APPS DEV MANDAYS,F&C FIN CONT FIN SYSTEMS INT CONTROL GROUP,HP ENTERPRISE SERVICES UK LTD,2033846244,"20,727"
Department for Work and Pensions,Housing Benefits,14/09/2015,HOUSING BENEFIT ADMINISTRATION,HB ENGLAND,COTSWOLD DISTRICT COUNCIL,2033844653,"20,714"
Department for Work and Pensions,Corporate,25/09/2015,NON-TREDDS APPS DEV FIXED PRICE CONTRACTS,CHG PIP IT PHASE 3,CAPGEMINI UK PLC,2033864547,"20,706"
Department for Work and Pensions,Employment Programmes,02/09/2015,WP JSA 25+ SUSTAINMENT OUTCOME PAYMENT,WWEG EP EAST OF ENGLAND INGEUS UK,INGEUS UK LTD,2033830762,"20,640"
Department for Work and Pensions,Employment Programmes,14/09/2015,WP JSA 25+ SUSTAINMENT OUTCOME PAYMENT,WWEG EP EAST OF ENGLAND INGEUS UK,INGEUS UK LTD,2033846803,"20,640"
Department for Work and Pensions,Corporate,24/09/2015,COURIER COSTS,FG CD CENTRAL CONTRACTS,TNT UK LTD,2033862543,"20,638"
Department for Work and Pensions,Corporate,03/09/2015,CREDIT UNION MARKETING,CHG CREDIT UNION EXPANSION AND DEVELOPMENT DELP,THE ASSOCIATION OF BRITISH CREDIT UNIONS LTD,2033831952,"20,525"
Department for Work and Pensions,Employment Programmes,09/09/2015,WP JSA 25+ SUSTAINMENT OUTCOME PAYMENT,WWEG EP NORTH WEST GM CHES AND WARR AVANTA ENTERPRISE,PEOPLEPLUS LTD,2033839729,"20,425"
Department for Work and Pensions,Employment Programmes,03/09/2015,WP JSA 25+ SUSTAINMENT OUTCOME PAYMENT,WWEG EP SCOTLAND WORKING LINKS,WORKING LINKS,2033832522,"20,425"
Department for Work and Pensions,Employment Programmes,03/09/2015,WP JSA 25+ SUSTAINMENT OUTCOME PAYMENT,WWEG EP W MIDLANDS COV WARW STAFFS AND MARCHES SERCO,SERCO LTD,2033831346,"20,425"
Department for Work and Pensions,Housing Benefits,14/09/2015,HOUSING BENEFIT ADMINISTRATION,HB ENGLAND,EAST DORSET DISTRICT COUNCIL,2033844545,"20,410"
Department for Work and Pensions,Housing Benefits,14/09/2015,HOUSING BENEFIT ADMINISTRATION,HB ENGLAND,TANDRIDGE DISTRICT COUNCIL,2033844525,"20,388"
Department for Work and Pensions,Corporate,01/09/2015,CONTRACTORS & STAFF SUBSTITUTIONS,CIO IT SERVICES DIRECTOR & BUSINESS MANAGEMENT TEAM,CAPITA BUSINESS SERVICES LTD,2033829835,"20,376"
Department for Work and Pensions,Corporate,14/09/2015,CONTRACTORS & STAFF SUBSTITUTIONS,CIO IT INFORMATION DATA SERVICES,CAPITA BUSINESS SERVICES LTD,2033845752,"20,326"
Department for Work and Pensions,Housing Benefits,14/09/2015,HOUSING BENEFIT ADMINISTRATION,HB ENGLAND,MOLE VALLEY DISTRICT COUNCIL,2033844685,"20,279"
Department for Work and Pensions,Employment Programmes,11/09/2015,WP JSA NEET SUSTAINMENT OUTCOME PAYMENT,WWEG EP EAST MIDLANDS A4E,PEOPLEPLUS GROUP,2033842746,"20,250"
Department for Work and Pensions,Employment Programmes,03/09/2015,WP JSA 25+ SUSTAINMENT OUTCOME PAYMENT,WWEG EP EAST LONDON SEETEC,SEETEC BUSINESS TECHNOLOGY CENTRE LTD,2033831579,"20,210"
Department for Work and Pensions,Employment Programmes,07/09/2015,WP JSA 25+ SUSTAINMENT OUTCOME PAYMENT,WWEG EP NORTH EAST Y AND H G4S,G4S REGIONAL MANAGEMENT UK & I LTD,2033836361,"20,210"
Department for Work and Pensions,Employment Programmes,07/09/2015,WP JSA 25+ SUSTAINMENT OUTCOME PAYMENT,WWEG EP S WEST GLOS WILTS AND W OF E JHP GROUP,LEARNDIRECT LTD,2033835897,"20,210"
Department for Work and Pensions,Employment Programmes,03/09/2015,WP JSA 25+ SUSTAINMENT OUTCOME PAYMENT,WWEG EP SOUTH EAST SURR SUSSX AND KENT G4S,G4S REGIONAL MANAGEMENT UK & I LTD,2033832472,"20,210"
Department for Work and Pensions,Employment Programmes,09/09/2015,WP JSA 25+ SUSTAINMENT OUTCOME PAYMENT,WWEG EP WALES WORKING LINKS WALES,WORKING LINKS,2033839652,"20,210"
Department for Work and Pensions,Employment Programmes,14/09/2015,WP JSA 25+ SUSTAINMENT OUTCOME PAYMENT,WWEG EP WEST YORKSHIRE BEST LTD,INTERSERVE WORKING FUTURES,2033845535,"20,210"
Department for Work and Pensions,Housing Benefits,14/09/2015,HOUSING BENEFIT ADMINISTRATION,HB SCOTLAND,EAST RENFREWSHIRE COUNCIL,2033844463,"20,145"
Department for Work and Pensions,Housing Benefits,14/09/2015,HOUSING BENEFIT ADMINISTRATION,HB ENGLAND,MID SUFFOLK DISTRICT COUNCIL,2033844606,"20,123"
Department for Work and Pensions,Employment Programmes,18/09/2015,WP JSA 18-24 JOB SUSTAINMENT OUTCOME PAYMENT,WWEG EP EAST MIDLANDS INGEUS UK,INGEUS UK LTD,2033852983,"20,060"
Department for Work and Pensions,Housing Benefits,14/09/2015,HOUSING BENEFIT ADMINISTRATION,HB ENGLAND,FOREST HEATH DISTRICT COUNCIL,2033844604,"20,039"
Department for Work and Pensions,Corporate,01/09/2015,CONTRACTORS & STAFF SUBSTITUTIONS,F&C CD SENIOR MANAGEMENT,CAPITA BUSINESS SERVICES LTD,2033829835,"20,032"
Department for Work and Pensions,Employment Programmes,08/09/2015,WP JSA 25+ SUSTAINMENT OUTCOME PAYMENT,WWEG EP EAST LONDON SEETEC,SEETEC BUSINESS TECHNOLOGY CENTRE LTD,2033836978,"19,995"
Department for Work and Pensions,Employment Programmes,01/09/2015,WP JSA 25+ SUSTAINMENT OUTCOME PAYMENT,WWEG EP SOUTH YORKSHIRE SERCO,SERCO LTD,2033829148,"19,995"
Department for Work and Pensions,Housing Benefits,14/09/2015,HOUSING BENEFIT ADMINISTRATION,HB ENGLAND,ADUR DISTRICT COUNCIL,2033844738,"19,960"
Department for Work and Pensions,Housing Benefits,14/09/2015,HOUSING BENEFIT ADMINISTRATION,HB ENGLAND,BLABY DISTRICT COUNCIL,2033844701,"19,857"
Department for Work and Pensions,Corporate,11/09/2015,NON-TREDDS IS IT APPS DEV MANDAY,CHG LA DATA SHARING PROG,IBM UNITED KINGDOM LTD,2033842749,"19,733"
Department for Work and Pensions,Employment Programmes,04/09/2015,WP JSA 25+ JOB OUTCOME PAYMENTWP JSA 25+ JOB OUTCOME PAYMENT,WWEG EP NORTH EAST AVANTA ENTERPRISE,PEOPLEPLUS LTD,2033834726,"19,620"
Department for Work and Pensions,Corporate,16/09/2015,AMS MANDAYS,CIO IT OGD SHSVCS,HP ENTERPRISE SERVICES UK LTD,2033849757,"19,600"
Department for Work and Pensions,Employment Programmes,16/09/2015,WP JSA 25+ SUSTAINMENT OUTCOME PAYMENT,WWEG EP EAST OF ENGLAND SEETEC,SEETEC BUSINESS TECHNOLOGY CENTRE LTD,2033849874,"19,565"
Department for Work and Pensions,Employment Programmes,08/09/2015,WP JSA 25+ SUSTAINMENT OUTCOME PAYMENT,WWEG EP S WEST DEV COR DOR AND SOM PROSPECTS SERVICES,PROSPECTS SERVICES LTD,2033837319,"19,565"
Department for Work and Pensions,Employment Programmes,18/09/2015,WP JSA NEET SUSTAINMENT OUTCOME PAYMENT,WWEG EP SCOTLAND INGEUS UK,INGEUS UK LTD,2033852983,"19,500"
Department for Work and Pensions,Employment Programmes,10/09/2015,WP JSA 18-24 JOB SUSTAINMENT OUTCOME PAYMENT,WWEG EP EAST LONDON SEETEC,SEETEC BUSINESS TECHNOLOGY CENTRE LTD,2033841777,"19,380"
Department for Work and Pensions,Employment Programmes,04/09/2015,WP JSA 18-24 JOB SUSTAINMENT OUTCOME PAYMENT,WWEG EP NORTH WEST MERS HAL CUMB AND LANCS INGEUS UK,INGEUS UK LTD,2033834944,"19,380"
Department for Work and Pensions,Employment Programmes,21/09/2015,WP JSA 25+ SUSTAINMENT OUTCOME PAYMENT,WWEG EP EAST LONDON A4E,PEOPLEPLUS GROUP,2033856670,"19,350"
Department for Work and Pensions,Employment Programmes,03/09/2015,WP JSA 25+ SUSTAINMENT OUTCOME PAYMENT,WWEG EP EAST OF ENGLAND SEETEC,SEETEC BUSINESS TECHNOLOGY CENTRE LTD,2033831579,"19,350"
Department for Work and Pensions,Employment Programmes,25/09/2015,WP JSA 25+ SUSTAINMENT OUTCOME PAYMENT,WWEG EP S WEST GLOS WILTS AND W OF E REHAB JOB FIT,REHAB JOBFIT LLP,2033864425,"19,350"
Department for Work and Pensions,Housing Benefits,14/09/2015,HOUSING BENEFIT ADMINISTRATION,HB ENGLAND,BROMSGROVE DISTRICT COUNCIL,2033844663,"19,327"
Department for Work and Pensions,Employment Programmes,04/09/2015,WP JSA NEET SUSTAINMENT OUTCOME PAYMENT,WWEG EP EAST MIDLANDS A4E,PEOPLEPLUS GROUP,2033833425,"19,250"
Department for Work and Pensions,Employment Programmes,25/09/2015,WP JSA NEET SUSTAINMENT OUTCOME PAYMENT,WWEG EP SCOTLAND INGEUS UK,INGEUS UK LTD,2033865532,"19,250"
Department for Work and Pensions,Housing Benefits,14/09/2015,HOUSING BENEFIT ADMINISTRATION,HB ENGLAND,MALVERN HILLS DISTRICT COUNCIL,2033844726,"19,239"
Department for Work and Pensions,Employment Programmes,02/09/2015,COMMUNITY WORK PLACEMENTS - LONG COMPLETION FEE,WWEP EP FG CEP CWP CPA16 - YORKSHIRE & HUMBER (1),INTERSERVE WORKING FUTURES,2033830712,"19,176"
Department for Work and Pensions,Employment Programmes,30/09/2015,WP JSA 25+ SUSTAINMENT OUTCOME PAYMENT,WWEG EP EAST LONDON SEETEC,SEETEC BUSINESS TECHNOLOGY CENTRE LTD,2033867022,"19,135"
Department for Work and Pensions,Employment Programmes,30/09/2015,WP JSA 25+ SUSTAINMENT OUTCOME PAYMENT,WWEG EP SCOTLAND INGEUS UK,INGEUS UK LTD,2033867595,"19,135"
Department for Work and Pensions,Employment Programmes,04/09/2015,WP JSA 25+ SUSTAINMENT OUTCOME PAYMENT,WWEG EP W MIDLANDS COV WARW STAFFS AND MARCHES SERCO,SERCO LTD,2033834040,"19,135"
Department for Work and Pensions,Employment Programmes,01/09/2015,WP JSA 25+ SUSTAINMENT OUTCOME PAYMENT,WWEG EP WEST YORKSHIRE BEST LTD,INTERSERVE WORKING FUTURES,2033829287,"19,135"
Department for Work and Pensions,Employment Programmes,22/09/2015,WP JSA 18-24 JOB SUSTAINMENT OUTCOME PAYMENT,WWEG EP EAST OF ENGLAND SEETEC,SEETEC BUSINESS TECHNOLOGY CENTRE LTD,2033857726,"19,040"
Department for Work and Pensions,Corporate,22/09/2015,CONTRACTORS & STAFF SUBSTITUTIONS,CIO PENSIONS & DISABLED CORE,CAPITA BUSINESS SERVICES LTD,2033857825,"19,030"
Department for Work and Pensions,Employment Programmes,10/09/2015,WP JSA NEET SUSTAINMENT OUTCOME PAYMENT,WWEG EP EAST OF ENGLAND SEETEC,SEETEC BUSINESS TECHNOLOGY CENTRE LTD,2033841777,"19,000"
Department for Work and Pensions,Employment Programmes,02/09/2015,WP JSA 25+ SUSTAINMENT OUTCOME PAYMENT,WWEG EP NORTH EAST AVANTA ENTERPRISE,PEOPLEPLUS LTD,2033830888,"18,920"
Department for Work and Pensions,Employment Programmes,04/09/2015,WP JSA 25+ SUSTAINMENT OUTCOME PAYMENT,WWEG EP NORTH WEST GM CHES AND WARR AVANTA ENTERPRISE,PEOPLEPLUS LTD,2033834726,"18,920"
Department for Work and Pensions,Employment Programmes,16/09/2015,WP JSA 25+ SUSTAINMENT OUTCOME PAYMENT,WWEG EP WEST LONDON INGEUS UK,INGEUS UK LTD,2033850594,"18,920"
Department for Work and Pensions,Housing Benefits,14/09/2015,HOUSING BENEFIT ADMINISTRATION,HB ENGLAND,ROCHFORD DISTRICT COUNCIL,2033844609,"18,816"
Department for Work and Pensions,Corporate,15/09/2015,POSTAGE,OPS NET CC CAPITA,ROYAL MAIL GROUP PLC,2033848706,"18,749"
Department for Work and Pensions,Employment Programmes,08/09/2015,WP JSA 25+ SUSTAINMENT OUTCOME PAYMENT,WWEG EP EAST OF ENGLAND INGEUS UK,INGEUS UK LTD,2033837866,"18,705"
Department for Work and Pensions,Employment Programmes,25/09/2015,WP JSA 25+ SUSTAINMENT OUTCOME PAYMENT,WWEG EP NORTH EAST Y AND H G4S,G4S REGIONAL MANAGEMENT UK & I LTD,2033865734,"18,705"
Department for Work and Pensions,Employment Programmes,21/09/2015,WP JSA 25+ SUSTAINMENT OUTCOME PAYMENT,WWEG EP NORTH WEST MERS HAL CUMB AND LANCS A4E,PEOPLEPLUS GROUP,2033856670,"18,705"
Department for Work and Pensions,Employment Programmes,04/09/2015,WP JSA 25+ JOB OUTCOME PAYMENTWP JSA 25+ JOB OUTCOME PAYMENT,WWEG EP EAST LONDON A4E,PEOPLEPLUS GROUP,2033833425,"18,702"
Department for Work and Pensions,Employment Programmes,18/09/2015,WP JSA 18-24 JOB SUSTAINMENT OUTCOME PAYMENT,WWEG EP NORTH WEST MERS HAL CUMB AND LANCS INGEUS UK,INGEUS UK LTD,2033852983,"18,700"
Department for Work and Pensions,Employment Programmes,18/09/2015,WP JSA 18-24 JOB SUSTAINMENT OUTCOME PAYMENT,WWEG EP SCOTLAND WORKING LINKS,WORKING LINKS,2033852919,"18,700"
Department for Work and Pensions,Housing Benefits,14/09/2015,HOUSING BENEFIT ADMINISTRATION,HB ENGLAND,SURREY HEATH BOROUGH COUNCIL,2033844711,"18,695"
Department for Work and Pensions,Corporate,22/09/2015,CONTRACTORS & STAFF SUBSTITUTIONS,CIO IT SERVICES SERVICE TRANSITION,CAPITA BUSINESS SERVICES LTD,2033857825,"18,560"
Department for Work and Pensions,Corporate,01/09/2015,CONTRACTORS & STAFF SUBSTITUTIONS,CIO IT SERVICES SERVICE TRANSITION,CAPITA BUSINESS SERVICES LTD,2033829835,"18,556"
Department for Work and Pensions,Employment Programmes,25/09/2015,WP JSA 18-24 JOB SUSTAINMENT OUTCOME PAYMENT,WWEG EP EAST LONDON A4E,PEOPLEPLUS GROUP,2033864130,"18,530"
Department for Work and Pensions,Employment Programmes,11/09/2015,WP JSA NEET SUSTAINMENT OUTCOME PAYMENT,WWEG EP SCOTLAND WORKING LINKS,WORKING LINKS,2033842624,"18,500"
Department for Work and Pensions,Employment Programmes,25/09/2015,WP JSA 25+ JOB OUTCOME PAYMENTWP JSA 25+ JOB OUTCOME PAYMENT,WWEG EP EAST LONDON A4E,PEOPLEPLUS GROUP,2033864130,"18,498"
Department for Work and Pensions,Employment Programmes,22/09/2015,WP JSA 25+ SUSTAINMENT OUTCOME PAYMENT,WWEG EP EAST OF ENGLAND INGEUS UK,INGEUS UK LTD,2033857771,"18,490"
Department for Work and Pensions,Employment Programmes,09/09/2015,WP JSA 25+ SUSTAINMENT OUTCOME PAYMENT,WWEG EP S WEST DEV COR DOR AND SOM PROSPECTS SERVICES,PROSPECTS SERVICES LTD,2033840030,"18,490"
Department for Work and Pensions,Employment Programmes,30/09/2015,WP JSA 25+ SUSTAINMENT OUTCOME PAYMENT,WWEG EP S WEST DEV COR DOR AND SOM WORKING LINKS,WORKING LINKS,2033867512,"18,490"
Department for Work and Pensions,Employment Programmes,14/09/2015,WP JSA 25+ SUSTAINMENT OUTCOME PAYMENT,WWEG EP SCOTLAND INGEUS UK,INGEUS UK LTD,2033846803,"18,490"
Department for Work and Pensions,Corporate,14/09/2015,AMS SERVICES,CIO ITLR AMS - IBM,IBM UNITED KINGDOM LTD,2033846926,"18,364"
Department for Work and Pensions,Employment Programmes,01/09/2015,WP JSA 18-24 JOB SUSTAINMENT OUTCOME PAYMENT,WWEG EP SCOTLAND WORKING LINKS,WORKING LINKS,2033828831,"18,360"
Department for Work and Pensions,Corporate,30/09/2015,PRIME FACILITY PRICE,FG CD STORNOWAY,TELEREAL TRILLIUM,2033866042,"18,346"
Department for Work and Pensions,Corporate,22/09/2015,CONTRACTORS & STAFF SUBSTITUTIONS,CHG PIP IT DIGITAL,CAPITA BUSINESS SERVICES LTD,2033857825,"18,316"
Department for Work and Pensions,Employment Programmes,04/09/2015,WP JSA 25+ JOB OUTCOME PAYMENTWP JSA 25+ JOB OUTCOME PAYMENT,WWEG EP SCOTLAND WORKING LINKS,WORKING LINKS,2033834942,"18,288"
Department for Work and Pensions,Employment Programmes,30/09/2015,WP JSA 25+ SUSTAINMENT OUTCOME PAYMENT,WWEG EP NORTH WEST GM CHES AND WARR G4S,G4S REGIONAL MANAGEMENT UK & I LTD,2033867177,"18,275"
Department for Work and Pensions,Employment Programmes,07/09/2015,WP JSA 25+ SUSTAINMENT OUTCOME PAYMENT,WWEG EP S WEST GLOS WILTS AND W OF E REHAB JOB FIT,REHAB JOBFIT LLP,2033835458,"18,275"
Department for Work and Pensions,Employment Programmes,22/09/2015,WP JSA 25+ SUSTAINMENT OUTCOME PAYMENT,WWEG EP SOUTH EAST SURR SUSSX AND KENT AVANTA ENTERPRISE,PEOPLEPLUS LTD,2033858012,"18,275"
Department for Work and Pensions,Employment Programmes,22/09/2015,WP JSA 25+ SUSTAINMENT OUTCOME PAYMENT,WWEG EP WALES WORKING LINKS WALES,WORKING LINKS,2033857769,"18,275"
Department for Work and Pensions,Employment Programmes,04/09/2015,WP JSA NEET SUSTAINMENT OUTCOME PAYMENT,WWEG EP SCOTLAND INGEUS UK,INGEUS UK LTD,2033834944,"18,250"
Department for Work and Pensions,Corporate,15/09/2015,POSTAGE,OPS BEN DD SFSB PERRY BAR,ROYAL MAIL GROUP PLC,2033848706,"18,226"
Department for Work and Pensions,Employment Programmes,14/09/2015,WP JSA 25+ SUSTAINMENT OUTCOME PAYMENT,WWEG EP NORTH WEST MERS HAL CUMB AND LANCS INGEUS UK,INGEUS UK LTD,2033846803,"18,060"
Department for Work and Pensions,Employment Programmes,04/09/2015,WP JSA 25+ SUSTAINMENT OUTCOME PAYMENT,WWEG EP SOUTH YORKSHIRE A4E,PEOPLEPLUS GROUP,2033833425,"18,060"
Department for Work and Pensions,Employment Programmes,30/09/2015,WP JSA 25+ SUSTAINMENT OUTCOME PAYMENT,WWEG EP WEST LONDON INGEUS UK,INGEUS UK LTD,2033867595,"18,060"
Department for Work and Pensions,Housing Benefits,14/09/2015,HOUSING BENEFIT ADMINISTRATION,HB ENGLAND,CHILTERN DISTRICT COUNCIL,2033844682,"18,045"
Department for Work and Pensions,Housing Benefits,14/09/2015,HOUSING BENEFIT ADMINISTRATION,HB ENGLAND,NORTH WARWICKSHIRE DISTRICT COUNCIL,2033844734,"18,017"
Department for Work and Pensions,Employment Programmes,04/09/2015,WP JSA 25+ JOB OUTCOME PAYMENTWP JSA 25+ JOB OUTCOME PAYMENT,WWEG EP NORTH WEST MERS HAL CUMB AND LANCS A4E,PEOPLEPLUS GROUP,2033833425,"17,952"
Department for Work and Pensions,Employment Programmes,02/09/2015,WP JSA 25+ JOB OUTCOME PAYMENTWP JSA 25+ JOB OUTCOME PAYMENT,WWEG EP SOUTH EAST SURR SUSSX AND KENT G4S,G4S REGIONAL MANAGEMENT UK & I LTD,2033830396,"17,904"
Department for Work and Pensions,Employment Programmes,18/09/2015,WP JSA 25+ SUSTAINMENT OUTCOME PAYMENT,WWEG EP NORTH WEST GM CHES AND WARR G4S,G4S REGIONAL MANAGEMENT UK & I LTD,2033852818,"17,845"
Department for Work and Pensions,Employment Programmes,21/09/2015,WP JSA 25+ SUSTAINMENT OUTCOME PAYMENT,WWEG EP SCOTLAND INGEUS UK,INGEUS UK LTD,2033853910,"17,845"
Department for Work and Pensions,Housing Benefits,14/09/2015,HOUSING BENEFIT ADMINISTRATION,HB ENGLAND,EPSOM & EWELL BOROUGH COUNCIL,2033844683,"17,761"
Department for Work and Pensions,Housing Benefits,14/09/2015,HOUSING BENEFIT ADMINISTRATION,HB ENGLAND,NORTH DORSET DISTRICT COUNCIL,2033844537,"17,761"
Department for Work and Pensions,Employment Programmes,25/09/2015,WP JSA NEET SUSTAINMENT OUTCOME PAYMENT,WWEG EP NORTH EAST INGEUS UK,INGEUS UK LTD,2033865532,"17,750"
Department for Work and Pensions,Employment Programmes,25/09/2015,SUSTAINMENT FEE,WWEG EP WORK CHOICE WEST YORKSHIRE,THE PLUSS ORGANISATION,2033865207,"17,747"
Department for Work and Pensions,Corporate,15/09/2015,TREDDS IS IT CONSULTANCY NON ADVICE,CHG SCANNING & DIGITAL STORAGE,HP ENTERPRISE SERVICES UK LTD,2033848465,"17,663"
Department for Work and Pensions,Corporate,08/09/2015,CONTRACTORS & STAFF SUBSTITUTIONS,CHG RTI STRATEGIC SOLUTION,CAPITA BUSINESS SERVICES LTD,2033836869,"17,662"
Department for Work and Pensions,Employment Programmes,14/09/2015,WP JSA 25+ SUSTAINMENT OUTCOME PAYMENT,WWEG EP S WEST DEV COR DOR AND SOM WORKING LINKS,WORKING LINKS,2033846798,"17,630"
Department for Work and Pensions,Employment Programmes,25/09/2015,WP JSA 25+ JOB OUTCOME PAYMENTWP JSA 25+ JOB OUTCOME PAYMENT,WWEG EP NORTH EAST AVANTA ENTERPRISE,PEOPLEPLUS LTD,2033865088,"17,520"
Department for Work and Pensions,Housing Benefits,14/09/2015,HOUSING BENEFIT ADMINISTRATION,HB ENGLAND,DAVENTRY DISTRICT COUNCIL,2033844642,"17,516"
Department for Work and Pensions,Employment Programmes,25/09/2015,WP JSA 18-24 JOB SUSTAINMENT OUTCOME PAYMENT,WWEG EP EAST OF ENGLAND SEETEC,SEETEC BUSINESS TECHNOLOGY CENTRE LTD,2033864675,"17,510"
Department for Work and Pensions,Housing Benefits,14/09/2015,HOUSING BENEFIT ADMINISTRATION,HB ENGLAND,BRENTWOOD DISTRICT COUNCIL,2033844585,"17,447"
Department for Work and Pensions,Employment Programmes,16/09/2015,WP JSA 25+ SUSTAINMENT OUTCOME PAYMENT,WWEG EP EAST LONDON SEETEC,SEETEC BUSINESS TECHNOLOGY CENTRE LTD,2033849874,"17,415"
Department for Work and Pensions,Employment Programmes,11/09/2015,WP JSA 25+ SUSTAINMENT OUTCOME PAYMENT,WWEG EP NORTH WEST GM CHES AND WARR G4S,G4S REGIONAL MANAGEMENT UK & I LTD,2033844172,"17,415"
Department for Work and Pensions,Employment Programmes,07/09/2015,WP JSA 25+ SUSTAINMENT OUTCOME PAYMENT,WWEG EP SCOTLAND INGEUS UK,INGEUS UK LTD,2033836298,"17,415"
Department for Work and Pensions,Corporate,16/09/2015,FSF - TRAINING RELATED TRAVEL COSTS - JSA JOBSEEKERS,OPS WDC WSD NE WEST YORKSHIRE DISTRICT OFFICE,WEST YORKSHIRE COMBINED AUTHORITY,2033849371,"17,388"
Department for Work and Pensions,Employment Programmes,04/09/2015,WP JSA 18-24 JOB SUSTAINMENT OUTCOME PAYMENT,WWEG EP EAST MIDLANDS A4E,PEOPLEPLUS GROUP,2033833425,"17,340"
Department for Work and Pensions,Employment Programmes,11/09/2015,WP JSA 18-24 JOB SUSTAINMENT OUTCOME PAYMENT,WWEG EP SCOTLAND WORKING LINKS,WORKING LINKS,2033842624,"17,340"
Department for Work and Pensions,Employment Programmes,04/09/2015,WP JSA 25+ SUSTAINMENT OUTCOME PAYMENT,WWEG EP EAST LONDON SEETEC,SEETEC BUSINESS TECHNOLOGY CENTRE LTD,2033835155,"17,200"
Department for Work and Pensions,Employment Programmes,01/09/2015,WP JSA 25+ SUSTAINMENT OUTCOME PAYMENT,WWEG EP EAST OF ENGLAND SEETEC,SEETEC BUSINESS TECHNOLOGY CENTRE LTD,2033829873,"17,200"
Department for Work and Pensions,Employment Programmes,14/09/2015,WP JSA 25+ SUSTAINMENT OUTCOME PAYMENT,WWEG EP EAST OF ENGLAND SEETEC,SEETEC BUSINESS TECHNOLOGY CENTRE LTD,2033845783,"17,200"
Department for Work and Pensions,Employment Programmes,14/09/2015,WP JSA 25+ SUSTAINMENT OUTCOME PAYMENT,WWEG EP WEST LONDON INGEUS UK,INGEUS UK LTD,2033846803,"17,200"
Department for Work and Pensions,Corporate,01/09/2015,CONTRACTORS & STAFF SUBSTITUTIONS,F&C CORP SVS FIN WORKING AGE,CAPITA BUSINESS SERVICES LTD,2033829835,"17,020"
Department for Work and Pensions,Employment Programmes,18/09/2015,WP JSA NEET SUSTAINMENT OUTCOME PAYMENT,WWEG EP EAST MIDLANDS A4E,PEOPLEPLUS GROUP,2033853550,"17,000"
Department for Work and Pensions,Employment Programmes,30/09/2015,WP JSA NEET SUSTAINMENT OUTCOME PAYMENT,WWEG EP WEST YORKSHIRE BEST LTD,INTERSERVE WORKING FUTURES,2033867568,"17,000"
Department for Work and Pensions,Employment Programmes,15/09/2015,WP JSA 25+ SUSTAINMENT OUTCOME PAYMENT,WWEG EP EAST LONDON A4E,PEOPLEPLUS GROUP,2033847858,"16,985"
Department for Work and Pensions,Employment Programmes,16/09/2015,WP JSA 25+ SUSTAINMENT OUTCOME PAYMENT,WWEG EP EAST LONDON CAREERS DEVELOPMENT GROUP,CAREERS DEVELOPMENT GROUP,2033849124,"16,985"
Department for Work and Pensions,Employment Programmes,07/09/2015,WP JSA 25+ SUSTAINMENT OUTCOME PAYMENT,WWEG EP EAST MIDLANDS INGEUS UK,INGEUS UK LTD,2033836298,"16,985"
Department for Work and Pensions,Employment Programmes,14/09/2015,WP JSA 25+ SUSTAINMENT OUTCOME PAYMENT,WWEG EP EAST MIDLANDS INGEUS UK,INGEUS UK LTD,2033846803,"16,985"
Department for Work and Pensions,Employment Programmes,21/09/2015,WP JSA 25+ SUSTAINMENT OUTCOME PAYMENT,WWEG EP EAST OF ENGLAND INGEUS UK,INGEUS UK LTD,2033853910,"16,985"
Department for Work and Pensions,Employment Programmes,01/09/2015,WP JSA 25+ SUSTAINMENT OUTCOME PAYMENT,WWEG EP NORTH EAST INGEUS UK,INGEUS UK LTD,2033828906,"16,985"
Department for Work and Pensions,Employment Programmes,02/09/2015,WP JSA 25+ SUSTAINMENT OUTCOME PAYMENT,WWEG EP S WEST DEV COR DOR AND SOM PROSPECTS SERVICES,PROSPECTS SERVICES LTD,2033831032,"16,985"
Department for Work and Pensions,Employment Programmes,11/09/2015,WP JSA 25+ SUSTAINMENT OUTCOME PAYMENT,WWEG EP SOUTH EAST SURR SUSSX AND KENT G4S,G4S REGIONAL MANAGEMENT UK & I LTD,2033844172,"16,985"
Department for Work and Pensions,Employment Programmes,07/09/2015,WP JSA 25+ SUSTAINMENT OUTCOME PAYMENT,WWEG EP SOUTH YORKSHIRE SERCO,SERCO LTD,2033836239,"16,985"
Department for Work and Pensions,Employment Programmes,02/09/2015,WP JSA 25+ SUSTAINMENT OUTCOME PAYMENT,WWEG EP W MIDLANDS COV WARW STAFFS AND MARCHES ESG,ESG HOLDINGS LIMITED,2033830934,"16,985"
Department for Work and Pensions,Employment Programmes,30/09/2015,WP JSA 25+ SUSTAINMENT OUTCOME PAYMENT,WWEG EP WEST LONDON REED IN PARTNERSHIP,REED IN PARTNERSHIP LTD,2033867020,"16,985"
Department for Work and Pensions,Corporate,07/09/2015,PRINTING/BINDING,CHG PIP COMMS & STAKEHOLDER MANAGEMENT,XEROX UK LTD 3W,2033836247,"16,935"
Department for Work and Pensions,Employment Programmes,25/09/2015,WP JSA 25+ JOB OUTCOME PAYMENTWP JSA 25+ JOB OUTCOME PAYMENT,WWEG EP WEST LONDON REED IN PARTNERSHIP,REED IN PARTNERSHIP LTD,2033864802,"16,884"
Department for Work and Pensions,Corporate,01/09/2015,CONTRACTORS & STAFF SUBSTITUTIONS,CIO PENSIONS & DISABLED CORE,CAPITA BUSINESS SERVICES LTD,2033829835,"16,881"
Department for Work and Pensions,Housing Benefits,14/09/2015,HOUSING BENEFIT ADMINISTRATION,HB ENGLAND,UTTLESFORD DISTRICT COUNCIL,2033844697,"16,809"
Department for Work and Pensions,Employment Programmes,08/09/2015,WP JSA 25+ SUSTAINMENT OUTCOME PAYMENT,WWEG EP NORTH WEST GM CHES AND WARR AVANTA ENTERPRISE,PEOPLEPLUS LTD,2033837659,"16,770"
Department for Work and Pensions,Employment Programmes,03/09/2015,WP JSA 25+ SUSTAINMENT OUTCOME PAYMENT,WWEG EP NORTH WEST GM CHES AND WARR G4S,G4S REGIONAL MANAGEMENT UK & I LTD,2033832472,"16,770"
Department for Work and Pensions,Employment Programmes,04/09/2015,WP JSA 25+ SUSTAINMENT OUTCOME PAYMENT,WWEG EP W MIDLANDS COV WARW STAFFS AND MARCHES ESG,ESG HOLDINGS LIMITED,2033833833,"16,770"
Department for Work and Pensions,Employment Programmes,21/09/2015,WP JSA 25+ SUSTAINMENT OUTCOME PAYMENT,WWEG EP W MIDLANDS COV WARW STAFFS AND MARCHES ESG,ESG HOLDINGS LIMITED,2033855648,"16,770"
Department for Work and Pensions,Employment Programmes,25/09/2015,WP JSA 25+ JOB OUTCOME PAYMENTWP JSA 25+ JOB OUTCOME PAYMENT,WWEG EP SOUTH EAST SURR SUSSX AND KENT G4S,G4S REGIONAL MANAGEMENT UK & I LTD,2033865734,"16,704"
Department for Work and Pensions,Child Maintenance and Enforcement Commission,15/09/2015,POSTAGE,EXTERNAL CONTRACTS VERTEX,ROYAL MAIL GROUP PLC,1000243407,"16,702"
Department for Work and Pensions,Corporate,08/09/2015,CONTRACTORS & STAFF SUBSTITUTIONS,F&C CD SENIOR MANAGEMENT,CAPITA BUSINESS SERVICES LTD,2033836869,"16,685"
Department for Work and Pensions,Employment Programmes,07/09/2015,WP JSA 25+ SUSTAINMENT OUTCOME PAYMENT,WWEG EP EAST MIDLANDS A4E,PEOPLEPLUS GROUP,2033836290,"16,555"
Department for Work and Pensions,Employment Programmes,22/09/2015,WP JSA 25+ SUSTAINMENT OUTCOME PAYMENT,WWEG EP EAST MIDLANDS INGEUS UK,INGEUS UK LTD,2033857771,"16,555"
Department for Work and Pensions,Employment Programmes,04/09/2015,WP JSA 25+ SUSTAINMENT OUTCOME PAYMENT,WWEG EP EAST OF ENGLAND SEETEC,SEETEC BUSINESS TECHNOLOGY CENTRE LTD,2033835155,"16,555"
Department for Work and Pensions,Employment Programmes,30/09/2015,WP JSA 25+ SUSTAINMENT OUTCOME PAYMENT,WWEG EP NORTH WEST GM CHES AND WARR AVANTA ENTERPRISE,PEOPLEPLUS LTD,2033866695,"16,555"
Department for Work and Pensions,Employment Programmes,30/09/2015,WP JSA 25+ SUSTAINMENT OUTCOME PAYMENT,WWEG EP NORTH WEST MERS HAL CUMB AND LANCS INGEUS UK,INGEUS UK LTD,2033867595,"16,555"
Department for Work and Pensions,Employment Programmes,08/09/2015,WP JSA 25+ SUSTAINMENT OUTCOME PAYMENT,WWEG EP W MIDLANDS COV WARW STAFFS AND MARCHES SERCO,SERCO LTD,2033837412,"16,555"
Department for Work and Pensions,Corporate,04/09/2015,CONNECTIVITY,CHG UC PATHFINDER DELIVERY MANAGEMENT,BT GLOBAL SERVICES,2033835298,"16,513"
Department for Work and Pensions,Corporate,15/09/2015,TREDDS APPS DEV FIXED PRICE CONTRACTS,CHG PIP IT ASSESSMENT TOOL,HP ENTERPRISE SERVICES UK LTD,2033848465,"16,496"
Department for Work and Pensions,Employment Programmes,15/09/2015,OUTCOME FEE,WWEG EP REMPLOY,REMPLOY LTD,2033847279,"16,422"
Department for Work and Pensions,Housing Benefits,14/09/2015,HOUSING BENEFIT ADMINISTRATION,HB ENGLAND,DERBYSHIRE DALES DISTRICT COUNCIL,2033844513,"16,412"
Department for Work and Pensions,Employment Programmes,01/09/2015,WP JSA 25+ SUSTAINMENT OUTCOME PAYMENT,WWEG EP EAST MIDLANDS INGEUS UK,INGEUS UK LTD,2033828906,"16,340"
Department for Work and Pensions,Employment Programmes,03/09/2015,WP JSA 25+ SUSTAINMENT OUTCOME PAYMENT,WWEG EP EAST OF ENGLAND INGEUS UK,INGEUS UK LTD,2033832523,"16,340"
Department for Work and Pensions,Employment Programmes,07/09/2015,WP JSA 25+ SUSTAINMENT OUTCOME PAYMENT,WWEG EP EAST OF ENGLAND INGEUS UK,INGEUS UK LTD,2033836298,"16,340"
Department for Work and Pensions,Employment Programmes,22/09/2015,WP JSA 25+ SUSTAINMENT OUTCOME PAYMENT,WWEG EP NORTH EAST INGEUS UK,INGEUS UK LTD,2033857771,"16,340"
Department for Work and Pensions,Employment Programmes,22/09/2015,WP JSA 25+ SUSTAINMENT OUTCOME PAYMENT,WWEG EP SCOTLAND INGEUS UK,INGEUS UK LTD,2033857771,"16,340"
Department for Work and Pensions,Employment Programmes,30/09/2015,WP JSA 25+ SUSTAINMENT OUTCOME PAYMENT,WWEG EP SCOTLAND WORKING LINKS,WORKING LINKS,2033867512,"16,340"
Department for Work and Pensions,Employment Programmes,14/09/2015,WP JSA 25+ SUSTAINMENT OUTCOME PAYMENT,WWEG EP SOUTH YORKSHIRE SERCO,SERCO LTD,2033846047,"16,340"
Department for Work and Pensions,Employment Programmes,21/09/2015,WP JSA 25+ SUSTAINMENT OUTCOME PAYMENT,WWEG EP W MIDLANDS COV WARW STAFFS AND MARCHES SERCO,SERCO LTD,2033854977,"16,340"
Department for Work and Pensions,Employment Programmes,07/09/2015,WP JSA 18-24 JOB SUSTAINMENT OUTCOME PAYMENT,WWEG EP NORTH EAST AVANTA ENTERPRISE,PEOPLEPLUS LTD,2033836191,"16,320"
Department for Work and Pensions,Employment Programmes,07/09/2015,WP JSA 18-24 JOB SUSTAINMENT OUTCOME PAYMENT,WWEG EP NORTH WEST GM CHES AND WARR AVANTA ENTERPRISE,PEOPLEPLUS LTD,2033836191,"16,320"
Department for Work and Pensions,Employment Programmes,11/09/2015,WP JSA NEET SUSTAINMENT OUTCOME PAYMENT,WWEG EP SCOTLAND INGEUS UK,INGEUS UK LTD,2033842738,"16,250"
Department for Work and Pensions,Employment Programmes,01/09/2015,WP JSA NEET SUSTAINMENT OUTCOME PAYMENT,WWEG EP SCOTLAND WORKING LINKS,WORKING LINKS,2033828831,"16,250"
Department for Work and Pensions,Corporate,15/09/2015,TREDDS IS IT CONSULTANCY NON ADVICE,CIO TECH PLATFORM IMP MOSAIC,HP ENTERPRISE SERVICES UK LTD,2033848465,"16,229"
Department for Work and Pensions,Corporate,15/09/2015,POSTAGE,OPS BEN DD BOOTLE DBC NEW CLAIMS,ROYAL MAIL GROUP PLC,2033848706,"16,205"
Department for Work and Pensions,Employment Programmes,25/09/2015,WP JSA 25+ JOB OUTCOME PAYMENTWP JSA 25+ JOB OUTCOME PAYMENT,WWEG EP WEST LONDON MAXIMUS EMPLOYMENT UK,MAXIMUS HEALTH & HUMAN SERVICES LTD,2033865538,"16,200"
Department for Work and Pensions,Housing Benefits,14/09/2015,HOUSING BENEFIT ADMINISTRATION,HB ENGLAND,MALDON DISTRICT COUNCIL,2033844497,"16,175"
Department for Work and Pensions,Employment Programmes,25/09/2015,WP JSA 18-24 JOB SUSTAINMENT OUTCOME PAYMENT,WWEG EP NORTH WEST GM CHES AND WARR AVANTA ENTERPRISE,PEOPLEPLUS LTD,2033865088,"16,150"
Department for Work and Pensions,Employment Programmes,11/09/2015,WP JSA 18-24 JOB SUSTAINMENT OUTCOME PAYMENT,WWEG EP NORTH WEST MERS HAL CUMB AND LANCS INGEUS UK,INGEUS UK LTD,2033842738,"16,150"
Department for Work and Pensions,Corporate,01/09/2015,CONTRACTORS & STAFF SUBSTITUTIONS,CIO TECH PLATFORMS INTEGRATING TECH CORE,CAPITA BUSINESS SERVICES LTD,2033829835,"16,128"
Department for Work and Pensions,Employment Programmes,07/09/2015,WP JSA 25+ SUSTAINMENT OUTCOME PAYMENT,WWEG EP EAST LONDON A4E,PEOPLEPLUS GROUP,2033836290,"16,125"
Department for Work and Pensions,Employment Programmes,15/09/2015,WP JSA 25+ SUSTAINMENT OUTCOME PAYMENT,WWEG EP EAST OF ENGLAND INGEUS UK,INGEUS UK LTD,2033847739,"16,125"
Department for Work and Pensions,Employment Programmes,08/09/2015,WP JSA 25+ SUSTAINMENT OUTCOME PAYMENT,WWEG EP NORTH EAST INGEUS UK,INGEUS UK LTD,2033837866,"16,125"
Department for Work and Pensions,Employment Programmes,18/09/2015,WP JSA 25+ SUSTAINMENT OUTCOME PAYMENT,WWEG EP SOUTH EAST SURR SUSSX AND KENT G4S,G4S REGIONAL MANAGEMENT UK & I LTD,2033852818,"16,125"
Department for Work and Pensions,Employment Programmes,15/09/2015,WP JSA 25+ SUSTAINMENT OUTCOME PAYMENT,WWEG EP W MIDLANDS COV WARW STAFFS AND MARCHES SERCO,SERCO LTD,2033848132,"16,125"
Department for Work and Pensions,Employment Programmes,11/09/2015,WP JSA 25+ SUSTAINMENT OUTCOME PAYMENT,WWEG EP WEST LONDON REED IN PARTNERSHIP,REED IN PARTNERSHIP LTD,2033842774,"16,125"
Department for Work and Pensions,Housing Benefits,14/09/2015,HOUSING BENEFIT ADMINISTRATION,HB ENGLAND,WEST DEVON BOROUGH COUNCIL,2033844481,"16,102"
Department for Work and Pensions,Employment Programmes,02/09/2015,WP JSA 25+ JOB OUTCOME PAYMENTWP JSA 25+ JOB OUTCOME PAYMENT,WWEG EP SCOTLAND WORKING LINKS,WORKING LINKS,2033830760,"16,080"
Department for Work and Pensions,Corporate,14/09/2015,TREDDS APPS DEV MANDAYS,CHG CLASS 3A VOLUNTARY NATIONAL INSURANCE CONTS,HP ENTERPRISE SERVICES UK LTD,2033846244,"16,076"
Department for Work and Pensions,Corporate,14/09/2015,TREDDS APPS DEV MANDAYS,CHG STATE PENSION REFORM SINGLE TIER,HP ENTERPRISE SERVICES UK LTD,2033846244,"16,053"
Department for Work and Pensions,Employment Programmes,25/09/2015,COMMUNITY WORK PLACEMENTS - LONG COMPLETION FEE,WWEP EP FG CEP CWP CPA18 - YORKSHIRE & HUMBER (3),G4S REGIONAL MANAGEMENT UK & I LTD,2033865734,"16,000"
Department for Work and Pensions,Employment Programmes,01/09/2015,COMMUNITY WORK PLACEMENTS - LONG COMPLETION FEE,WWEP EP FG CEP CWP CPA13 - WALES,WORKING LINKS,2033828831,"16,000"
Department for Work and Pensions,Employment Programmes,04/09/2015,COMMUNITY WORK PLACEMENTS - LONG COMPLETION FEE,WWEP EP FG CEP CWP CPA13 - WALES,WORKING LINKS,2033834942,"16,000"
Department for Work and Pensions,Employment Programmes,25/09/2015,OUTCOME FEE,WWEP EP FG CEP NEA CPA02 CENTRAL ENGLAND,PINNACLE PEOPLE,2033864504,"15,992"
Department for Work and Pensions,Corporate,11/09/2015,CONTRACTED OUT OFFICE SERVICES,CHG SCANNING & DIGITAL STORAGE,COFELY WORKPLACE LTD,2033843369,"15,952"
Department for Work and Pensions,Corporate,22/09/2015,CONTRACTORS & STAFF SUBSTITUTIONS,F&C CORP SVS FIN WORKING AGE,CAPITA BUSINESS SERVICES LTD,2033857825,"15,923"
Department for Work and Pensions,Employment Programmes,01/09/2015,WP JSA 25+ SUSTAINMENT OUTCOME PAYMENT,WWEG EP EAST LONDON A4E,PEOPLEPLUS GROUP,2033829658,"15,910"
Department for Work and Pensions,Employment Programmes,01/09/2015,WP JSA 25+ SUSTAINMENT OUTCOME PAYMENT,WWEG EP NORTH EAST AVANTA ENTERPRISE,PEOPLEPLUS LTD,2033829293,"15,910"
Department for Work and Pensions,Employment Programmes,01/09/2015,WP JSA 25+ SUSTAINMENT OUTCOME PAYMENT,WWEG EP S WEST GLOS WILTS AND W OF E REHAB JOB FIT,REHAB JOBFIT LLP,2033829746,"15,910"
Department for Work and Pensions,Employment Programmes,03/09/2015,WP JSA 25+ SUSTAINMENT OUTCOME PAYMENT,WWEG EP SOUTH EAST SURR SUSSX AND KENT AVANTA ENTERPRISE,PEOPLEPLUS LTD,2033831715,"15,910"
Department for Work and Pensions,Employment Programmes,03/09/2015,WP JSA 25+ SUSTAINMENT OUTCOME PAYMENT,WWEG EP W MIDLANDS BIRM SOL BC NEWCASTLE COLLEGE GROUP,NEWCASTLE COLLEGE GROUP,2033832062,"15,910"
Department for Work and Pensions,Employment Programmes,30/09/2015,WP JSA 25+ SUSTAINMENT OUTCOME PAYMENT,WWEG EP WALES REHAB JOB FIT,REHAB JOBFIT LLP,2033866879,"15,910"
Department for Work and Pensions,Employment Programmes,04/09/2015,WP JSA 25+ SUSTAINMENT OUTCOME PAYMENT,WWEG EP WEST YORKSHIRE BEST LTD,INTERSERVE WORKING FUTURES,2033834864,"15,910"
Department for Work and Pensions,Employment Programmes,14/09/2015,SUSTAINMENT FEE,REMPLOY WORK CHOICE PAYMENTS,REMPLOY LTD,2033846534,"15,832"
Department for Work and Pensions,Corporate,14/09/2015,CONTRACTORS & STAFF SUBSTITUTIONS,CIO ITPD IT DIGITALISATION,CAPITA BUSINESS SERVICES LTD,2033845752,"15,825"
Department for Work and Pensions,Employment Programmes,25/09/2015,COMMUNITY WORK PLACEMENTS - JOB OUTCOME FEE,WWEP EP FG CEP CWP CPA08 - SCOTLAND,LEARNDIRECT LTD,2033865502,"15,822"
Department for Work and Pensions,Employment Programmes,18/09/2015,WP JSA 18-24 JOB SUSTAINMENT OUTCOME PAYMENT,WWEG EP NORTH EAST INGEUS UK,INGEUS UK LTD,2033852983,"15,810"
Department for Work and Pensions,Employment Programmes,23/09/2015,OUTCOME FEE,WWEP EP FG CEP NEA CPA14 SOUTHERN,PINNACLE PEOPLE,2033860392,"15,805"
Department for Work and Pensions,Corporate,03/09/2015,PRINTING/BINDING,FG OPS FIN DM CONTRACTS,XEROX UK LTD 3W,2033831592,"15,803"
Department for Work and Pensions,Corporate,22/09/2015,FSF - TRAINING PAYMENTS TO PROVIDERS - JSA JOBSEEKERS,OPS WDC WSD WL SOUTH WEST WALES DISTRICT OFFICE,REMPLOY,2033857202,"15,754"
Department for Work and Pensions,Employment Programmes,03/09/2015,WP JSA 25+ JOB OUTCOME PAYMENTWP JSA 25+ JOB OUTCOME PAYMENT,WWEG EP S WEST DEV COR DOR AND SOM PROSPECTS SERVICES,PROSPECTS SERVICES LTD,2033832425,"15,744"
Department for Work and Pensions,Employment Programmes,21/09/2015,WP JSA 25+ SUSTAINMENT OUTCOME PAYMENT,WWEG EP EAST MIDLANDS INGEUS UK,INGEUS UK LTD,2033853910,"15,695"
Department for Work and Pensions,Employment Programmes,09/09/2015,WP JSA 25+ SUSTAINMENT OUTCOME PAYMENT,WWEG EP NORTH EAST AVANTA ENTERPRISE,PEOPLEPLUS LTD,2033839729,"15,695"
Department for Work and Pensions,Employment Programmes,15/09/2015,WP JSA 25+ SUSTAINMENT OUTCOME PAYMENT,WWEG EP NORTH EAST INGEUS UK,INGEUS UK LTD,2033847739,"15,695"
Department for Work and Pensions,Employment Programmes,03/09/2015,WP JSA 25+ SUSTAINMENT OUTCOME PAYMENT,WWEG EP SCOTLAND INGEUS UK,INGEUS UK LTD,2033832523,"15,695"
Department for Work and Pensions,Employment Programmes,04/09/2015,WP JSA 25+ SUSTAINMENT OUTCOME PAYMENT,WWEG EP SOUTH EAST SURR SUSSX AND KENT AVANTA ENTERPRISE,PEOPLEPLUS LTD,2033834726,"15,695"
Department for Work and Pensions,Employment Programmes,08/09/2015,WP JSA 25+ SUSTAINMENT OUTCOME PAYMENT,WWEG EP SOUTH EAST SURR SUSSX AND KENT AVANTA ENTERPRISE,PEOPLEPLUS LTD,2033837659,"15,695"
Department for Work and Pensions,Employment Programmes,18/09/2015,WP JSA 25+ SUSTAINMENT OUTCOME PAYMENT,WWEG EP SOUTH YORKSHIRE A4E,PEOPLEPLUS GROUP,2033853550,"15,695"
Department for Work and Pensions,Employment Programmes,01/09/2015,WP JSA 25+ SUSTAINMENT OUTCOME PAYMENT,WWEG EP W MIDLANDS COV WARW STAFFS AND MARCHES ESG,ESG HOLDINGS LIMITED,2033829185,"15,695"
Department for Work and Pensions,Employment Programmes,11/09/2015,WP JSA 25+ SUSTAINMENT OUTCOME PAYMENT,WWEG EP W MIDLANDS COV WARW STAFFS AND MARCHES SERCO,SERCO LTD,2033843045,"15,695"
Department for Work and Pensions,Employment Programmes,15/09/2015,WP JSA 25+ SUSTAINMENT OUTCOME PAYMENT,WWEG EP WALES REHAB JOB FIT,REHAB JOBFIT LLP,2033847896,"15,695"
Department for Work and Pensions,Corporate,11/09/2015,NON-TREDDS IS IT APPS DEV MANDAY,CIO CIS RELEASE 2,IBM UNITED KINGDOM LTD,2033842749,"15,673"
Department for Work and Pensions,Employment Programmes,25/09/2015,WP JSA 18-24 JOB SUSTAINMENT OUTCOME PAYMENT,WWEG EP WEST YORKSHIRE INGEUS UK,INGEUS UK LTD,2033865532,"15,640"
Department for Work and Pensions,Corporate,14/09/2015,CONTRACTORS & STAFF SUBSTITUTIONS,CHG RTI STRATEGIC SOLUTION,CAPITA BUSINESS SERVICES LTD,2033845752,"15,516"
Department for Work and Pensions,Corporate,15/09/2015,POSTAGE,OPS PEN PS CAU,ROYAL MAIL GROUP PLC,2033848706,"15,507"
Department for Work and Pensions,Employment Programmes,21/09/2015,WP JSA 25+ JOB OUTCOME PAYMENTWP JSA 25+ JOB OUTCOME PAYMENT,WWEG EP EAST LONDON CAREERS DEVELOPMENT GROUP,CAREERS DEVELOPMENT GROUP,2033855698,"15,504"
Department for Work and Pensions,Corporate,15/09/2015,PRIME VARIABLE CHARGE,FG CD BRADFORD AMBLER MILL,TELEREAL TRILLIUM,2033847981,"15,494"
Department for Work and Pensions,Employment Programmes,15/09/2015,WP JSA 25+ SUSTAINMENT OUTCOME PAYMENT,WWEG EP EAST LONDON CAREERS DEVELOPMENT GROUP,CAREERS DEVELOPMENT GROUP,2033848224,"15,480"
Department for Work and Pensions,Employment Programmes,21/09/2015,WP JSA 25+ SUSTAINMENT OUTCOME PAYMENT,WWEG EP EAST MIDLANDS A4E,PEOPLEPLUS GROUP,2033856670,"15,480"
Department for Work and Pensions,Employment Programmes,02/09/2015,WP JSA 25+ SUSTAINMENT OUTCOME PAYMENT,WWEG EP NORTH EAST INGEUS UK,INGEUS UK LTD,2033830762,"15,480"
Department for Work and Pensions,Employment Programmes,01/09/2015,WP JSA 25+ SUSTAINMENT OUTCOME PAYMENT,WWEG EP NORTH WEST MERS HAL CUMB AND LANCS INGEUS UK,INGEUS UK LTD,2033828906,"15,480"
Department for Work and Pensions,Employment Programmes,11/09/2015,WP JSA 25+ SUSTAINMENT OUTCOME PAYMENT,WWEG EP S WEST DEV COR DOR AND SOM PROSPECTS SERVICES,PROSPECTS SERVICES LTD,2033842647,"15,480"
Department for Work and Pensions,Employment Programmes,01/09/2015,WP JSA 25+ SUSTAINMENT OUTCOME PAYMENT,WWEG EP WEST LONDON INGEUS UK,INGEUS UK LTD,2033828906,"15,480"
Department for Work and Pensions,Employment Programmes,11/09/2015,WP JSA 18-24 JOB SUSTAINMENT OUTCOME PAYMENT,WWEG EP NORTH EAST INGEUS UK,INGEUS UK LTD,2033842738,"15,470"
Department for Work and Pensions,Employment Programmes,21/09/2015,WP JSA 25+ JOB OUTCOME PAYMENTWP JSA 25+ JOB OUTCOME PAYMENT,WWEG EP EAST LONDON SEETEC,SEETEC BUSINESS TECHNOLOGY CENTRE LTD,2033856752,"15,456"
Department for Work and Pensions,Corporate,15/09/2015,POSTAGE,OPS BEN DD MIDLANDS BC CHILD UNIT,ROYAL MAIL GROUP PLC,2033848706,"15,364"
Department for Work and Pensions,Employment Programmes,25/09/2015,WP JSA 25+ JOB OUTCOME PAYMENTWP JSA 25+ JOB OUTCOME PAYMENT,WWEG EP NORTH WEST MERS HAL CUMB AND LANCS A4E,PEOPLEPLUS GROUP,2033864130,"15,360"
Department for Work and Pensions,Employment Programmes,25/09/2015,COMMUNITY WORK PLACEMENTS - START FEE,WWEP EP FG CEP CWP CPA05 - NORTH EAST,PERTEMPS,2033865169,"15,345"
Department for Work and Pensions,Employment Programmes,11/09/2015,WP JSA 18-24 JOB SUSTAINMENT OUTCOME PAYMENT,WWEG EP EAST OF ENGLAND INGEUS UK,INGEUS UK LTD,2033842738,"15,300"
Department for Work and Pensions,Employment Programmes,18/09/2015,WP JSA 18-24 JOB SUSTAINMENT OUTCOME PAYMENT,WWEG EP SCOTLAND INGEUS UK,INGEUS UK LTD,2033852983,"15,300"
Department for Work and Pensions,Employment Programmes,04/09/2015,WP JSA 18-24 JOB SUSTAINMENT OUTCOME PAYMENT,WWEG EP W MIDLANDS BIRM SOL BC FOURSTAR EMP AND SKILLS,PEOPLEPLUS GROUP LTD,2033834778,"15,300"
Department for Work and Pensions,Employment Programmes,08/09/2015,WP JSA 18-24 JOB SUSTAINMENT OUTCOME PAYMENT,WWEG EP WALES WORKING LINKS WALES,WORKING LINKS,2033837785,"15,300"
Department for Work and Pensions,Corporate,16/09/2015,FSF - TRAVEL COSTS TO ADVISER INTERVIEWS - JSA CLIENTS,OPS WDC WSD NE WEST YORKSHIRE DISTRICT OFFICE,WEST YORKSHIRE COMBINED AUTHORITY,2033849371,"15,289"
Department for Work and Pensions,Corporate,08/09/2015,CONTRACTORS & STAFF SUBSTITUTIONS,CIO IT SERVICES SERVICE TRANSITION,CAPITA BUSINESS SERVICES LTD,2033836869,"15,284"
Department for Work and Pensions,Employment Programmes,30/09/2015,SUSTAINMENT FEE,WWEG EP WORK CHOICE SURREY AND SUSSEX KENT,WORKING LINKS,2033867512,"15,267"
Department for Work and Pensions,Employment Programmes,16/09/2015,WP JSA 25+ SUSTAINMENT OUTCOME PAYMENT,WWEG EP EAST OF ENGLAND INGEUS UK,INGEUS UK LTD,2033850594,"15,265"
Department for Work and Pensions,Employment Programmes,07/09/2015,WP JSA 25+ SUSTAINMENT OUTCOME PAYMENT,WWEG EP EAST OF ENGLAND SEETEC,SEETEC BUSINESS TECHNOLOGY CENTRE LTD,2033835801,"15,265"
Department for Work and Pensions,Employment Programmes,14/09/2015,WP JSA 25+ SUSTAINMENT OUTCOME PAYMENT,WWEG EP SCOTLAND WORKING LINKS,WORKING LINKS,2033846798,"15,265"
Department for Work and Pensions,Employment Programmes,23/09/2015,WP JSA 25+ SUSTAINMENT OUTCOME PAYMENT,WWEG EP SCOTLAND WORKING LINKS,WORKING LINKS,2033858038,"15,265"
Department for Work and Pensions,Employment Programmes,30/09/2015,WP JSA 25+ SUSTAINMENT OUTCOME PAYMENT,WWEG EP SOUTH EAST TV HANTS AND IOW MAXIMUS EMPLOYMENT,MAXIMUS HEALTH & HUMAN SERVICES LTD,2033867433,"15,265"
Department for Work and Pensions,Employment Programmes,30/09/2015,WP JSA 25+ SUSTAINMENT OUTCOME PAYMENT,WWEG EP WEST LONDON MAXIMUS EMPLOYMENT UK,MAXIMUS HEALTH & HUMAN SERVICES LTD,2033867433,"15,265"
Department for Work and Pensions,Housing Benefits,14/09/2015,HOUSING BENEFIT ADMINISTRATION,HB ENGLAND,HARBOROUGH DISTRICT COUNCIL,2033844566,"15,190"
Department for Work and Pensions,Employment Programmes,25/09/2015,OUTCOME FEE,WWEG EP WORK CHOICE WEST YORKSHIRE,THE PLUSS ORGANISATION,2033865207,"15,182"
Department for Work and Pensions,Corporate,11/09/2015,NON-TREDDS IS IT CONSULTANCY (HOSTING) NON ADVICE,CHG UC DESIGN & BUILD PROGRAMME MANAGER,SPECIALIST COMPUTER CENTRES PLC,2033843927,"15,180"
Department for Work and Pensions,Employment Programmes,04/09/2015,WP JSA 18-24 JOB SUSTAINMENT OUTCOME PAYMENT,WWEG EP WEST YORKSHIRE INGEUS UK,INGEUS UK LTD,2033834944,"15,130"
Department for Work and Pensions,Employment Programmes,30/09/2015,WP JSA 25+ SUSTAINMENT OUTCOME PAYMENT,WWEG EP EAST MIDLANDS INGEUS UK,INGEUS UK LTD,2033867595,"15,050"
Department for Work and Pensions,Employment Programmes,16/09/2015,WP JSA 25+ SUSTAINMENT OUTCOME PAYMENT,WWEG EP NORTH WEST GM CHES AND WARR AVANTA ENTERPRISE,PEOPLEPLUS LTD,2033850328,"15,050"
Department for Work and Pensions,Employment Programmes,01/09/2015,WP JSA 25+ SUSTAINMENT OUTCOME PAYMENT,WWEG EP NORTH WEST MERS HAL CUMB AND LANCS A4E,PEOPLEPLUS GROUP,2033829658,"15,050"
Department for Work and Pensions,Employment Programmes,22/09/2015,WP JSA 25+ SUSTAINMENT OUTCOME PAYMENT,WWEG EP S WEST DEV COR DOR AND SOM WORKING LINKS,WORKING LINKS,2033857769,"15,050"
Department for Work and Pensions,Employment Programmes,15/09/2015,WP JSA 25+ SUSTAINMENT OUTCOME PAYMENT,WWEG EP SCOTLAND INGEUS UK,INGEUS UK LTD,2033847739,"15,050"
Department for Work and Pensions,Employment Programmes,16/09/2015,WP JSA 25+ SUSTAINMENT OUTCOME PAYMENT,WWEG EP SCOTLAND WORKING LINKS,WORKING LINKS,2033850490,"15,050"
Department for Work and Pensions,Employment Programmes,16/09/2015,WP JSA 25+ SUSTAINMENT OUTCOME PAYMENT,WWEG EP W MIDLANDS COV WARW STAFFS AND MARCHES ESG,ESG HOLDINGS LIMITED,2033849293,"15,050"
Department for Work and Pensions,Employment Programmes,01/09/2015,WP JSA 25+ SUSTAINMENT OUTCOME PAYMENT,WWEG EP WEST LONDON MAXIMUS EMPLOYMENT UK,MAXIMUS HEALTH & HUMAN SERVICES LTD,2033829460,"15,050"
Department for Work and Pensions,Corporate,14/09/2015,CONTRACTORS & STAFF SUBSTITUTIONS,CIO TECHNOLOGY COO CONTRACT BULK PRINT,CAPITA BUSINESS SERVICES LTD,2033845752,"15,019"
Department for Work and Pensions,Employment Programmes,04/09/2015,WP JSA NEET SUSTAINMENT OUTCOME PAYMENT,WWEG EP NORTH EAST INGEUS UK,INGEUS UK LTD,2033834944,"15,000"
Department for Work and Pensions,Employment Programmes,15/09/2015,WP JSA 18-24 JOB SUSTAINMENT OUTCOME PAYMENT,WWEG EP EAST OF ENGLAND SEETEC,SEETEC BUSINESS TECHNOLOGY CENTRE LTD,2033848469,"14,960"
Department for Work and Pensions,Employment Programmes,18/09/2015,WP JSA 18-24 JOB SUSTAINMENT OUTCOME PAYMENT,WWEG EP NORTH WEST MERS HAL CUMB AND LANCS A4E,PEOPLEPLUS GROUP,2033853550,"14,960"
Department for Work and Pensions,Corporate,15/09/2015,POSTAGE,OPS BEN DD SFSB WREXHAM MA,ROYAL MAIL GROUP PLC,2033848706,"14,916"
Department for Work and Pensions,Employment Programmes,03/09/2015,WP JSA 25+ JOB OUTCOME PAYMENTWP JSA 25+ JOB OUTCOME PAYMENT,WWEG EP WEST LONDON MAXIMUS EMPLOYMENT UK,MAXIMUS HEALTH & HUMAN SERVICES LTD,2033832402,"14,880"
Department for Work and Pensions,Housing Benefits,14/09/2015,HOUSING BENEFIT ADMINISTRATION,HB ENGLAND,CHRISTCHURCH BOROUGH COUNCIL,2033844536,"14,858"
Department for Work and Pensions,Corporate,14/09/2015,CONTRACTORS & STAFF SUBSTITUTIONS,CHG DIGITAL ACADEMY,CAPITA BUSINESS SERVICES LTD,2033845752,"14,851"
Department for Work and Pensions,Employment Programmes,02/09/2015,WP JSA 25+ SUSTAINMENT OUTCOME PAYMENT,WWEG EP EAST MIDLANDS INGEUS UK,INGEUS UK LTD,2033830762,"14,835"
Department for Work and Pensions,Employment Programmes,02/09/2015,WP JSA 25+ JOB OUTCOME PAYMENTWP JSA 25+ JOB OUTCOME PAYMENT,WWEG EP NORTH WEST GM CHES AND WARR G4S,G4S REGIONAL MANAGEMENT UK & I LTD,2033830396,"14,826"
Department for Work and Pensions,Employment Programmes,10/09/2015,WP JSA 18-24 JOB SUSTAINMENT OUTCOME PAYMENT,WWEG EP NORTH WEST GM CHES AND WARR SEETEC,SEETEC BUSINESS TECHNOLOGY CENTRE LTD,2033841777,"14,790"
Department for Work and Pensions,Employment Programmes,04/09/2015,WP JSA 18-24 JOB SUSTAINMENT OUTCOME PAYMENT,WWEG EP NORTH WEST MERS HAL CUMB AND LANCS A4E,PEOPLEPLUS GROUP,2033833425,"14,790"
Department for Work and Pensions,Corporate,01/09/2015,CONTRACTORS & STAFF SUBSTITUTIONS,CIO TECHNOLOGY COO CONTRACT BULK PRINT,CAPITA BUSINESS SERVICES LTD,2033829835,"14,787"
Department for Work and Pensions,Employment Programmes,07/09/2015,WP JSA 25+ JOB OUTCOME PAYMENTWP JSA 25+ JOB OUTCOME PAYMENT,WWEG EP SCOTLAND WORKING LINKS,WORKING LINKS,2033836212,"14,784"
Department for Work and Pensions,Housing Benefits,14/09/2015,HOUSING BENEFIT ADMINISTRATION,HB ENGLAND,RYEDALE DISTRICT COUNCIL,2033844506,"14,753"
Department for Work and Pensions,Employment Programmes,25/09/2015,WP JSA NEET SUSTAINMENT OUTCOME PAYMENT,WWEG EP NORTH EAST AVANTA ENTERPRISE,PEOPLEPLUS LTD,2033865088,"14,750"
Department for Work and Pensions,Employment Programmes,04/09/2015,WP JSA NEET SUSTAINMENT OUTCOME PAYMENT,WWEG EP NORTH WEST MERS HAL CUMB AND LANCS INGEUS UK,INGEUS UK LTD,2033834944,"14,750"
Department for Work and Pensions,Corporate,22/09/2015,CONTRACTORS & STAFF SUBSTITUTIONS,CIO C SS S & E IT DIRECTOR CORE,CAPITA BUSINESS SERVICES LTD,2033857825,"14,640"
Department for Work and Pensions,Corporate,01/09/2015,IT Owned Additions Cost,OPS NET DIG SIGMA,SPECIALIST COMPUTER CENTRES PLC,2033829626,"14,640"
